Workbook

Sheet Instructions
E3: Minimum Energy Performance Calculator LEED v4 EA Prerequisite Minimum Energy Performance and EA Credit Optimize Energy Performance
E4: 2016-01-06
E5: INSTRUCTIONS:
E6: Complete this calculator to document the LEED Minimum Energy Performance prerequisite when using ASHRAE 90.1-2010 or a LEED approved alternative energy standard).
E7: Note: This calculator shall be used for any LEED 2009 project using the ASHRAE 90.1-2010 pathway (via LEED Interpretation #10421.
E9: Step 1.
E10: Enable macros.
E11: Note: This calculator is for use with Excel for Mac 2011 and Excel 2007 or later.
E13: Step 2.
E14: Complete all sheets. Complete the General Info tab before completing any other tabs, since this will show or hide rating system specific information, and other project-specific information. If the project has multiple buildings, complete the Multiple Buildings Details tab second. Then continue by filling out all additional tabs. These sheets are intended to assist energy modelers in developing the ASHRAE 90.1 Appendix G building energy models. The inputs include specific information about the baseline and proposed ASHRAE 90.1-2010 Appendix G modeling requirements, and provide the energy modeler with quality control checks for the energy modeling inputs and outputs. These sheets provide the greatest value to the project team if they are completed during the design process, with involvement from the building owner, architect(s), and engineer(s). Prior to LEED submission, the energy modeler should confirm that the energy model inputs listed are consistent with those modeled, and provide quality control (QC) to confirm that the outputs are reasonable based on the energy inputs listed. Note: If the energy modeler and project team waits to fill out the spreadsheet until near the completion of the building design, the team may discover some ASHRAE 90.1 mandatory requirements that have been overlooked, modeling requirements that have not been addressed, and additional time may be required to revise the model and show compliance.
E16: Step 3.
E17: Upload the completed spreadsheet to LEED Online in Excel (*.xlsm) format. Complete any related summary fields in the LEED prerequisite form and provide all additional required uploads along with the results of the calculator
E18: Note: For LEED 2009 projects using ASHRAE 90.1-2010 via LEED Interpretation #10421, provide the following sections of the LEED prerequisite form: 1. Target Finder. 2. Check the additional details checkbox: "The project team is using an alternative compliance approach..." 3. For the "Alternative Compliance Path" narrative, reference LEED Interpretation #10421. 4. For the "Alternative Compliance Path" uploads, provide: a. The ASHRAE 90.1-2010 Mandatory measures checklist, or a document confirming compliance with all mandatory measures of ASHRAE 90.1-2010 or LEED approved alternative standard. b. This completed spreadsheet in Excel (*.xlsm) format. c. Upload of Target Finder results. d. Upload of the following energy simulation reports for the proposed and 0 degree baseline buildings. (1) A sample of the wall, roof, floor, and window assembly inputs showing U-values and window SHGC, as well as the infiltration for a few representative spaces (2) Sample lighting and plug load inputs for a few representative spaces (3) Sample inputs at the thermal zone, system, and plant level (as applicable) for each system type, including the cooling, heating, fans, controls, outside air, and service water heating system (4) Inputs for the utility tariffs, if there is a variance of at least 10% between the baseline and proposed virtual rates, or if the percentage consumption savings for each non-electric utility varies by more than 5% from the percentage consumption savings for the electric utility. (5) Output summary report of energy consumption by end use and fuel source (6) Output summary report of total energy consumption and cost by fuel source
I20: UfactorMethod
G21: V02 | I21: NFRC testing for site-assembled fenestration
G22: Copyright © 2012 | I22: NFRC testing for manufactured fenestration assemblies
G23: U.S. Green Building Council | I23: Table A8.2 (windows) and Table A8.1 (skylights)
G24: All Rights Reserved | I24: LBNL Window 5 or Window 6 calculations
I25: Energy simulation includes separate frame and glazing
I26: Other (Describe)
I28: General HVAC drop-down
I29: All equipment in the unfinished spaces not included in the project scope of work has been modeled identically in the Baseline and Proposed case using the Baseline modeling requirements
I30: Credit has been modeled in the Proposed case for energy efficiency measures that are specifically identified in signed tenant sales and lease agreements (LEED Core & Shell only. New Construction must be modeled identically in the Baseline and Proposed Case).
I32: Opaque Envelope - Construction
I33: New
I34: Existing
I36: Opaque Envelope - Space Conditioning
I37: Nonresidential
I38: Residential
I39: Semiheated
I40: Unconditioned
I42: Climate Zone
I43: 1A
I44: 1B
I45: 2A
I46: 2B
I47: 3A
I48: 3B
I49: 3C
I50: 4A
I51: 4B
I52: 4C
I53: 5A
I54: 5B
I55: 5C
I56: 6A
I57: 6B
I58: 7A
I59: 7B
I60: 8
I62: Air-Side HVAC adjustment drop-down (IP) | J62: SI
I63: 0.5 | J63: 125
I64: 2.15 | J64: 535
I66: LEED Rating System
I67: LEED v4 BD+C: New Construction
I68: LEED v4 BD+C: Core and Shell
I69: LEED v4 BD+C: Schools
I70: LEED v4 BD+C: Retail
I71: LEED v4 BD+C: Data Centers
I72: LEED v4 BD+C: Warehouses and Distribution Centers
I73: LEED v4 BD+C: Hospitality
I74: LEED v4 BD+C: Healthcare
I75: LEED v4 ID+C: Commercial Interiors
I76: LEED v4 ID+C: Retail
I77: LEED v4 ID+C: Hospitality
I78: LEED v4 BD+C: Multifamily Midrise
I79: LEED v4: Neighborhood Development
I81: LEED project phase completeness
I82: 90% Construction Documents
I83: 100% Construction Documents
I84: As-built Construction Documents
I85: Other - Please Describe

Sheet Definitions
B2: DEFINITIONS
B5: baseline building performance | C5: The annual energy cost for a building design, used as a baseline for comparison with above-standard design
B7: combined heat and power | C7: An integrated system that captures the heat, otherwise unused, generated by a single fuel source in the production of electrical power. Also known as cogeneration. (Adapted from U.S. Environmental Protection Agency)
B8: district energy system (DES) | C8: A central energy conversion plant and transmission and distribution system that provides thermal energy to a group of buildings (e.g., a central cooling plant on a university campus). It does not include central energy systems that provide only electricity.
B9: DES: downstream equipment | C9: The heating and cooling systems, equipment, and controls located in the project building or on the project site and associated with transporting the thermal energy of the district energy system (DES) into heated and cooled spaces. Downstream equipment includes the thermal connection or interface with the DES, secondary distribution systems in the building, and terminal units.
B10: DES: upstream equipment | C10: A heating or cooling system or control associated with the district energy system (DES) but not part of the thermal connection or interface with the DES. Upstream equipment includes the thermal energy conversion plant and all the transmission and distribution equipment associated with transporting the thermal energy to the project building or site.
B11: DES Modeling Paths:
B12: DES Path 1: ASHRAE 90.1-2010 | C12: Purchased heating and cooling (as applicable) are modeled as cost-neutral in the baseline and proposed case. Local rates for purchased heating and cooling are used to establish the purchased heating and cooling costs. The energy model's scope accounts for only downstream equipment, plus purchased heating and cooling. (Refer to ASHRAE 90.1-2010 for details).
B13: DES Path 2: Full DES Performance Accounting | C13: A virtual DES-equivalent plant for the Proposed case is constructed and compared to code-compliant on-site equipment for the Baseline Case. The Baseline case system type is modeled consistent with an on-site system in ASHRAE 90.1 Appendix G. Average efficiencies for the proposed case are modeled or monitored. (Refer to the LEED v4 Building Design & Constrution Reference Guide, Minimum Energy Performance Prerequisite for details.)
B14: DES Path 3: Streamlined DES Modeling | C14: The district thermal energy is metered in both the Baseline and Proposed Case models and reported in this spreadsheet. This spreadsheet assigns default average efficiencies for the baseline case calculated using ASHRAE 90.1-2010 prescriptive requirements for DES equipment. Average efficiencies for the proposed case are modeled or monitored. (Refer to the LEED v4 Building Design & Constrution Reference Guide, Minimum Energy Performance Prerequisite for details.)
B15: IT annual energy | C15: Dlectricity consumption by information technology and telecom equipment which includes servers, networking, and storage equipment over the course of a year
B16: Power Utilization Effectiveness (PUE) | C16: a measure of how efficiently a data center uses its power; specifically, how much power is used by computing equipment rather than for cooling and other overhead
B17: Regulated load | C17: Any building end use that has either a mandatory or a prescriptive requirement in ANSI/ASHRAE/IES Standard 90.1–2007
B18: Server input | C18: the information technology (IT) load as measured at the point of connection (e.g., power receptacle ) of the IT device to the electrical power system. Server input captures the actual power load of the IT device exclusive of any power distribution losses and non-IT loads (e.g., rack-mounted fans).

Sheet General Information
B2: General Information
B4: Complete the General Information tab before completing any other tabs. Note that the selections in this tab will determine the selections available within other tabs, including multiple building selections, residential dwelling unit selections, rating system dependent selections, and district energy selections.
B6: LEED Project ID #
B8: LEED Project Name | E8: Project Name
B10: Rating system | E10: LEED v4 BD+C: New Construction | I10: =IFERROR(VLOOKUP(E10,DropdownData!Y:Z,2,FALSE),"") -> New Construction
B12: Unit of measurement | F12: IP units | I12: =IF(F12="SI units","SI","IP") -> IP | J12: =CONCATENATE(C48," (",'General Information'!I12,")") -> (IP)
B13: Note: The selections above must match the rating system and unit of measurement chosen during project registration.
B14: Percent new construction (%)* | F14: 1
B16: Percent renovation/existing (%)* | F16: =IF(pctNew>=0,1-F14,0) -> 0
B18: * Percentage based on floor area
B20: Project has multiple buildings? | F20: No
B21: =IF(MultipleBuildingsExist="Yes","Note: After completing the General Info tab, complete the Multiple Building Details Tab before proceeding to the other tabs.","") -> 
B23: =IF($I$12="IP","Conditioned building area (sq ft)","Conditioned building area (sq m)") -> Conditioned building area (sq ft)
B25: =IF($I$12="IP","Unconditioned building area (sq ft)","Unconditioned building area (sq m)") -> Unconditioned building area (sq ft)
B27: =IF($I$12="IP","Total building area (sq ft)","Total building area (sq m)") -> Total building area (sq ft) | F27: =F23+F25 -> 0
B29: Project has residential Dwelling Units? | F29: No
B31: Number of floors | F31: 6
B33: Energy Model Information
B35: Energy modeler
B37: Energy model based on
B39: Please describe the phase in which the Energy model is based on
B42: Simulation program
B44: Energy code used | I44: =IF(C44="California Title-24 2013, Part 6","TRUE","FALSE") -> FALSE
B46: Simulation weather file
B48: Climate zone
B50: ASHRAE 90.1 Addenda used in the energy model(s), if any. Addenda are not required to be used for the project. However, each addenda must be used in its entirety if applied to the project, and must be consistent across all relevant LEED Credits.
B53: Compliant energy simulation software. The energy simulation software used for this project has all capabilities described in EITHER section "G2 Simulation General Requirements" in Appendix G of ASHRAE 90.1-2010 OR the analogous section of the alternative qualifying energy code used.
B54: Compliant energy modeling methodology. Energy simulation runs for both the baseline and proposed use the assumptions and modeling methodology described in EITHER ASHRAE 90.1-2010 Appendix G OR the analogous section of the alternative qualifying energy code used.
B56: District Energy Systems
B57: The project is connected to a district or campus thermal energy system. For projects connected to a district or campus thermal energy system where thermal energy is produced for or distributed to multiple buildings, complete the applicable fields below.
I58: FALSE
B59: The district energy system includes (select all that apply) | I59: FALSE | J59: FALSE | K59: FALSE
B60: Select how the district energy system has been modeled (see Definitions Tab) | I60: =IF(AND(I58=TRUE,LEFT(D60,6)="Path 1"),TRUE,FALSE) -> FALSE | J60: =IF(AND(I58=TRUE,LEFT(D60,6)="Path 2"),TRUE,FALSE) -> FALSE | K60: =IF(AND(I58=TRUE,LEFT(D60,6)="Path 3"),TRUE,FALSE) -> FALSE | L60: =IF(AND(I58=TRUE,LEFT(D60,6)="Path 4"),TRUE,FALSE) -> FALSE
B61: For DES Paths 2 or 3, identify the method for evaluating the district plant average efficiency. | I61: =IF(D61="Modeling Method",TRUE,FALSE) -> FALSE | J61: =IF(D61="Monitoring Method",TRUE,FALSE) -> FALSE
B62: If using the DES Path 2 or 3 and the Modeling Method, describe how the average efficiency was determined. Include information about how the thermal distribution losses and distribution pump energy was accounted for. If using the modeling method, upload summary simulation files or spreadsheet calculations as supporting documentation.
B64: Rating System Variation | I64: =IF(OR(I65=TRUE,I66=TRUE),TRUE,FALSE) -> FALSE
B65: An ID+C rating system has been selected. Provide a detailed narrative reagarding the method for assigning relative contribution of base building HVAC and service water heating systems. Refer to the LEED v4 ID+C Reference Guide for additional information. | I65: =IF(OR($E$10="LEED v4 ID+C: Commercial Interiors",$E$10="LEED v4 ID+C: Retail",$E$10="LEED v4 ID+C: Hospitality"),TRUE,FALSE) -> FALSE
B66: The BD+C: Data Center rating system has been selected. By default, the full buildout IT loads are used to determine prerequisite and credit compliance. Select "Avg of Full IT Load + Startup IT Load" to the right in order to use the average of the energy modeling results for the full buildout IT loads and the energy modeling results for the startup IT loads to determine prerequisite and credit compliance. | I66: =IF($E$10="LEED v4 BD+C: Data Centers",TRUE,FALSE) -> FALSE | K66: =IF(AND(I66=TRUE,E66="Avg of Full IT Load + Startup IT Load"),TRUE,FALSE) -> FALSE | L66: =I66 -> FALSE | M66: =IF(OR($E$10="LEED v4 ID+C: Retail",$E$10="LEED v4 BD+C: Retail"),TRUE,FALSE) -> FALSE
K67: Data Center Avg. | L67: Data Center | M67: Retail
B68: Unfinished Spaces
B69: Select how any unfinished spaces have been modeled
B70: Refer to the Teant Lease and Sales Agreement section of the LEED Reference Guide. Upload all required documentation to substantiate the savings claimed for the unfinished spaces.

Sheet Multiple Buildings Details (hidden)
A1: G
A2: G | B2: Multiple Building Energy Model Information
A3: G
A4: G
A5: G | B5: How are the buildings modeled?
O6: 1
A10: G | B10: =IF(proj_RatingSystem="ND",CONCATENATE("The minimum average building energy improvement over ASHRAE 90.1-2010 must be 5% for new buildings, 3% for major building renovations, or 2% for core and shell buildings."," Multiple buildings may be grouped into a single energy model, provided (1) the building type (new construction, major renovation, or core and shell) is consistent for all buildings included in the energy model, ","or (2) an average 5% improvement is demonstrated for the entire energy model.", "If only a subset of the building energy model details is reported, check the box below, and for the buildings without the details reported here, ","report the sum total energy consumption for the buildings not reported here in the Performance_Output_Residual tab."," Provide a narrative confirming that at least 90% of the building area for ND non-residential, mixed-use and multiunit residential buildings 4 stories or more were modeled",", and briefly describing the energy efficiency measures for any buildings where energy model details are not reported here."),CONCATENATE("The documentation must be sufficient to show that each building individually complies with the prerequisite performance improvement requirements."," If not modeling each building in a separate energy model to show individual compliance, complete the narrative below to justify that all buildings meet the prerequisite performance improvement requirements. ","Note: if insufficient information is available in the narrative and input data to prove that all buildings individually meet the prerequisite performance improvement requirements, ","additional energy simulation outputs including submetered data per building may be required during the review process to confirm prerequisite compliance per building.")) -> The documentation must be sufficient to show that each building individually complies with the prerequisite performance improvement requirements. If not modeling each building in a separate energy model to show individual compliance, complete the narrative below to justify that all buildings meet the prerequisite performance improvement requirements. Note: if insufficient information is available in the narrative and input data to prove that all buildings individually meet the prerequisite performance improvement requirements, additional energy simulation outputs including submetered data per building may be required during the review process to confirm prerequisite compliance per building.
A11: G
O12: FALSE
A13: G | B13: Energy Model Information
A14: G
A15: G | B15: Energy Simulation ID | J15: Multiplier
A16: G | B16: Simulation ID | J16: Multiplier
B17: =INDEX(MBD_BS_Table,3,1) -> Project Name | J17: 1
A19: G
B20: Building Information for Multiple Building Projects
A21: G | E21: Energy Model | F21: ="Modeled Building Area "&IF(SI_IP_Units="IP","(sq. ft.)","(sq. m.)") -> Modeled Building Area (sq. ft.) | I21: Percent Construction
A22: G | B22: Building ID | E22: Simulation ID | F22: Multiplier | G22: Conditioned | H22: Unconditioned | I22: New | J22: Renovation/Existing
B23: Residual Project | E23: =INDEX(MBD_BS_Table,2, 1) -> Residual Project | J23: =I23 -> 0
A24: G | B24: =GI_Project_Name -> Project Name | E24: 1 | F24: 2 | G24: 1000 | H24: 500 | I24: 1 | J24: =1-I24 -> 0
A25: G | B25: All
A27: G
A28: G
A29: G | B29: Project Summary
A30: G
A31: G | F31: ="Modeled Building Area "&IF(SI_IP_Units="IP","(sq. ft.)","(sq. m.)") -> Modeled Building Area (sq. ft.) | I31: Percent Construction
A32: G | F32: Total Buildings | G32: Conditioned | H32: Unconditioned | I32: New | J32: Renovation/Existing
A33: G | B33: Total | F33: =SUM(OFFSET(MBD_BS_Index,1,MATCH($F$22,MBD_BS_Hdr,0)-1,ROWS(MBD_BS_Index)-1,1)) -> 2 | G33: =SUM(OFFSET(MBD_BS_Index,1,MATCH($G$22,MBD_BS_Hdr,0)-1,ROWS(MBD_BS_Index)-1,1)) -> 1000 | H33: =SUM(OFFSET(MBD_BS_Index,1,MATCH($H$22,MBD_BS_Hdr,0)-1,ROWS(MBD_BS_Index)-1,1)) -> 500 | I33: =(SUMPRODUCT(OFFSET(MBD_BS_Index,1,MATCH($F$22,MBD_BS_Hdr,0)-1,ROWS(MBD_BS_Index)-1,1),OFFSET(MBD_BS_Index,1,MATCH($G$22,MBD_BS_Hdr,0)-1,ROWS(MBD_BS_Index)-1,1),OFFSET(MBD_BS_Index,1,MATCH($I$22,MBD_BS_Hdr,0)-1,ROWS(MBD_BS_Index)-1,1))+SUMPRODUCT(OFFSET(MBD_BS_Index,1,MATCH($F$22,MBD_BS_Hdr,0)-1,ROWS(MBD_BS_Index)-1,1),OFFSET(MBD_BS_Index,1,MATCH($H$22,MBD_BS_Hdr,0)-1,ROWS(MBD_BS_Index)-1,1),OFFSET(MBD_BS_Index,1,MATCH($I$22,MBD_BS_Hdr,0)-1,ROWS(MBD_BS_Index)-1,1)))/(SUMPRODUCT(OFFSET(MBD_BS_Index,1,MATCH($F$22,MBD_BS_Hdr,0)-1,ROWS(MBD_BS_Index)-1,1),OFFSET(MBD_BS_Index,1,MATCH($G$22,MBD_BS_Hdr,0)-1,ROWS(MBD_BS_Index)-1,1))+SUMPRODUCT(OFFSET(MBD_BS_Index,1,MATCH($F$22,MBD_BS_Hdr,0)-1,ROWS(MBD_BS_Index)-1,1),OFFSET(MBD_BS_Index,1,MATCH($H$22,MBD_BS_Hdr,0)-1,ROWS(MBD_BS_Index)-1,1))) -> 1 | J33: =1-I33 -> 0
A34: G

Sheet Schedules
A1: G
A2: G | B2: Schedules
A3: G
A4: G
A5: G | B5: =CONCATENATE("Complete the table for each building in the project. Provide information for the ",IF(proj_RatingSystem="Homes","Dwelling Units","Main Building Schedules")," and for each additional area or set of areas where the schedules differ significantly. Ensure that the reported schedules are consistent with the energy-model entered values, and that schedules account for all mandatory controls. ",IF(proj_RatingSystem="Homes",CONCATENATE("Residential lighting shall be for two to four hours per day (700 to 1500 equivalent full load hours per year). See the EFLH Calculator for default Residential Dwelling Unit Schedules that may be input into the energy model.", " Corridors and parking garages shall be lit 24 hours per day; parking garages shall include schedule adjustments for occupant sensor controls."),"" ),""," Ensure that schedules account for all mandatory controls.",CHAR(10),"*Note: The following Equivalent full load schedule information may be optionally excluded from the Table: ","(1) End-uses that do not significantly influence overall energy consumption for the project building type (i.e. service water heating for an office building < 5% of total energy consumption),"," (2) Spaces modeled with differing schedules that contribute minimally to overall building energy consumption (i.e. electrical/mechanical rooms in a school building that contribute < 5% of total building energy consumption") -> Complete the table for each building in the project. Provide information for the Main Building Schedules and for each additional area or set of areas where the schedules differ significantly. Ensure that the reported schedules are consistent with the energy-model entered values, and that schedules account for all mandatory controls. Ensure that schedules account for all mandatory controls. *Note: The following Equivalent full load schedule information may be optionally excluded from the Table: (1) End-uses that do not significantly influence overall energy consumption for the project building type (i.e. service water heating for an office building < 5% of total energy consumption), (2) Spaces modeled with differing schedules that contribute minimally to overall building energy consumption (i.e. electrical/mechanical rooms in a school building that contribute < 5% of total building energy consumption
A6: G | B6: Note: The EFLH Calculator tab in this spreadsheet may be used as an optional tool for determining Equivalent Full Load hours of operation
A7: G
A8: G | B8: Building ID | C8: Areas Served | D8: Equivalent Full Load Hours of Operation Per Year (maximum of 8,760). Leave blank or enter N/A if not applicable. | N8: HVAC: hours per year fans running continuously | O8: =IF(proj_RatingSystem="Homes","Active Mode Setpoint","Occupied Mode Setpoint") -> Occupied Mode Setpoint | Q8: Setback Mode Setpoint
A9: G | D9: Interior Lighting | E9: Service Water Heating | F9: Receptacle Equipment and Appliances | G9: Refriger-ation | H9: Server Equip-ment | I9: Cooking Equip-ment | J9: Elevators / Escalators | K9: Exterior Lighting | L9: Other Loads (Indicate Loads) | O9: =CONCATENATE("Cooling",IF(SI_IP_Units="IP"," (degrees F)"," (degrees C)")) -> Cooling (degrees F) | P9: =CONCATENATE("Heating",IF(SI_IP_Units="IP"," (degrees F)"," (degrees C)")) -> Heating (degrees F) | Q9: =CONCATENATE("Cooling",IF(SI_IP_Units="IP"," (degrees F)"," (degrees C)")) -> Cooling (degrees F) | R9: =CONCATENATE("Heating",IF(SI_IP_Units="IP"," (degrees F)"," (degrees C)")) -> Heating (degrees F)
A10: G
A11: G | B11: =B8 -> Building ID | C11: =C8 -> Areas Served | D11: =D9 -> Interior Lighting | E11: =E9 -> Service Water Heating | F11: Receptacle Equipment and Appliances | G11: Refriger-ation | H11: Server Equip-ment | I11: Cooking Equip-ment | J11: Elevators / Escalators | K11: Exterior Lighting | L11: Other Loads (Indicate Loads) | M11: 0 | N11: =N8 -> HVAC: hours per year fans running continuously | O11: Cooling (degrees F) | P11: Heating (degrees F) | Q11: Cooling (degrees F) | R11: Heating (degrees F)
A12: G | B12: =IF(MultipleBuildingsExist="Yes","All",GI_Project_Name) -> Project Name | C12: Dwelling Units | D12: =854 -> 854 | E12: =2446 -> 2446 | F12: =2117 -> 2117 | N12: 8760 | O12: 78 | P12: 72 | Q12: 80 | R12: 70
A13: G | B13: =IF(MultipleBuildingsExist="Yes","All",GI_Project_Name) -> Project Name | C13: Main Building Schedules
A14: G
A15: A | B15: =GI_Project_Name -> Project Name
A16: A | B16: Project Name
A17: A | B17: Project Name
A18: A | B18: Project Name
A19: A | B19: Project Name
A20: A | B20: Project Name
A21: G
A22: G
A23: G
A24: G
A25: G
A26: G
A27: G
A28: G
A29: G
A30: G
A31: G
A32: G
A33: G
A34: G
A35: G
A36: G
A37: G
A38: G
A39: G
A40: G
A41: G
A42: G
A43: G
A44: G
A45: G
A46: G
A47: G
A48: G
A49: G
A50: G
A51: G
A52: G
A53: G
A54: G
A55: G
A56: G
A57: G
A58: G
A59: G
A60: G
A61: G
A62: G
A63: G
A64: G
A65: G
A66: G
A67: G
A68: G
A69: G
A70: G
A71: G
A72: G
A73: G
A74: G
A75: G
A76: G
A77: G
A78: G
A79: G
A80: G
A81: G
A82: G
A83: G
A84: G
A85: G
A86: G
A87: G
A88: G
A89: G
A90: G
A91: G
A92: G
A93: G
A94: G
A95: G
A96: G
A97: G
A98: G
A99: G
A100: G
A101: G
A102: G
A103: G
A104: G
A105: G

Sheet EFLH Calculator
B2: (OPTIONAL) Equivalent Full Load Hours Calculator
B5: =CONCATENATE("THIS CALCULATOR IS OPTIONAL FOR USE DETERMIING THE EQUIVALENT FULL LOAD HOUR INFORMATION FOR THE SCHEDULES TAB. THE CALCULATOR IS NOT REQUIRED TO BE COMPLETED OR SUBMITTED. ", IF(proj_RatingSystem="Homes","Default schedules required for LEED-Homes Midrise are shown below for reference. ",IF(ResDwellingUnitsExist="Yes","Default schedules for residential dwelling units are shown below for reference.","")), " Some of the sample schedules from the ASHRAE 90.1-2010 User's Manual are shown below for reference.") -> THIS CALCULATOR IS OPTIONAL FOR USE DETERMIING THE EQUIVALENT FULL LOAD HOUR INFORMATION FOR THE SCHEDULES TAB. THE CALCULATOR IS NOT REQUIRED TO BE COMPLETED OR SUBMITTED. Some of the sample schedules from the ASHRAE 90.1-2010 User's Manual are shown below for reference.
C7: Days per Year
B8: Holiday | C8: 11
B9: Monday | C9: 50
B10: Tuesday | C10: 50
B11: Wednesday | C11: 50
B12: Thursday | C12: 50
B13: Friday | C13: 50
B14: Saturday | C14: 52
B15: Sunday | C15: 52
B16: Total (must equal 365 days/year) | C16: =SUM(C8:C15) -> 365
B18: On/Off Schedules
B19: Enter 1 for "On", 0 for "Off.
B21: Schedule Name:
C23: 12-1AM | D23: 1-2AM | E23: 2-3AM | F23: 3-4AM | G23: 4-5AM | H23: 5-6AM | I23: 6-7AM | J23: 7-8AM | K23: 8-9 AM | L23: 9-10AM | M23: 10-11AM | N23: 11AM-12PM | O23: 12-1PM | P23: 1-2PM | Q23: 2-3PM | R23: 3-4PM | S23: 4-5PM | T23: 5-6PM | U23: 6-7PM | V23: 7-8PM | W23: 8-9PM | X23: 9-10PM | Y23: 10-11PM | Z23: 11-12PM | AA23: Hours/day | AB23: Hours/year
B24: Weekday | AA24: =SUM(C24:Z24) -> 0 | AB24: =AA24*SUM($C$9:$C$13) -> 0
B25: Weekend | AA25: =SUM(C25:Z25) -> 0 | AB25: =AA25*SUM($C$14:$C$15) -> 0
B26: Holiday | AA26: =SUM(C26:Z26) -> 0 | AB26: =AA26*$C$8 -> 0
B27: Total hours of operation per year | AB27: =SUM(AB24:AB26) -> 0
B32: Schedule Name:
C34: 12-1AM | D34: 1-2AM | E34: 2-3AM | F34: 3-4AM | G34: 4-5AM | H34: 5-6AM | I34: 6-7AM | J34: 7-8AM | K34: 8-9 AM | L34: 9-10AM | M34: 10-11AM | N34: 11AM-12PM | O34: 12-1PM | P34: 1-2PM | Q34: 2-3PM | R34: 3-4PM | S34: 4-5PM | T34: 5-6PM | U34: 6-7PM | V34: 7-8PM | W34: 8-9PM | X34: 9-10PM | Y34: 10-11PM | Z34: 11-12PM | AA34: Hours/day | AB34: Hours/year
B35: Holiday | AA35: =SUM(C35:Z35) -> 0 | AB35: =AA35*$C$8 -> 0
B36: Monday | AA36: 0 | AB36: =AA36*$C$9 -> 0
B37: Tuesday | AA37: 0 | AB37: =AA37*$C$10 -> 0
B38: Wednesday | AA38: 0 | AB38: =AA38*$C$11 -> 0
B39: Thursday | AA39: 0 | AB39: =AA39*$C$12 -> 0
B40: Friday | AA40: 0 | AB40: =AA40*$C$13 -> 0
B41: Saturday | AA41: 0 | AB41: =AA41*$C$14 -> 0
B42: Sunday | AA42: 0 | AB42: =AA42*$C$15 -> 0
B43: Total hours of operation per year | AB43: =SUM(AB35:AB42) -> 0
B48: Fraction / Percentage Schedules
B49: Enter a percentage value between 0% and 100%
B51: Schedule Name:
C53: 12-1AM | D53: 1-2AM | E53: 2-3AM | F53: 3-4AM | G53: 4-5AM | H53: 5-6AM | I53: 6-7AM | J53: 7-8AM | K53: 8-9 AM | L53: 9-10AM | M53: 10-11AM | N53: 11AM-12PM | O53: 12-1PM | P53: 1-2PM | Q53: 2-3PM | R53: 3-4PM | S53: 4-5PM | T53: 5-6PM | U53: 6-7PM | V53: 7-8PM | W53: 8-9PM | X53: 9-10PM | Y53: 10-11PM | Z53: 11-12PM | AA53: EFLH/day | AB53: EFLH/year
B54: Weekday | AA54: =SUM(C54:Z54) -> 0 | AB54: =AA54*SUM($C$9:$C$13) -> 0
B55: Weekend | AA55: =SUM(C55:Z55) -> 0 | AB55: =AA55*SUM($C$14:$C$15) -> 0
B56: Holiday | AA56: =SUM(C56:Z56) -> 0 | AB56: =AA56*$C$8 -> 0
B57: Total Equivalent Full Load Hours of Operation per Year | AB57: =SUM(AB54:AB56) -> 0
B62: Schedule Name:
C64: 12-1AM | D64: 1-2AM | E64: 2-3AM | F64: 3-4AM | G64: 4-5AM | H64: 5-6AM | I64: 6-7AM | J64: 7-8AM | K64: 8-9 AM | L64: 9-10AM | M64: 10-11AM | N64: 11AM-12PM | O64: 12-1PM | P64: 1-2PM | Q64: 2-3PM | R64: 3-4PM | S64: 4-5PM | T64: 5-6PM | U64: 6-7PM | V64: 7-8PM | W64: 8-9PM | X64: 9-10PM | Y64: 10-11PM | Z64: 11-12PM | AA64: EFLH/day | AB64: EFLH/day
B65: Holiday | AA65: =SUM(C65:Z65) -> 0 | AB65: =AA65*$C$8 -> 0
B66: Monday | AA66: 0 | AB66: =AA66*$C$9 -> 0
B67: Tuesday | AA67: 0 | AB67: =AA67*$C$10 -> 0
B68: Wednesday | AA68: 0 | AB68: =AA68*$C$11 -> 0
B69: Thursday | AA69: 0 | AB69: =AA69*$C$12 -> 0
B70: Friday | AA70: 0 | AB70: =AA70*$C$13 -> 0
B71: Saturday | AA71: 0 | AB71: =AA71*$C$14 -> 0
B72: Sunday | AA72: 0 | AB72: =AA72*$C$15 -> 0
B73: Total Equivalent Full Load Hours of Operation per Year | AB73: =SUM(AB65:AB72) -> 0
B78: Default Schedules
B80: Residential Dwelling Unit Default Schedules
B82: Schedule Name: | C82: Dwelling Unit Thermostat setpoint schedule
C84: 12-1AM | D84: 1-2AM | E84: 2-3AM | F84: 3-4AM | G84: 4-5AM | H84: 5-6AM | I84: 6-7AM | J84: 7-8AM | K84: 8-9 AM | L84: 9-10AM | M84: 10-11AM | N84: 11AM-12PM | O84: 12-1PM | P84: 1-2PM | Q84: 2-3PM | R84: 3-4PM | S84: 4-5PM | T84: 5-6PM | U84: 6-7PM | V84: 7-8PM | W84: 8-9PM | X84: 9-10PM | Y84: 10-11PM | Z84: 11-12PM | AA84: Hours/day | AB84: Hours/year
B85: Daily Heating Setpoint | C85: =IF(SI_IP_Units="IP",70,CONVERT(70,"F","C")) -> 70 | D85: 70 | E85: 70 | F85: 70 | G85: 70 | H85: 70 | I85: =IF(SI_IP_Units="IP",72,CONVERT(72,"F","C")) -> 72 | J85: 72 | K85: 72 | L85: 72 | M85: 72 | N85: 72 | O85: 72 | P85: 72 | Q85: 72 | R85: 72 | S85: 72 | T85: 72 | U85: 72 | V85: 72 | W85: 72 | X85: 72 | Y85: 72 | Z85: =IF(SI_IP_Units="IP",70,CONVERT(70,"F","C")) -> 70 | AA85: 24 | AB85: 8760
B86: Daily Cooling Setpoint | C86: =IF(SI_IP_Units="IP",78,CONVERT(78,"F","C")) -> 78 | D86: 78 | E86: 78 | F86: 78 | G86: 78 | H86: 78 | I86: 78 | J86: 78 | K86: 78 | L86: =IF(SI_IP_Units="IP",80,CONVERT(80,"F","C")) -> 80 | M86: 80 | N86: 80 | O86: 80 | P86: 80 | Q86: 80 | R86: =IF(SI_IP_Units="IP",78,CONVERT(78,"F","C")) -> 78 | S86: 78 | T86: 78 | U86: 78 | V86: 78 | W86: 78 | X86: 78 | Y86: 78 | Z86: 78 | AA86: 24 | AB86: 8760
B88: Schedule Name: | C88: Dwelling Unit Lighting Schedule
C90: 12-1AM | D90: 1-2AM | E90: 2-3AM | F90: 3-4AM | G90: 4-5AM | H90: 5-6AM | I90: 6-7AM | J90: 7-8AM | K90: 8-9 AM | L90: 9-10AM | M90: 10-11AM | N90: 11AM-12PM | O90: 12-1PM | P90: 1-2PM | Q90: 2-3PM | R90: 3-4PM | S90: 4-5PM | T90: 5-6PM | U90: 6-7PM | V90: 7-8PM | W90: 8-9PM | X90: 9-10PM | Y90: 10-11PM | Z90: 11-12PM | AA90: EFLH/day | AB90: EFLH/year
B91: Weekday | C91: 0.016 | D91: 0.016 | E91: 0.016 | F91: 0.016 | G91: 0.016 | H91: 0.016 | I91: 0.077 | J91: 0.14 | K91: 0.14 | L91: 0.108 | M91: 0.108 | N91: 0.108 | O91: 0.077 | P91: 0.077 | Q91: 0.077 | R91: 0.077 | S91: 0.077 | T91: 0.108 | U91: 0.217 | V91: 0.217 | W91: 0.217 | X91: 0.217 | Y91: 0.186 | Z91: 0.016 | AA91: =SUM(C91:Z91) -> 2.34 | AB91: =AA91*SUM($C$9:$C$13) -> 585
B92: Weekend | C92: 0.016 | D92: 0.016 | E92: 0.016 | F92: 0.016 | G92: 0.016 | H92: 0.016 | I92: 0.077 | J92: 0.14 | K92: 0.14 | L92: 0.108 | M92: 0.108 | N92: 0.108 | O92: 0.077 | P92: 0.077 | Q92: 0.077 | R92: 0.077 | S92: 0.077 | T92: 0.108 | U92: 0.217 | V92: 0.217 | W92: 0.217 | X92: 0.217 | Y92: 0.186 | Z92: 0.016 | AA92: =SUM(C92:Z92) -> 2.34 | AB92: =AA92*SUM($C$14:$C$15) -> 243.36
B93: Holiday | C93: 0.016 | D93: 0.016 | E93: 0.016 | F93: 0.016 | G93: 0.016 | H93: 0.016 | I93: 0.077 | J93: 0.14 | K93: 0.14 | L93: 0.108 | M93: 0.108 | N93: 0.108 | O93: 0.077 | P93: 0.077 | Q93: 0.077 | R93: 0.077 | S93: 0.077 | T93: 0.108 | U93: 0.217 | V93: 0.217 | W93: 0.217 | X93: 0.217 | Y93: 0.186 | Z93: 0.016 | AA93: =SUM(C93:Z93) -> 2.34 | AB93: =AA93*$C$8 -> 25.74
B94: Total Equivalent Full Load Hours of Operation per Year | AB94: =SUM(AB91:AB93) -> 854.1
B96: Schedule Name: | C96: Dwelling Unit Miscellaneous Equipment Schedule
C98: 12-1AM | D98: 1-2AM | E98: 2-3AM | F98: 3-4AM | G98: 4-5AM | H98: 5-6AM | I98: 6-7AM | J98: 7-8AM | K98: 8-9 AM | L98: 9-10AM | M98: 10-11AM | N98: 11AM-12PM | O98: 12-1PM | P98: 1-2PM | Q98: 2-3PM | R98: 3-4PM | S98: 4-5PM | T98: 5-6PM | U98: 6-7PM | V98: 7-8PM | W98: 8-9PM | X98: 9-10PM | Y98: 10-11PM | Z98: 11-12PM | AA98: EFLH/day | AB98: EFLH/year
B99: Weekday | C99: 0.05 | D99: 0.05 | E99: 0.05 | F99: 0.05 | G99: 0.05 | H99: 0.05 | I99: 0.05 | J99: 0.05 | K99: 0.5 | L99: 0.5 | M99: 0.5 | N99: 0.5 | O99: 0.3 | P99: 0.5 | Q99: 0.5 | R99: 0.5 | S99: 0.5 | T99: 0.5 | U99: 0.35 | V99: 0.05 | W99: 0.05 | X99: 0.05 | Y99: 0.05 | Z99: 0.05 | AA99: =SUM(C99:Z99) -> 5.8 | AB99: =AA99*SUM($C$9:$C$13) -> 1450
B100: Weekend | C100: 0.05 | D100: 0.05 | E100: 0.05 | F100: 0.05 | G100: 0.05 | H100: 0.05 | I100: 0.05 | J100: 0.05 | K100: 0.5 | L100: 0.5 | M100: 0.5 | N100: 0.5 | O100: 0.3 | P100: 0.5 | Q100: 0.5 | R100: 0.5 | S100: 0.5 | T100: 0.5 | U100: 0.35 | V100: 0.05 | W100: 0.05 | X100: 0.05 | Y100: 0.05 | Z100: 0.05 | AA100: =SUM(C100:Z100) -> 5.8 | AB100: =AA100*SUM($C$14:$C$15) -> 603.2
B101: Holiday | C101: 0.05 | D101: 0.05 | E101: 0.05 | F101: 0.05 | G101: 0.05 | H101: 0.05 | I101: 0.05 | J101: 0.05 | K101: 0.5 | L101: 0.5 | M101: 0.5 | N101: 0.5 | O101: 0.3 | P101: 0.5 | Q101: 0.5 | R101: 0.5 | S101: 0.5 | T101: 0.5 | U101: 0.35 | V101: 0.05 | W101: 0.05 | X101: 0.05 | Y101: 0.05 | Z101: 0.05 | AA101: =SUM(C101:Z101) -> 5.8 | AB101: =AA101*$C$8 -> 63.8
B102: Total Equivalent Full Load Hours of Operation per Year | AB102: =SUM(AB99:AB101) -> 2117
B104: Schedule Name: | C104: Residential Common Area Miscellaneous Equipment Schedule
C106: 12-1AM | D106: 1-2AM | E106: 2-3AM | F106: 3-4AM | G106: 4-5AM | H106: 5-6AM | I106: 6-7AM | J106: 7-8AM | K106: 8-9 AM | L106: 9-10AM | M106: 10-11AM | N106: 11AM-12PM | O106: 12-1PM | P106: 1-2PM | Q106: 2-3PM | R106: 3-4PM | S106: 4-5PM | T106: 5-6PM | U106: 6-7PM | V106: 7-8PM | W106: 8-9PM | X106: 9-10PM | Y106: 10-11PM | Z106: 11-12PM | AA106: EFLH/day | AB106: EFLH/year
B107: Weekday | C107: 0.1 | D107: 0.1 | E107: 0.1 | F107: 0.1 | G107: 0.1 | H107: 0.3 | I107: 0.45 | J107: 0.45 | K107: 0.45 | L107: 0.45 | M107: 0.3 | N107: 0.3 | O107: 0.3 | P107: 0.3 | Q107: 0.3 | R107: 0.3 | S107: 0.3 | T107: 0.3 | U107: 0.6 | V107: 0.8 | W107: 0.9 | X107: 0.8 | Y107: 0.6 | Z107: 0.3 | AA107: =SUM(C107:Z107) -> 9 | AB107: =AA107*SUM($C$9:$C$13) -> 2250
B108: Weekend | C108: 0.1 | D108: 0.1 | E108: 0.1 | F108: 0.1 | G108: 0.1 | H108: 0.3 | I108: 0.45 | J108: 0.45 | K108: 0.45 | L108: 0.45 | M108: 0.3 | N108: 0.3 | O108: 0.3 | P108: 0.3 | Q108: 0.3 | R108: 0.3 | S108: 0.3 | T108: 0.3 | U108: 0.6 | V108: 0.8 | W108: 0.9 | X108: 0.8 | Y108: 0.6 | Z108: 0.3 | AA108: =SUM(C108:Z108) -> 9 | AB108: =AA108*SUM($C$14:$C$15) -> 936
B109: Holiday | C109: 0.1 | D109: 0.1 | E109: 0.1 | F109: 0.1 | G109: 0.1 | H109: 0.3 | I109: 0.45 | J109: 0.45 | K109: 0.45 | L109: 0.45 | M109: 0.3 | N109: 0.3 | O109: 0.3 | P109: 0.3 | Q109: 0.3 | R109: 0.3 | S109: 0.3 | T109: 0.3 | U109: 0.6 | V109: 0.8 | W109: 0.9 | X109: 0.8 | Y109: 0.6 | Z109: 0.3 | AA109: =SUM(C109:Z109) -> 9 | AB109: =AA109*$C$8 -> 99
B110: Total Equivalent Full Load Hours of Operation per Year | AB110: =SUM(AB107:AB109) -> 3285
B112: Schedule Name: | C112: Residential DHW Schedule
C114: 12-1AM | D114: 1-2AM | E114: 2-3AM | F114: 3-4AM | G114: 4-5AM | H114: 5-6AM | I114: 6-7AM | J114: 7-8AM | K114: 8-9 AM | L114: 9-10AM | M114: 10-11AM | N114: 11AM-12PM | O114: 12-1PM | P114: 1-2PM | Q114: 2-3PM | R114: 3-4PM | S114: 4-5PM | T114: 5-6PM | U114: 6-7PM | V114: 7-8PM | W114: 8-9PM | X114: 9-10PM | Y114: 10-11PM | Z114: 11-12PM | AA114: EFLH/day | AB114: EFLH/year
B115: Weekday | C115: 0.05 | D115: 0.05 | E115: 0.05 | F115: 0.05 | G115: 0.05 | H115: 0.05 | I115: 0.3 | J115: 0.5 | K115: 0.4 | L115: 0.3 | M115: 0.3 | N115: 0.35 | O115: 0.4 | P115: 0.35 | Q115: 0.35 | R115: 0.3 | S115: 0.3 | T115: 0.5 | U115: 0.5 | V115: 0.4 | W115: 0.35 | X115: 0.45 | Y115: 0.3 | Z115: 0.05 | AA115: =SUM(C115:Z115) -> 6.7 | AB115: =AA115*SUM($C$9:$C$13) -> 1675
B116: Weekend | C116: 0.05 | D116: 0.05 | E116: 0.05 | F116: 0.05 | G116: 0.05 | H116: 0.05 | I116: 0.3 | J116: 0.5 | K116: 0.4 | L116: 0.3 | M116: 0.3 | N116: 0.35 | O116: 0.4 | P116: 0.35 | Q116: 0.35 | R116: 0.3 | S116: 0.3 | T116: 0.5 | U116: 0.5 | V116: 0.4 | W116: 0.35 | X116: 0.45 | Y116: 0.3 | Z116: 0.05 | AA116: =SUM(C116:Z116) -> 6.7 | AB116: =AA116*SUM($C$14:$C$15) -> 696.8
B117: Holiday | C117: 0.05 | D117: 0.05 | E117: 0.05 | F117: 0.05 | G117: 0.05 | H117: 0.05 | I117: 0.3 | J117: 0.5 | K117: 0.4 | L117: 0.3 | M117: 0.3 | N117: 0.35 | O117: 0.4 | P117: 0.35 | Q117: 0.35 | R117: 0.3 | S117: 0.3 | T117: 0.5 | U117: 0.5 | V117: 0.4 | W117: 0.35 | X117: 0.45 | Y117: 0.3 | Z117: 0.05 | AA117: =SUM(C117:Z117) -> 6.7 | AB117: =AA117*$C$8 -> 73.7
B118: Total Equivalent Full Load Hours of Operation per Year | AB118: =SUM(AB115:AB117) -> 2445.5
B121: ASHRAE 90.1-2010 User'S Manual Schedules
B122: Below is a subset of sample schedules provided in the ASHRAE 90.1-2010 User's Manual. Refer to the ASHRAE User's Manual Tables G-D through G-M for additional schedules. (Note: Holiday schedules are added, and are assumed to be equal to the Sunday schedules; therefore annual equivalent full load hours will differ slightly from those reported in the default ASHRAE schedules).
B124: Office Occupancy
B126: Schedule Name: | C126: Office HVAC System - ON/OFF Schedule
C128: 12-1AM | D128: 1-2AM | E128: 2-3AM | F128: 3-4AM | G128: 4-5AM | H128: 5-6AM | I128: 6-7AM | J128: 7-8AM | K128: 8-9 AM | L128: 9-10AM | M128: 10-11AM | N128: 11AM-12PM | O128: 12-1PM | P128: 1-2PM | Q128: 2-3PM | R128: 3-4PM | S128: 4-5PM | T128: 5-6PM | U128: 6-7PM | V128: 7-8PM | W128: 8-9PM | X128: 9-10PM | Y128: 10-11PM | Z128: 11-12PM | AA128: Hours/day | AB128: Hours/year
B129: Weekday | C129: 0 | D129: 0 | E129: 0 | F129: 0 | G129: 0 | H129: 0 | I129: 1 | J129: 1 | K129: 1 | L129: 1 | M129: 1 | N129: 1 | O129: 1 | P129: 1 | Q129: 1 | R129: 1 | S129: 1 | T129: 1 | U129: 1 | V129: 1 | W129: 1 | X129: 1 | Y129: 0 | Z129: 0 | AA129: =SUM(C129:Z129) -> 16 | AB129: =AA129*SUM($C$9:$C$13) -> 4000
B130: Saturday | C130: 0 | D130: 0 | E130: 0 | F130: 0 | G130: 0 | H130: 0 | I130: 1 | J130: 1 | K130: 1 | L130: 1 | M130: 1 | N130: 1 | O130: 1 | P130: 1 | Q130: 1 | R130: 1 | S130: 1 | T130: 1 | U130: 0 | V130: 0 | W130: 0 | X130: 0 | Y130: 0 | Z130: 0 | AA130: =SUM(C130:Z130) -> 12 | AB130: =AA130*SUM($C$14) -> 624
B131: Sunday | C131: 0 | D131: 0 | E131: 0 | F131: 0 | G131: 0 | H131: 0 | I131: 0 | J131: 0 | K131: 0 | L131: 0 | M131: 0 | N131: 0 | O131: 0 | P131: 0 | Q131: 0 | R131: 0 | S131: 0 | T131: 0 | U131: 0 | V131: 0 | W131: 0 | X131: 0 | Y131: 0 | Z131: 0 | AA131: =SUM(C131:Z131) -> 0 | AB131: =AA131*$C$15 -> 0
B132: Holiday | C132: 0 | D132: 0 | E132: 0 | F132: 0 | G132: 0 | H132: 0 | I132: 0 | J132: 0 | K132: 0 | L132: 0 | M132: 0 | N132: 0 | O132: 0 | P132: 0 | Q132: 0 | R132: 0 | S132: 0 | T132: 0 | U132: 0 | V132: 0 | W132: 0 | X132: 0 | Y132: 0 | Z132: 0 | AA132: =SUM(C132:Z132) -> 0 | AB132: =AA132*SUM($C$8) -> 0
B133: Total hours of operation per year | AB133: =SUM(AB129:AB132) -> 4624
B135: Schedule Name: | C135: Office Occupancy Schedule
C137: 12-1AM | D137: 1-2AM | E137: 2-3AM | F137: 3-4AM | G137: 4-5AM | H137: 5-6AM | I137: 6-7AM | J137: 7-8AM | K137: 8-9 AM | L137: 9-10AM | M137: 10-11AM | N137: 11AM-12PM | O137: 12-1PM | P137: 1-2PM | Q137: 2-3PM | R137: 3-4PM | S137: 4-5PM | T137: 5-6PM | U137: 6-7PM | V137: 7-8PM | W137: 8-9PM | X137: 9-10PM | Y137: 10-11PM | Z137: 11-12PM | AA137: EFLH/day | AB137: EFLH/year
B138: Weekday | C138: 0 | D138: 0 | E138: 0 | F138: 0 | G138: 0 | H138: 0 | I138: 0.1 | J138: 0.2 | K138: 0.95 | L138: 0.95 | M138: 0.95 | N138: 0.95 | O138: 0.5 | P138: 0.95 | Q138: 0.95 | R138: 0.95 | S138: 0.95 | T138: 0.3 | U138: 0.1 | V138: 0.1 | W138: 0.1 | X138: 0.1 | Y138: 0.05 | Z138: 0.05 | AA138: =SUM(C138:Z138) -> 9.2 | AB138: =AA138*SUM($C$9:$C$13) -> 2300
B139: Saturday | C139: 0 | D139: 0 | E139: 0 | F139: 0 | G139: 0 | H139: 0 | I139: 0.1 | J139: 0.1 | K139: 0.3 | L139: 0.3 | M139: 0.3 | N139: 0.3 | O139: 0.1 | P139: 0.1 | Q139: 0.1 | R139: 0.1 | S139: 0.1 | T139: 0.05 | U139: 0.05 | V139: 0 | W139: 0 | X139: 0 | Y139: 0 | Z139: 0 | AA139: =SUM(C139:Z139) -> 2 | AB139: =AA139*SUM($C$14) -> 104
B140: Sunday | C140: 0 | D140: 0 | E140: 0 | F140: 0 | G140: 0 | H140: 0 | I140: 0.05 | J140: 0.05 | K140: 0.05 | L140: 0.05 | M140: 0.05 | N140: 0.05 | O140: 0.05 | P140: 0.05 | Q140: 0.05 | R140: 0.05 | S140: 0.05 | T140: 0.05 | U140: 0 | V140: 0 | W140: 0 | X140: 0 | Y140: 0 | Z140: 0 | AA140: =SUM(C140:Z140) -> 0.6 | AB140: =AA140*$C$15 -> 31.2
B141: Holiday | C141: 0 | D141: 0 | E141: 0 | F141: 0 | G141: 0 | H141: 0 | I141: 0.05 | J141: 0.05 | K141: 0.05 | L141: 0.05 | M141: 0.05 | N141: 0.05 | O141: 0.05 | P141: 0.05 | Q141: 0.05 | R141: 0.05 | S141: 0.05 | T141: 0.05 | U141: 0 | V141: 0 | W141: 0 | X141: 0 | Y141: 0 | Z141: 0 | AA141: =SUM(C141:Z141) -> 0.6 | AB141: =AA141*SUM($C$8) -> 6.6
B142: Total Equivalent Full Load Hours of Operation per Year | AB142: =SUM(AB138:AB141) -> 2441.8
B144: Schedule Name: | C144: Office Lighting Schedule
C146: 12-1AM | D146: 1-2AM | E146: 2-3AM | F146: 3-4AM | G146: 4-5AM | H146: 5-6AM | I146: 6-7AM | J146: 7-8AM | K146: 8-9 AM | L146: 9-10AM | M146: 10-11AM | N146: 11AM-12PM | O146: 12-1PM | P146: 1-2PM | Q146: 2-3PM | R146: 3-4PM | S146: 4-5PM | T146: 5-6PM | U146: 6-7PM | V146: 7-8PM | W146: 8-9PM | X146: 9-10PM | Y146: 10-11PM | Z146: 11-12PM | AA146: EFLH/day | AB146: EFLH/year
B147: Weekday | C147: 0.05 | D147: 0.05 | E147: 0.05 | F147: 0.05 | G147: 0.05 | H147: 0.1 | I147: 0.1 | J147: 0.3 | K147: 0.65 | L147: 0.65 | M147: 0.65 | N147: 0.65 | O147: 0.55 | P147: 0.65 | Q147: 0.65 | R147: 0.65 | S147: 0.65 | T147: 0.35 | U147: 0.3 | V147: 0.3 | W147: 0.2 | X147: 0.2 | Y147: 0.1 | Z147: 0.05 | AA147: =SUM(C147:Z147) -> 8 | AB147: =AA147*SUM($C$9:$C$13) -> 2000
B148: Saturday | C148: 0.05 | D148: 0.05 | E148: 0.05 | F148: 0.05 | G148: 0.05 | H148: 0.05 | I148: 0.1 | J148: 0.1 | K148: 0.3 | L148: 0.3 | M148: 0.3 | N148: 0.3 | O148: 0.15 | P148: 0.15 | Q148: 0.15 | R148: 0.15 | S148: 0.15 | T148: 0.05 | U148: 0.05 | V148: 0.05 | W148: 0.05 | X148: 0.05 | Y148: 0.05 | Z148: 0.05 | AA148: =SUM(C148:Z148) -> 2.8 | AB148: =AA148*SUM($C$14) -> 145.6
B149: Sunday | C149: 0.05 | D149: 0.05 | E149: 0.05 | F149: 0.05 | G149: 0.05 | H149: 0.05 | I149: 0.05 | J149: 0.05 | K149: 0.05 | L149: 0.05 | M149: 0.05 | N149: 0.05 | O149: 0.05 | P149: 0.05 | Q149: 0.05 | R149: 0.05 | S149: 0.05 | T149: 0.05 | U149: 0.05 | V149: 0.05 | W149: 0.05 | X149: 0.05 | Y149: 0.05 | Z149: 0.05 | AA149: =SUM(C149:Z149) -> 1.2 | AB149: =AA149*$C$15 -> 62.4
B150: Holiday | C150: 0.05 | D150: 0.05 | E150: 0.05 | F150: 0.05 | G150: 0.05 | H150: 0.05 | I150: 0.05 | J150: 0.05 | K150: 0.05 | L150: 0.05 | M150: 0.05 | N150: 0.05 | O150: 0.05 | P150: 0.05 | Q150: 0.05 | R150: 0.05 | S150: 0.05 | T150: 0.05 | U150: 0.05 | V150: 0.05 | W150: 0.05 | X150: 0.05 | Y150: 0.05 | Z150: 0.05 | AA150: =SUM(C150:Z150) -> 1.2 | AB150: =AA150*SUM($C$8) -> 13.2
B151: Total Equivalent Full Load Hours of Operation per Year | AB151: =SUM(AB147:AB150) -> 2221.2
B153: Schedule Name: | C153: Office Receptacle Schedule
C155: 12-1AM | D155: 1-2AM | E155: 2-3AM | F155: 3-4AM | G155: 4-5AM | H155: 5-6AM | I155: 6-7AM | J155: 7-8AM | K155: 8-9 AM | L155: 9-10AM | M155: 10-11AM | N155: 11AM-12PM | O155: 12-1PM | P155: 1-2PM | Q155: 2-3PM | R155: 3-4PM | S155: 4-5PM | T155: 5-6PM | U155: 6-7PM | V155: 7-8PM | W155: 8-9PM | X155: 9-10PM | Y155: 10-11PM | Z155: 11-12PM | AA155: EFLH/day | AB155: EFLH/year
B156: Weekday | C156: 0.05 | D156: 0.05 | E156: 0.05 | F156: 0.05 | G156: 0.05 | H156: 0.1 | I156: 0.1 | J156: 0.3 | K156: 0.9 | L156: 0.9 | M156: 0.9 | N156: 0.9 | O156: 0.8 | P156: 0.9 | Q156: 0.9 | R156: 0.9 | S156: 0.9 | T156: 0.5 | U156: 0.3 | V156: 0.3 | W156: 0.2 | X156: 0.2 | Y156: 0.1 | Z156: 0.05 | AA156: =SUM(C156:Z156) -> 10.4 | AB156: =AA156*SUM($C$9:$C$13) -> 2600
B157: Saturday | C157: 0.05 | D157: 0.05 | E157: 0.05 | F157: 0.05 | G157: 0.05 | H157: 0.05 | I157: 0.1 | J157: 0.1 | K157: 0.3 | L157: 0.3 | M157: 0.3 | N157: 0.3 | O157: 0.15 | P157: 0.15 | Q157: 0.15 | R157: 0.15 | S157: 0.15 | T157: 0.05 | U157: 0.05 | V157: 0.05 | W157: 0.05 | X157: 0.05 | Y157: 0.05 | Z157: 0.05 | AA157: =SUM(C157:Z157) -> 2.8 | AB157: =AA157*SUM($C$14) -> 145.6
B158: Sunday | C158: 0.05 | D158: 0.05 | E158: 0.05 | F158: 0.05 | G158: 0.05 | H158: 0.05 | I158: 0.05 | J158: 0.05 | K158: 0.05 | L158: 0.05 | M158: 0.05 | N158: 0.05 | O158: 0.05 | P158: 0.05 | Q158: 0.05 | R158: 0.05 | S158: 0.05 | T158: 0.05 | U158: 0.05 | V158: 0.05 | W158: 0.05 | X158: 0.05 | Y158: 0.05 | Z158: 0.05 | AA158: =SUM(C158:Z158) -> 1.2 | AB158: =AA158*$C$15 -> 62.4
B159: Holiday | C159: 0.05 | D159: 0.05 | E159: 0.05 | F159: 0.05 | G159: 0.05 | H159: 0.05 | I159: 0.05 | J159: 0.05 | K159: 0.05 | L159: 0.05 | M159: 0.05 | N159: 0.05 | O159: 0.05 | P159: 0.05 | Q159: 0.05 | R159: 0.05 | S159: 0.05 | T159: 0.05 | U159: 0.05 | V159: 0.05 | W159: 0.05 | X159: 0.05 | Y159: 0.05 | Z159: 0.05 | AA159: =SUM(C159:Z159) -> 1.2 | AB159: =AA159*SUM($C$8) -> 13.2
B160: Total Equivalent Full Load Hours of Operation per Year | AB160: =SUM(AB156:AB159) -> 2821.2
B162: Schedule Name: | C162: Office DHW Schedule
C164: 12-1AM | D164: 1-2AM | E164: 2-3AM | F164: 3-4AM | G164: 4-5AM | H164: 5-6AM | I164: 6-7AM | J164: 7-8AM | K164: 8-9 AM | L164: 9-10AM | M164: 10-11AM | N164: 11AM-12PM | O164: 12-1PM | P164: 1-2PM | Q164: 2-3PM | R164: 3-4PM | S164: 4-5PM | T164: 5-6PM | U164: 6-7PM | V164: 7-8PM | W164: 8-9PM | X164: 9-10PM | Y164: 10-11PM | Z164: 11-12PM | AA164: EFLH/day | AB164: EFLH/year
B165: Weekday | C165: 0.05 | D165: 0.05 | E165: 0.05 | F165: 0.05 | G165: 0.05 | H165: 0.08 | I165: 0.07 | J165: 0.19 | K165: 0.35 | L165: 0.38 | M165: 0.39 | N165: 0.47 | O165: 0.57 | P165: 0.54 | Q165: 0.34 | R165: 0.33 | S165: 0.44 | T165: 0.26 | U165: 0.21 | V165: 0.15 | W165: 0.17 | X165: 0.08 | Y165: 0.05 | Z165: 0.05 | AA165: =SUM(C165:Z165) -> 5.37 | AB165: =AA165*SUM($C$9:$C$13) -> 1342.5
B166: Saturday | C166: 0.05 | D166: 0.05 | E166: 0.05 | F166: 0.05 | G166: 0.05 | H166: 0.08 | I166: 0.07 | J166: 0.11 | K166: 0.15 | L166: 0.21 | M166: 0.19 | N166: 0.23 | O166: 0.2 | P166: 0.19 | Q166: 0.15 | R166: 0.12 | S166: 0.14 | T166: 0.07 | U166: 0.07 | V166: 0.07 | W166: 0.07 | X166: 0.09 | Y166: 0.05 | Z166: 0.05 | AA166: =SUM(C166:Z166) -> 2.56 | AB166: =AA166*SUM($C$14) -> 133.12
B167: Sunday | C167: 0.04 | D167: 0.04 | E167: 0.04 | F167: 0.04 | G167: 0.04 | H167: 0.07 | I167: 0.04 | J167: 0.04 | K167: 0.04 | L167: 0.04 | M167: 0.04 | N167: 0.06 | O167: 0.06 | P167: 0.09 | Q167: 0.06 | R167: 0.04 | S167: 0.04 | T167: 0.04 | U167: 0.04 | V167: 0.04 | W167: 0.04 | X167: 0.07 | Y167: 0.04 | Z167: 0.04 | AA167: =SUM(C167:Z167) -> 1.13 | AB167: =AA167*$C$15 -> 58.76
B168: Hoilday | C168: 0.04 | D168: 0.04 | E168: 0.04 | F168: 0.04 | G168: 0.04 | H168: 0.07 | I168: 0.04 | J168: 0.04 | K168: 0.04 | L168: 0.04 | M168: 0.04 | N168: 0.06 | O168: 0.06 | P168: 0.09 | Q168: 0.06 | R168: 0.04 | S168: 0.04 | T168: 0.04 | U168: 0.04 | V168: 0.04 | W168: 0.04 | X168: 0.07 | Y168: 0.04 | Z168: 0.04 | AA168: =SUM(C168:Z168) -> 1.13 | AB168: =AA168*SUM($C$8) -> 12.43
B169: Total Equivalent Full Load Hours of Operation per Year | AB169: =SUM(AB165:AB168) -> 1546.81
B171: Schedule Name: | C171: Office Elevator Schedule
C173: 12-1AM | D173: 1-2AM | E173: 2-3AM | F173: 3-4AM | G173: 4-5AM | H173: 5-6AM | I173: 6-7AM | J173: 7-8AM | K173: 8-9 AM | L173: 9-10AM | M173: 10-11AM | N173: 11AM-12PM | O173: 12-1PM | P173: 1-2PM | Q173: 2-3PM | R173: 3-4PM | S173: 4-5PM | T173: 5-6PM | U173: 6-7PM | V173: 7-8PM | W173: 8-9PM | X173: 9-10PM | Y173: 10-11PM | Z173: 11-12PM | AA173: EFLH/day | AB173: EFLH/year
B174: Weekday | C174: 0 | D174: 0 | E174: 0 | F174: 0 | G174: 0 | H174: 0 | I174: 0 | J174: 0.35 | K174: 0.69 | L174: 0.43 | M174: 0.37 | N174: 0.43 | O174: 0.58 | P174: 0.48 | Q174: 0.37 | R174: 0.37 | S174: 0.46 | T174: 0.62 | U174: 0.2 | V174: 0.12 | W174: 0.04 | X174: 0.04 | Y174: 0 | Z174: 0 | AA174: =SUM(C174:Z174) -> 5.55 | AB174: =AA174*SUM($C$9:$C$13) -> 1387.5
B175: Saturday | C175: 0 | D175: 0 | E175: 0 | F175: 0 | G175: 0 | H175: 0 | I175: 0 | J175: 0.16 | K175: 0.14 | L175: 0.21 | M175: 0.18 | N175: 0.25 | O175: 0.21 | P175: 0.13 | Q175: 0.08 | R175: 0.04 | S175: 0.05 | T175: 0.06 | U175: 0 | V175: 0 | W175: 0 | X175: 0 | Y175: 0 | Z175: 0 | AA175: =SUM(C175:Z175) -> 1.51 | AB175: =AA175*SUM($C$14) -> 78.52
B176: Sunday | C176: 0 | D176: 0 | E176: 0 | F176: 0 | G176: 0 | H176: 0 | I176: 0 | J176: 0 | K176: 0 | L176: 0 | M176: 0 | N176: 0 | O176: 0 | P176: 0 | Q176: 0 | R176: 0 | S176: 0 | T176: 0 | U176: 0 | V176: 0 | W176: 0 | X176: 0 | Y176: 0 | Z176: 0 | AA176: =SUM(C176:Z176) -> 0 | AB176: =AA176*$C$15 -> 0
B177: Holiday | C177: 0 | D177: 0 | E177: 0 | F177: 0 | G177: 0 | H177: 0 | I177: 0 | J177: 0 | K177: 0 | L177: 0 | M177: 0 | N177: 0 | O177: 0 | P177: 0 | Q177: 0 | R177: 0 | S177: 0 | T177: 0 | U177: 0 | V177: 0 | W177: 0 | X177: 0 | Y177: 0 | Z177: 0 | AA177: =SUM(C177:Z177) -> 0 | AB177: =AA177*SUM($C$8) -> 0
B178: Total Equivalent Full Load Hours of Operation per Year | AB178: =SUM(AB174:AB177) -> 1466.02
B180: School Occupancy
B182: Schedule Name: | C182: School HVAC System - ON/OFF Schedule
C184: 12-1AM | D184: 1-2AM | E184: 2-3AM | F184: 3-4AM | G184: 4-5AM | H184: 5-6AM | I184: 6-7AM | J184: 7-8AM | K184: 8-9 AM | L184: 9-10AM | M184: 10-11AM | N184: 11AM-12PM | O184: 12-1PM | P184: 1-2PM | Q184: 2-3PM | R184: 3-4PM | S184: 4-5PM | T184: 5-6PM | U184: 6-7PM | V184: 7-8PM | W184: 8-9PM | X184: 9-10PM | Y184: 10-11PM | Z184: 11-12PM | AA184: Hours/day | AB184: Hours/year
B185: Weekday | C185: 0 | D185: 0 | E185: 0 | F185: 0 | G185: 0 | H185: 0 | I185: 0 | J185: 1 | K185: 1 | L185: 1 | M185: 1 | N185: 1 | O185: 1 | P185: 1 | Q185: 1 | R185: 1 | S185: 1 | T185: 1 | U185: 1 | V185: 1 | W185: 1 | X185: 1 | Y185: 0 | Z185: 0 | AA185: =SUM(C185:Z185) -> 15 | AB185: =AA185*SUM($C$9:$C$13) -> 3750
B186: Saturday | C186: 0 | D186: 0 | E186: 0 | F186: 0 | G186: 0 | H186: 0 | I186: 0 | J186: 0 | K186: 1 | L186: 1 | M186: 1 | N186: 1 | O186: 1 | P186: 0 | Q186: 0 | R186: 0 | S186: 0 | T186: 0 | U186: 0 | V186: 0 | W186: 0 | X186: 0 | Y186: 0 | Z186: 0 | AA186: =SUM(C186:Z186) -> 5 | AB186: =AA186*SUM($C$14) -> 260
B187: Sunday | C187: 0 | D187: 0 | E187: 0 | F187: 0 | G187: 0 | H187: 0 | I187: 0 | J187: 0 | K187: 0 | L187: 0 | M187: 0 | N187: 0 | O187: 0 | P187: 0 | Q187: 0 | R187: 0 | S187: 0 | T187: 0 | U187: 0 | V187: 0 | W187: 0 | X187: 0 | Y187: 0 | Z187: 0 | AA187: =SUM(C187:Z187) -> 0 | AB187: =AA187*$C$15 -> 0
B188: Holiday | C188: 0 | D188: 0 | E188: 0 | F188: 0 | G188: 0 | H188: 0 | I188: 0 | J188: 0 | K188: 0 | L188: 0 | M188: 0 | N188: 0 | O188: 0 | P188: 0 | Q188: 0 | R188: 0 | S188: 0 | T188: 0 | U188: 0 | V188: 0 | W188: 0 | X188: 0 | Y188: 0 | Z188: 0 | AA188: =SUM(C188:Z188) -> 0 | AB188: =AA188*SUM($C$8) -> 0
B189: Total hours of operation per year | AB189: =SUM(AB185:AB188) -> 4010
B191: Schedule Name: | C191: School Occupancy Schedule
C193: 12-1AM | D193: 1-2AM | E193: 2-3AM | F193: 3-4AM | G193: 4-5AM | H193: 5-6AM | I193: 6-7AM | J193: 7-8AM | K193: 8-9 AM | L193: 9-10AM | M193: 10-11AM | N193: 11AM-12PM | O193: 12-1PM | P193: 1-2PM | Q193: 2-3PM | R193: 3-4PM | S193: 4-5PM | T193: 5-6PM | U193: 6-7PM | V193: 7-8PM | W193: 8-9PM | X193: 9-10PM | Y193: 10-11PM | Z193: 11-12PM | AA193: EFLH/day | AB193: EFLH/year
B194: Weekday | C194: 0 | D194: 0 | E194: 0 | F194: 0 | G194: 0 | H194: 0 | I194: 0 | J194: 0.05 | K194: 0.75 | L194: 0.9 | M194: 0.9 | N194: 0.8 | O194: 0.8 | P194: 0.8 | Q194: 0.8 | R194: 0.45 | S194: 0.15 | T194: 0.05 | U194: 0.15 | V194: 0.2 | W194: 0.2 | X194: 0.1 | Y194: 0 | Z194: 0 | AA194: =SUM(C194:Z194) -> 7.1 | AB194: =AA194*SUM($C$9:$C$13) -> 1775
B195: Saturday | C195: 0 | D195: 0 | E195: 0 | F195: 0 | G195: 0 | H195: 0 | I195: 0 | J195: 0 | K195: 0.1 | L195: 0.1 | M195: 0.1 | N195: 0.1 | O195: 0.1 | P195: 0 | Q195: 0 | R195: 0 | S195: 0 | T195: 0 | U195: 0 | V195: 0 | W195: 0 | X195: 0 | Y195: 0 | Z195: 0 | AA195: =SUM(C195:Z195) -> 0.5 | AB195: =AA195*SUM($C$14) -> 26
B196: Sunday | C196: 0 | D196: 0 | E196: 0 | F196: 0 | G196: 0 | H196: 0 | I196: 0 | J196: 0 | K196: 0 | L196: 0 | M196: 0 | N196: 0 | O196: 0 | P196: 0 | Q196: 0 | R196: 0 | S196: 0 | T196: 0 | U196: 0 | V196: 0 | W196: 0 | X196: 0 | Y196: 0 | Z196: 0 | AA196: =SUM(C196:Z196) -> 0 | AB196: =AA196*$C$15 -> 0
B197: Holiday | C197: 0 | D197: 0 | E197: 0 | F197: 0 | G197: 0 | H197: 0 | I197: 0 | J197: 0 | K197: 0 | L197: 0 | M197: 0 | N197: 0 | O197: 0 | P197: 0 | Q197: 0 | R197: 0 | S197: 0 | T197: 0 | U197: 0 | V197: 0 | W197: 0 | X197: 0 | Y197: 0 | Z197: 0 | AA197: =SUM(C197:Z197) -> 0 | AB197: =AA197*SUM($C$8) -> 0
B198: Total Equivalent Full Load Hours of Operation per Year | AB198: =SUM(AB194:AB197) -> 1801
B200: Schedule Name: | C200: School Lighting Schedule
C202: 12-1AM | D202: 1-2AM | E202: 2-3AM | F202: 3-4AM | G202: 4-5AM | H202: 5-6AM | I202: 6-7AM | J202: 7-8AM | K202: 8-9 AM | L202: 9-10AM | M202: 10-11AM | N202: 11AM-12PM | O202: 12-1PM | P202: 1-2PM | Q202: 2-3PM | R202: 3-4PM | S202: 4-5PM | T202: 5-6PM | U202: 6-7PM | V202: 7-8PM | W202: 8-9PM | X202: 9-10PM | Y202: 10-11PM | Z202: 11-12PM | AA202: EFLH/day | AB202: EFLH/year
B203: Weekday | C203: 0.05 | D203: 0.05 | E203: 0.05 | F203: 0.05 | G203: 0.05 | H203: 0.05 | I203: 0.05 | J203: 0.3 | K203: 0.6 | L203: 0.65 | M203: 0.65 | N203: 0.65 | O203: 0.55 | P203: 0.55 | Q203: 0.55 | R203: 0.5 | S203: 0.35 | T203: 0.35 | U203: 0.35 | V203: 0.35 | W203: 0.35 | X203: 0.3 | Y203: 0.05 | Z203: 0.05 | AA203: =SUM(C203:Z203) -> 7.5 | AB203: =AA203*SUM($C$9:$C$13) -> 1875
B204: Saturday | C204: 0.05 | D204: 0.05 | E204: 0.05 | F204: 0.05 | G204: 0.05 | H204: 0.05 | I204: 0.05 | J204: 0.05 | K204: 0.15 | L204: 0.15 | M204: 0.15 | N204: 0.15 | O204: 0.15 | P204: 0.05 | Q204: 0.05 | R204: 0.05 | S204: 0.05 | T204: 0.05 | U204: 0.05 | V204: 0.05 | W204: 0.05 | X204: 0.05 | Y204: 0.05 | Z204: 0.05 | AA204: =SUM(C204:Z204) -> 1.7 | AB204: =AA204*SUM($C$14) -> 88.4
B205: Sunday | C205: 0.05 | D205: 0.05 | E205: 0.05 | F205: 0.05 | G205: 0.05 | H205: 0.05 | I205: 0.05 | J205: 0.05 | K205: 0.05 | L205: 0.05 | M205: 0.05 | N205: 0.05 | O205: 0.05 | P205: 0.05 | Q205: 0.05 | R205: 0.05 | S205: 0.05 | T205: 0.05 | U205: 0.05 | V205: 0.05 | W205: 0.05 | X205: 0.05 | Y205: 0.05 | Z205: 0.05 | AA205: =SUM(C205:Z205) -> 1.2 | AB205: =AA205*$C$15 -> 62.4
B206: Holiday | C206: 0.05 | D206: 0.05 | E206: 0.05 | F206: 0.05 | G206: 0.05 | H206: 0.05 | I206: 0.05 | J206: 0.05 | K206: 0.05 | L206: 0.05 | M206: 0.05 | N206: 0.05 | O206: 0.05 | P206: 0.05 | Q206: 0.05 | R206: 0.05 | S206: 0.05 | T206: 0.05 | U206: 0.05 | V206: 0.05 | W206: 0.05 | X206: 0.05 | Y206: 0.05 | Z206: 0.05 | AA206: =SUM(C206:Z206) -> 1.2 | AB206: =AA206*SUM($C$8) -> 13.2
B207: Total Equivalent Full Load Hours of Operation per Year | AB207: =SUM(AB203:AB206) -> 2039
B209: Schedule Name: | C209: School Receptacle Schedule
C211: 12-1AM | D211: 1-2AM | E211: 2-3AM | F211: 3-4AM | G211: 4-5AM | H211: 5-6AM | I211: 6-7AM | J211: 7-8AM | K211: 8-9 AM | L211: 9-10AM | M211: 10-11AM | N211: 11AM-12PM | O211: 12-1PM | P211: 1-2PM | Q211: 2-3PM | R211: 3-4PM | S211: 4-5PM | T211: 5-6PM | U211: 6-7PM | V211: 7-8PM | W211: 8-9PM | X211: 9-10PM | Y211: 10-11PM | Z211: 11-12PM | AA211: EFLH/day | AB211: EFLH/year
B212: Weekday | C212: 0.05 | D212: 0.05 | E212: 0.05 | F212: 0.05 | G212: 0.05 | H212: 0.05 | I212: 0.05 | J212: 0.3 | K212: 0.85 | L212: 0.95 | M212: 0.95 | N212: 0.95 | O212: 0.8 | P212: 0.8 | Q212: 0.8 | R212: 0.7 | S212: 0.5 | T212: 0.5 | U212: 0.35 | V212: 0.35 | W212: 0.35 | X212: 0.3 | Y212: 0.05 | Z212: 0.05 | AA212: =SUM(C212:Z212) -> 9.9 | AB212: =AA212*SUM($C$9:$C$13) -> 2475
B213: Saturday | C213: 0.05 | D213: 0.05 | E213: 0.05 | F213: 0.05 | G213: 0.05 | H213: 0.05 | I213: 0.05 | J213: 0.05 | K213: 0.15 | L213: 0.15 | M213: 0.15 | N213: 0.15 | O213: 0.15 | P213: 0.05 | Q213: 0.05 | R213: 0.05 | S213: 0.05 | T213: 0.05 | U213: 0.05 | V213: 0.05 | W213: 0.05 | X213: 0.05 | Y213: 0.05 | Z213: 0.05 | AA213: =SUM(C213:Z213) -> 1.7 | AB213: =AA213*SUM($C$14) -> 88.4
B214: Sunday | C214: 0.05 | D214: 0.05 | E214: 0.05 | F214: 0.05 | G214: 0.05 | H214: 0.05 | I214: 0.05 | J214: 0.05 | K214: 0.05 | L214: 0.05 | M214: 0.05 | N214: 0.05 | O214: 0.05 | P214: 0.05 | Q214: 0.05 | R214: 0.05 | S214: 0.05 | T214: 0.05 | U214: 0.05 | V214: 0.05 | W214: 0.05 | X214: 0.05 | Y214: 0.05 | Z214: 0.05 | AA214: =SUM(C214:Z214) -> 1.2 | AB214: =AA214*$C$15 -> 62.4
B215: Holiday | C215: 0.05 | D215: 0.05 | E215: 0.05 | F215: 0.05 | G215: 0.05 | H215: 0.05 | I215: 0.05 | J215: 0.05 | K215: 0.05 | L215: 0.05 | M215: 0.05 | N215: 0.05 | O215: 0.05 | P215: 0.05 | Q215: 0.05 | R215: 0.05 | S215: 0.05 | T215: 0.05 | U215: 0.05 | V215: 0.05 | W215: 0.05 | X215: 0.05 | Y215: 0.05 | Z215: 0.05 | AA215: =SUM(C215:Z215) -> 1.2 | AB215: =AA215*SUM($C$8) -> 13.2
B216: Total Equivalent Full Load Hours of Operation per Year | AB216: =SUM(AB212:AB215) -> 2639
B218: Schedule Name: | C218: School DHW Schedule
C220: 12-1AM | D220: 1-2AM | E220: 2-3AM | F220: 3-4AM | G220: 4-5AM | H220: 5-6AM | I220: 6-7AM | J220: 7-8AM | K220: 8-9 AM | L220: 9-10AM | M220: 10-11AM | N220: 11AM-12PM | O220: 12-1PM | P220: 1-2PM | Q220: 2-3PM | R220: 3-4PM | S220: 4-5PM | T220: 5-6PM | U220: 6-7PM | V220: 7-8PM | W220: 8-9PM | X220: 9-10PM | Y220: 10-11PM | Z220: 11-12PM | AA220: EFLH/day | AB220: EFLH/year
B221: Weekday | C221: 0.05 | D221: 0.05 | E221: 0.05 | F221: 0.05 | G221: 0.05 | H221: 0.05 | I221: 0.05 | J221: 0.1 | K221: 0.34 | L221: 0.6 | M221: 0.63 | N221: 0.72 | O221: 0.79 | P221: 0.83 | Q221: 0.61 | R221: 0.65 | S221: 0.1 | T221: 0.1 | U221: 0.19 | V221: 0.25 | W221: 0.22 | X221: 0.22 | Y221: 0.12 | Z221: 0.09 | AA221: =SUM(C221:Z221) -> 6.91 | AB221: =AA221*SUM($C$9:$C$13) -> 1727.5
B222: Saturday | C222: 0.03 | D222: 0.03 | E222: 0.03 | F222: 0.03 | G222: 0.03 | H222: 0.03 | I222: 0.03 | J222: 0.03 | K222: 0.03 | L222: 0.05 | M222: 0.05 | N222: 0.05 | O222: 0.05 | P222: 0.03 | Q222: 0.03 | R222: 0.03 | S222: 0.03 | T222: 0.03 | U222: 0.03 | V222: 0.03 | W222: 0.03 | X222: 0.03 | Y222: 0.03 | Z222: 0.03 | AA222: =SUM(C222:Z222) -> 0.8 | AB222: =AA222*SUM($C$14) -> 41.6
B223: Sunday | C223: 0.03 | D223: 0.03 | E223: 0.03 | F223: 0.03 | G223: 0.03 | H223: 0.03 | I223: 0.03 | J223: 0.03 | K223: 0.03 | L223: 0.05 | M223: 0.05 | N223: 0.05 | O223: 0.05 | P223: 0.05 | Q223: 0.05 | R223: 0.03 | S223: 0.03 | T223: 0.03 | U223: 0.03 | V223: 0.03 | W223: 0.03 | X223: 0.03 | Y223: 0.03 | Z223: 0.03 | AA223: =SUM(C223:Z223) -> 0.84 | AB223: =AA223*$C$15 -> 43.68
B224: Holiday | C224: 0.03 | D224: 0.03 | E224: 0.03 | F224: 0.03 | G224: 0.03 | H224: 0.03 | I224: 0.03 | J224: 0.03 | K224: 0.03 | L224: 0.05 | M224: 0.05 | N224: 0.05 | O224: 0.05 | P224: 0.05 | Q224: 0.05 | R224: 0.03 | S224: 0.03 | T224: 0.03 | U224: 0.03 | V224: 0.03 | W224: 0.03 | X224: 0.03 | Y224: 0.03 | Z224: 0.03 | AA224: =SUM(C224:Z224) -> 0.84 | AB224: =AA224*SUM($C$8) -> 9.24
B225: Total Equivalent Full Load Hours of Operation per Year | AB225: =SUM(AB221:AB224) -> 1822.02
B227: Schedule Name: | C227: School Elevator Schedule
C229: 12-1AM | D229: 1-2AM | E229: 2-3AM | F229: 3-4AM | G229: 4-5AM | H229: 5-6AM | I229: 6-7AM | J229: 7-8AM | K229: 8-9 AM | L229: 9-10AM | M229: 10-11AM | N229: 11AM-12PM | O229: 12-1PM | P229: 1-2PM | Q229: 2-3PM | R229: 3-4PM | S229: 4-5PM | T229: 5-6PM | U229: 6-7PM | V229: 7-8PM | W229: 8-9PM | X229: 9-10PM | Y229: 10-11PM | Z229: 11-12PM | AA229: EFLH/day | AB229: EFLH/year
B230: Weekday | C230: 0 | D230: 0 | E230: 0 | F230: 0 | G230: 0 | H230: 0 | I230: 0 | J230: 0 | K230: 0.3 | L230: 0.3 | M230: 0.3 | N230: 0.3 | O230: 0.3 | P230: 0.3 | Q230: 0.3 | R230: 0.15 | S230: 0 | T230: 0 | U230: 0 | V230: 0 | W230: 0 | X230: 0 | Y230: 0 | Z230: 0 | AA230: =SUM(C230:Z230) -> 2.25 | AB230: =AA230*SUM($C$9:$C$13) -> 562.5
B231: Saturday | C231: 0 | D231: 0 | E231: 0 | F231: 0 | G231: 0 | H231: 0 | I231: 0 | J231: 0 | K231: 0 | L231: 0 | M231: 0 | N231: 0 | O231: 0 | P231: 0 | Q231: 0 | R231: 0 | S231: 0 | T231: 0 | U231: 0 | V231: 0 | W231: 0 | X231: 0 | Y231: 0 | Z231: 0 | AA231: =SUM(C231:Z231) -> 0 | AB231: =AA231*SUM($C$14) -> 0
B232: Sunday | C232: 0 | D232: 0 | E232: 0 | F232: 0 | G232: 0 | H232: 0 | I232: 0 | J232: 0 | K232: 0 | L232: 0 | M232: 0 | N232: 0 | O232: 0 | P232: 0 | Q232: 0 | R232: 0 | S232: 0 | T232: 0 | U232: 0 | V232: 0 | W232: 0 | X232: 0 | Y232: 0 | Z232: 0 | AA232: =SUM(C232:Z232) -> 0 | AB232: =AA232*$C$15 -> 0
B233: Holiday | C233: 0 | D233: 0 | E233: 0 | F233: 0 | G233: 0 | H233: 0 | I233: 0 | J233: 0 | K233: 0 | L233: 0 | M233: 0 | N233: 0 | O233: 0 | P233: 0 | Q233: 0 | R233: 0 | S233: 0 | T233: 0 | U233: 0 | V233: 0 | W233: 0 | X233: 0 | Y233: 0 | Z233: 0 | AA233: =SUM(C233:Z233) -> 0 | AB233: =AA233*SUM($C$8) -> 0
B234: Total Equivalent Full Load Hours of Operation per Year | AB234: =SUM(AB230:AB233) -> 562.5
B236: Health Occupancy
B238: Schedule Name: | C238: Health HVAC System - ON/OFF Schedule
C240: 12-1AM | D240: 1-2AM | E240: 2-3AM | F240: 3-4AM | G240: 4-5AM | H240: 5-6AM | I240: 6-7AM | J240: 7-8AM | K240: 8-9 AM | L240: 9-10AM | M240: 10-11AM | N240: 11AM-12PM | O240: 12-1PM | P240: 1-2PM | Q240: 2-3PM | R240: 3-4PM | S240: 4-5PM | T240: 5-6PM | U240: 6-7PM | V240: 7-8PM | W240: 8-9PM | X240: 9-10PM | Y240: 10-11PM | Z240: 11-12PM | AA240: Hours/day | AB240: Hours/year
B241: Weekday | C241: 1 | D241: 1 | E241: 1 | F241: 1 | G241: 1 | H241: 1 | I241: 1 | J241: 1 | K241: 1 | L241: 1 | M241: 1 | N241: 1 | O241: 1 | P241: 1 | Q241: 1 | R241: 1 | S241: 1 | T241: 1 | U241: 1 | V241: 1 | W241: 1 | X241: 1 | Y241: 1 | Z241: 1 | AA241: =SUM(C241:Z241) -> 24 | AB241: =AA241*SUM($C$9:$C$13) -> 6000
B242: Saturday | C242: 1 | D242: 1 | E242: 1 | F242: 1 | G242: 1 | H242: 1 | I242: 1 | J242: 1 | K242: 1 | L242: 1 | M242: 1 | N242: 1 | O242: 1 | P242: 1 | Q242: 1 | R242: 1 | S242: 1 | T242: 1 | U242: 1 | V242: 1 | W242: 1 | X242: 1 | Y242: 1 | Z242: 1 | AA242: =SUM(C242:Z242) -> 24 | AB242: =AA242*SUM($C$14) -> 1248
B243: Sunday | C243: 1 | D243: 1 | E243: 1 | F243: 1 | G243: 1 | H243: 1 | I243: 1 | J243: 1 | K243: 1 | L243: 1 | M243: 1 | N243: 1 | O243: 1 | P243: 1 | Q243: 1 | R243: 1 | S243: 1 | T243: 1 | U243: 1 | V243: 1 | W243: 1 | X243: 1 | Y243: 1 | Z243: 1 | AA243: =SUM(C243:Z243) -> 24 | AB243: =AA243*$C$15 -> 1248
B244: Holiday | C244: 1 | D244: 1 | E244: 1 | F244: 1 | G244: 1 | H244: 1 | I244: 1 | J244: 1 | K244: 1 | L244: 1 | M244: 1 | N244: 1 | O244: 1 | P244: 1 | Q244: 1 | R244: 1 | S244: 1 | T244: 1 | U244: 1 | V244: 1 | W244: 1 | X244: 1 | Y244: 1 | Z244: 1 | AA244: =SUM(C244:Z244) -> 24 | AB244: =AA244*SUM($C$8) -> 264
B245: Total hours of operation per year | AB245: =SUM(AB241:AB244) -> 8760
B247: Schedule Name: | C247: Health Occupancy Schedule
C249: 12-1AM | D249: 1-2AM | E249: 2-3AM | F249: 3-4AM | G249: 4-5AM | H249: 5-6AM | I249: 6-7AM | J249: 7-8AM | K249: 8-9 AM | L249: 9-10AM | M249: 10-11AM | N249: 11AM-12PM | O249: 12-1PM | P249: 1-2PM | Q249: 2-3PM | R249: 3-4PM | S249: 4-5PM | T249: 5-6PM | U249: 6-7PM | V249: 7-8PM | W249: 8-9PM | X249: 9-10PM | Y249: 10-11PM | Z249: 11-12PM | AA249: EFLH/day | AB249: EFLH/year
B250: Weekday | C250: 0 | D250: 0 | E250: 0 | F250: 0 | G250: 0 | H250: 0 | I250: 0 | J250: 0.1 | K250: 0.5 | L250: 0.8 | M250: 0.8 | N250: 0.8 | O250: 0.8 | P250: 0.8 | Q250: 0.8 | R250: 0.8 | S250: 0.8 | T250: 0.5 | U250: 0.3 | V250: 0.3 | W250: 0.2 | X250: 0.2 | Y250: 0 | Z250: 0 | AA250: =SUM(C250:Z250) -> 8.5 | AB250: =AA250*SUM($C$9:$C$13) -> 2125
B251: Saturday | C251: 0 | D251: 0 | E251: 0 | F251: 0 | G251: 0 | H251: 0 | I251: 0 | J251: 0.1 | K251: 0.3 | L251: 0.4 | M251: 0.4 | N251: 0.4 | O251: 0.4 | P251: 0.4 | Q251: 0.4 | R251: 0.4 | S251: 0.4 | T251: 0.1 | U251: 0.1 | V251: 0 | W251: 0 | X251: 0 | Y251: 0 | Z251: 0 | AA251: =SUM(C251:Z251) -> 3.8 | AB251: =AA251*SUM($C$14) -> 197.6
B252: Sunday | C252: 0 | D252: 0 | E252: 0 | F252: 0 | G252: 0 | H252: 0 | I252: 0 | J252: 0 | K252: 0.05 | L252: 0.05 | M252: 0.05 | N252: 0.05 | O252: 0.05 | P252: 0.05 | Q252: 0.05 | R252: 0.05 | S252: 0 | T252: 0 | U252: 0 | V252: 0 | W252: 0 | X252: 0 | Y252: 0 | Z252: 0 | AA252: =SUM(C252:Z252) -> 0.4 | AB252: =AA252*$C$15 -> 20.8
B253: Holiday | C253: 0 | D253: 0 | E253: 0 | F253: 0 | G253: 0 | H253: 0 | I253: 0 | J253: 0 | K253: 0.05 | L253: 0.05 | M253: 0.05 | N253: 0.05 | O253: 0.05 | P253: 0.05 | Q253: 0.05 | R253: 0.05 | S253: 0 | T253: 0 | U253: 0 | V253: 0 | W253: 0 | X253: 0 | Y253: 0 | Z253: 0 | AA253: =SUM(C253:Z253) -> 0.4 | AB253: =AA253*SUM($C$8) -> 4.4
B254: Total Equivalent Full Load Hours of Operation per Year | AB254: =SUM(AB250:AB253) -> 2347.8
B256: Schedule Name: | C256: Health Lighting Schedule
C258: 12-1AM | D258: 1-2AM | E258: 2-3AM | F258: 3-4AM | G258: 4-5AM | H258: 5-6AM | I258: 6-7AM | J258: 7-8AM | K258: 8-9 AM | L258: 9-10AM | M258: 10-11AM | N258: 11AM-12PM | O258: 12-1PM | P258: 1-2PM | Q258: 2-3PM | R258: 3-4PM | S258: 4-5PM | T258: 5-6PM | U258: 6-7PM | V258: 7-8PM | W258: 8-9PM | X258: 9-10PM | Y258: 10-11PM | Z258: 11-12PM | AA258: EFLH/day | AB258: EFLH/year
B259: Weekday | C259: 0.1 | D259: 0.1 | E259: 0.1 | F259: 0.1 | G259: 0.1 | H259: 0.1 | I259: 0.1 | J259: 0.45 | K259: 0.8 | L259: 0.8 | M259: 0.8 | N259: 0.8 | O259: 0.8 | P259: 0.8 | Q259: 0.8 | R259: 0.8 | S259: 0.3 | T259: 0.3 | U259: 0.3 | V259: 0.3 | W259: 0.3 | X259: 0.3 | Y259: 0.3 | Z259: 0.1 | AA259: =SUM(C259:Z259) -> 9.75 | AB259: =AA259*SUM($C$9:$C$13) -> 2437.5
B260: Saturday | C260: 0.1 | D260: 0.1 | E260: 0.1 | F260: 0.1 | G260: 0.1 | H260: 0.1 | I260: 0.1 | J260: 0.2 | K260: 0.35 | L260: 0.35 | M260: 0.35 | N260: 0.35 | O260: 0.35 | P260: 0.35 | Q260: 0.35 | R260: 0.35 | S260: 0.35 | T260: 0.35 | U260: 0.1 | V260: 0.1 | W260: 0.1 | X260: 0.1 | Y260: 0.1 | Z260: 0.1 | AA260: =SUM(C260:Z260) -> 5 | AB260: =AA260*SUM($C$14) -> 260
B261: Sunday | C261: 0.05 | D261: 0.05 | E261: 0.05 | F261: 0.05 | G261: 0.05 | H261: 0.05 | I261: 0.05 | J261: 0.05 | K261: 0.1 | L261: 0.1 | M261: 0.1 | N261: 0.1 | O261: 0.1 | P261: 0.1 | Q261: 0.1 | R261: 0.1 | S261: 0.05 | T261: 0.05 | U261: 0.05 | V261: 0.05 | W261: 0.05 | X261: 0.05 | Y261: 0.05 | Z261: 0.05 | AA261: =SUM(C261:Z261) -> 1.6 | AB261: =AA261*$C$15 -> 83.2
B262: Holiday | C262: 0.05 | D262: 0.05 | E262: 0.05 | F262: 0.05 | G262: 0.05 | H262: 0.05 | I262: 0.05 | J262: 0.05 | K262: 0.1 | L262: 0.1 | M262: 0.1 | N262: 0.1 | O262: 0.1 | P262: 0.1 | Q262: 0.1 | R262: 0.1 | S262: 0.05 | T262: 0.05 | U262: 0.05 | V262: 0.05 | W262: 0.05 | X262: 0.05 | Y262: 0.05 | Z262: 0.05 | AA262: =SUM(C262:Z262) -> 1.6 | AB262: =AA262*SUM($C$8) -> 17.6
B263: Total Equivalent Full Load Hours of Operation per Year | AB263: =SUM(AB259:AB262) -> 2798.3
B265: Schedule Name: | C265: Health Receptacle Schedule
C267: 12-1AM | D267: 1-2AM | E267: 2-3AM | F267: 3-4AM | G267: 4-5AM | H267: 5-6AM | I267: 6-7AM | J267: 7-8AM | K267: 8-9 AM | L267: 9-10AM | M267: 10-11AM | N267: 11AM-12PM | O267: 12-1PM | P267: 1-2PM | Q267: 2-3PM | R267: 3-4PM | S267: 4-5PM | T267: 5-6PM | U267: 6-7PM | V267: 7-8PM | W267: 8-9PM | X267: 9-10PM | Y267: 10-11PM | Z267: 11-12PM | AA267: EFLH/day | AB267: EFLH/year
B268: Weekday | C268: 0.1 | D268: 0.1 | E268: 0.1 | F268: 0.1 | G268: 0.1 | H268: 0.1 | I268: 0.1 | J268: 0.5 | K268: 0.9 | L268: 0.9 | M268: 0.9 | N268: 0.9 | O268: 0.9 | P268: 0.9 | Q268: 0.9 | R268: 0.9 | S268: 0.3 | T268: 0.3 | U268: 0.3 | V268: 0.3 | W268: 0.3 | X268: 0.3 | Y268: 0.3 | Z268: 0.1 | AA268: =SUM(C268:Z268) -> 10.6 | AB268: =AA268*SUM($C$9:$C$13) -> 2650
B269: Saturday | C269: 0.1 | D269: 0.1 | E269: 0.1 | F269: 0.1 | G269: 0.1 | H269: 0.1 | I269: 0.1 | J269: 0.2 | K269: 0.4 | L269: 0.4 | M269: 0.4 | N269: 0.4 | O269: 0.4 | P269: 0.4 | Q269: 0.4 | R269: 0.4 | S269: 0.4 | T269: 0.4 | U269: 0.1 | V269: 0.1 | W269: 0.1 | X269: 0.1 | Y269: 0.1 | Z269: 0.1 | AA269: =SUM(C269:Z269) -> 5.5 | AB269: =AA269*SUM($C$14) -> 286
B270: Sunday | C270: 0.05 | D270: 0.05 | E270: 0.05 | F270: 0.05 | G270: 0.05 | H270: 0.05 | I270: 0.05 | J270: 0.05 | K270: 0.1 | L270: 0.1 | M270: 0.1 | N270: 0.1 | O270: 0.1 | P270: 0.1 | Q270: 0.1 | R270: 0.1 | S270: 0.05 | T270: 0.05 | U270: 0.05 | V270: 0.05 | W270: 0.05 | X270: 0.05 | Y270: 0.05 | Z270: 0.05 | AA270: =SUM(C270:Z270) -> 1.6 | AB270: =AA270*$C$15 -> 83.2
B271: Holiday | C271: 0.05 | D271: 0.05 | E271: 0.05 | F271: 0.05 | G271: 0.05 | H271: 0.05 | I271: 0.05 | J271: 0.05 | K271: 0.1 | L271: 0.1 | M271: 0.1 | N271: 0.1 | O271: 0.1 | P271: 0.1 | Q271: 0.1 | R271: 0.1 | S271: 0.05 | T271: 0.05 | U271: 0.05 | V271: 0.05 | W271: 0.05 | X271: 0.05 | Y271: 0.05 | Z271: 0.05 | AA271: =SUM(C271:Z271) -> 1.6 | AB271: =AA271*SUM($C$8) -> 17.6
B272: Total Equivalent Full Load Hours of Operation per Year | AB272: =SUM(AB268:AB271) -> 3036.8
B274: Schedule Name: | C274: Health DHW Schedule
C276: 12-1AM | D276: 1-2AM | E276: 2-3AM | F276: 3-4AM | G276: 4-5AM | H276: 5-6AM | I276: 6-7AM | J276: 7-8AM | K276: 8-9 AM | L276: 9-10AM | M276: 10-11AM | N276: 11AM-12PM | O276: 12-1PM | P276: 1-2PM | Q276: 2-3PM | R276: 3-4PM | S276: 4-5PM | T276: 5-6PM | U276: 6-7PM | V276: 7-8PM | W276: 8-9PM | X276: 9-10PM | Y276: 10-11PM | Z276: 11-12PM | AA276: EFLH/day | AB276: EFLH/year
B277: Weekday | C277: 0.01 | D277: 0.01 | E277: 0.01 | F277: 0.01 | G277: 0.01 | H277: 0.01 | I277: 0.01 | J277: 0.17 | K277: 0.58 | L277: 0.66 | M277: 0.78 | N277: 0.82 | O277: 0.71 | P277: 0.82 | Q277: 0.78 | R277: 0.74 | S277: 0.63 | T277: 0.41 | U277: 0.18 | V277: 0.18 | W277: 0.18 | X277: 0.1 | Y277: 0.01 | Z277: 0.01 | AA277: =SUM(C277:Z277) -> 7.83 | AB277: =AA277*SUM($C$9:$C$13) -> 1957.5
... 169 more rows

Sheet Multifamily Details (hidden)
A1: G
A2: G | B2: Multifamily Home Details
A3: G
A4: G
A5: G | B5: Complete the table for each building in the project. Input the number of units and the average floor area for units with the corresponding bedroom number.
A6: G
A7: G | B7: Building Unit summary
A8: G
A9: G | B9: Building ID | D9: Studio | F9: 1 Bedroom | H9: 2 Bedrooms | J9: 3 Bedrooms | L9: 4 Bedrooms | N9: 5 Bedrooms | P9: 6 Bedrooms | R9: 7 Bedrooms | T9: 8 Bedrooms
A10: G | D10: Qty | E10: =CONCATENATE("Average Floor Area",IF(SI_IP_Units="IP"," (sq ft)"," (sq m)")) -> Average Floor Area (sq ft) | F10: Qty | G10: =CONCATENATE("Average Floor Area",IF(SI_IP_Units="IP"," (sq ft)"," (sq m)")) -> Average Floor Area (sq ft) | H10: Qty | I10: =CONCATENATE("Average Floor Area",IF(SI_IP_Units="IP"," (sq ft)"," (sq m)")) -> Average Floor Area (sq ft) | J10: Qty | K10: =CONCATENATE("Average Floor Area",IF(SI_IP_Units="IP"," (sq ft)"," (sq m)")) -> Average Floor Area (sq ft) | L10: Qty | M10: =CONCATENATE("Average Floor Area",IF(SI_IP_Units="IP"," (sq ft)"," (sq m)")) -> Average Floor Area (sq ft) | N10: Qty | O10: =CONCATENATE("Average Floor Area",IF(SI_IP_Units="IP"," (sq ft)"," (sq m)")) -> Average Floor Area (sq ft) | P10: Qty | Q10: =CONCATENATE("Average Floor Area",IF(SI_IP_Units="IP"," (sq ft)"," (sq m)")) -> Average Floor Area (sq ft) | R10: Qty | S10: =CONCATENATE("Average Floor Area",IF(SI_IP_Units="IP"," (sq ft)"," (sq m)")) -> Average Floor Area (sq ft) | T10: Qty | U10: =CONCATENATE("Average Floor Area",IF(SI_IP_Units="IP"," (sq ft)"," (sq m)")) -> Average Floor Area (sq ft)
A11: G | B11: Building ID | D11: S_Unit | E11: S_Area | F11: 1B_Unit | G11: 1B_Area | H11: 2B_Unit | I11: 2B_Area | J11: 3B_Unit | K11: 3B_Area | L11: 4B_Unit | M11: 4B_Area | N11: 5B_Unit | O11: 5B_Area | P11: 6B_Unit | Q11: 6B_Area | R11: 7B_Unit | S11: 7B_Area | T11: 8B_Unit | U11: 8B_Area
A12: G | B12: ='Multiple Buildings Details'!B24 -> Project Name
A13: G | B13: Total number of units | U13: =SUM(OFFSET(MD_BUS_Index,1,MATCH($D$11,MD_BUS_Hdr,0)-1,COUNTA(MD_BUS_Index),1), OFFSET(MD_BUS_Index,1,MATCH($F$11,MD_BUS_Hdr,0)-1,COUNTA(MD_BUS_Index),1), OFFSET(MD_BUS_Index,1,MATCH($H$11,MD_BUS_Hdr,0)-1,COUNTA(MD_BUS_Index),1), OFFSET(MD_BUS_Index,1,MATCH($J$11,MD_BUS_Hdr,0)-1,COUNTA(MD_BUS_Index),1), OFFSET(MD_BUS_Index,1,MATCH($L$11,MD_BUS_Hdr,0)-1,COUNTA(MD_BUS_Index),1), OFFSET(MD_BUS_Index,1,MATCH($N$11,MD_BUS_Hdr,0)-1,COUNTA(MD_BUS_Index),1), OFFSET(MD_BUS_Index,1,MATCH($P$11,MD_BUS_Hdr,0)-1,COUNTA(MD_BUS_Index),1), OFFSET(MD_BUS_Index,1,MATCH($R$11,MD_BUS_Hdr,0)-1,COUNTA(MD_BUS_Index),1), OFFSET(MD_BUS_Index,1,MATCH($T$11,MD_BUS_Hdr,0)-1,COUNTA(MD_BUS_Index),1), ) -> 0
A14: G | B14: Total number of bedrooms | U14: =SUM(OFFSET(MD_BUS_Index,1,MATCH($D$11,MD_BUS_Hdr,0)-1,COUNTA(MD_BUS_Index),1), OFFSET(MD_BUS_Index,1,MATCH($F$11,MD_BUS_Hdr,0)-1,COUNTA(MD_BUS_Index),1), OFFSET(MD_BUS_Index,1,MATCH($H$11,MD_BUS_Hdr,0)-1,COUNTA(MD_BUS_Index),1)*2, OFFSET(MD_BUS_Index,1,MATCH($J$11,MD_BUS_Hdr,0)-1,COUNTA(MD_BUS_Index),1)*3, OFFSET(MD_BUS_Index,1,MATCH($L$11,MD_BUS_Hdr,0)-1,COUNTA(MD_BUS_Index),1)*4, OFFSET(MD_BUS_Index,1,MATCH($N$11,MD_BUS_Hdr,0)-1,COUNTA(MD_BUS_Index),1)*5, OFFSET(MD_BUS_Index,1,MATCH($P$11,MD_BUS_Hdr,0)-1,COUNTA(MD_BUS_Index),1)*6, OFFSET(MD_BUS_Index,1,MATCH($R$11,MD_BUS_Hdr,0)-1,COUNTA(MD_BUS_Index),1)*7, OFFSET(MD_BUS_Index,1,MATCH($T$11,MD_BUS_Hdr,0)-1,COUNTA(MD_BUS_Index),1)*8, ) -> 0
A15: G | B15: =CONCATENATE("Total Area of Dwelling Units",IF(SI_IP_Units="IP"," (square feet)"," (square meters)")) -> Total Area of Dwelling Units (square feet) | U15: =SUM(OFFSET(MD_BUS_Index,1,MATCH($D$11,MD_BUS_Hdr,0)-1,COUNTA(MD_BUS_Index),1)*OFFSET(MD_BUS_Index,1,MATCH($E$11,MD_BUS_Hdr,0)-1,COUNTA(MD_BUS_Index),1), OFFSET(MD_BUS_Index,1,MATCH($F$11,MD_BUS_Hdr,0)-1,COUNTA(MD_BUS_Index),1)*OFFSET(MD_BUS_Index,1,MATCH($G$11,MD_BUS_Hdr,0)-1,COUNTA(MD_BUS_Index),1), OFFSET(MD_BUS_Index,1,MATCH($H$11,MD_BUS_Hdr,0)-1,COUNTA(MD_BUS_Index),1)*OFFSET(MD_BUS_Index,1,MATCH($I$11,MD_BUS_Hdr,0)-1,COUNTA(MD_BUS_Index),1), OFFSET(MD_BUS_Index,1,MATCH($J$11,MD_BUS_Hdr,0)-1,COUNTA(MD_BUS_Index),1)*OFFSET(MD_BUS_Index,1,MATCH($K$11,MD_BUS_Hdr,0)-1,COUNTA(MD_BUS_Index),1), OFFSET(MD_BUS_Index,1,MATCH($L$11,MD_BUS_Hdr,0)-1,COUNTA(MD_BUS_Index),1)*OFFSET(MD_BUS_Index,1,MATCH($M$11,MD_BUS_Hdr,0)-1,COUNTA(MD_BUS_Index),1), OFFSET(MD_BUS_Index,1,MATCH($N$11,MD_BUS_Hdr,0)-1,COUNTA(MD_BUS_Index),1)*OFFSET(MD_BUS_Index,1,MATCH($O$11,MD_BUS_Hdr,0)-1,COUNTA(MD_BUS_Index),1), OFFSET(MD_BUS_Index,1,MATCH($P$11,MD_BUS_Hdr,0)-1,COUNTA(MD_BUS_Index),1)*OFFSET(MD_BUS_Index,1,MATCH($Q$11,MD_BUS_Hdr,0)-1,COUNTA(MD_BUS_Index),1), OFFSET(MD_BUS_Index,1,MATCH($R$11,MD_BUS_Hdr,0)-1,COUNTA(MD_BUS_Index),1)*OFFSET(MD_BUS_Index,1,MATCH($S$11,MD_BUS_Hdr,0)-1,COUNTA(MD_BUS_Index),1), OFFSET(MD_BUS_Index,1,MATCH($T$11,MD_BUS_Hdr,0)-1,COUNTA(MD_BUS_Index),1)*OFFSET(MD_BUS_Index,1,MATCH($U$11,MD_BUS_Hdr,0)-1,COUNTA(MD_BUS_Index),1), ) -> 0
A16: G | B16: Average Number of Bedrooms Per Unit | U16: =IF(ISERROR(1/U13),0,U14/U13) -> 0
A17: G | B17: =CONCATENATE("Average Floor Area Per Unit",IF(SI_IP_Units="IP"," (square feet)"," (square meters)")) -> Average Floor Area Per Unit (square feet) | U17: =IF(ISERROR(1/U13),0,U15/U13) -> 0
A18: G | B18: =CONCATENATE("Average Floor Area Per Unit for Reference Building",IF(SI_IP_Units="IP"," (square feet)"," (square meters)")) -> Average Floor Area Per Unit for Reference Building (square feet) | U18: =IF(ISERROR(1/Avg_Bedrooms),0,ROUNDDOWN((Avg_Bedrooms-1)*(IF(SI_IP_Units="IP",600,55.6)),0)+IF(SI_IP_Units="IP",1000,93)) -> 0
A19: G | B19: Point Adjustment (1 point credit per 4% reduction in floor area versus reference; 1 point deduction per 4% increase in floor area versus reference). | U19: =IF(ISERROR(1/U18),0,ROUNDDOWN((U18-Avg_Bedroom_Area)/(U18*4%),0)) -> 0
A20: G
A21: G | B21: Building ID | D21: Total Number of Units | F21: Total Number of Bedrroms | H21: Total Area of Dwelling Units (square feet) | K21: Average Number of Bedrooms Per Unit | N21: =CONCATENATE("Average Floor Area per Unit",IF(SI_IP_Units="IP"," (square feet)"," (square meter)")) -> Average Floor Area per Unit (square feet) | Q21: =CONCATENATE("Average Floor Area Per Unit for Reference Building",IF(SI_IP_Units="IP"," (square feet)"," (square meter)")) -> Average Floor Area Per Unit for Reference Building (square feet) | AD21: Point Adjustment (1 point credit per 4% reduction in floor area versus reference; 1 point deduction per 4% increase in floor area versus reference).
A22: G | B22: ='Multiple Buildings Details'!B24 -> Project Name | D22: =SUM(INDEX(MD_BUS_Table,MATCH($B22,MD_BUS_Index,0),MATCH($D$11,MD_BUS_Hdr,0)), INDEX(MD_BUS_Table,MATCH($B22,MD_BUS_Index,0),MATCH($F$11,MD_BUS_Hdr,0)), INDEX(MD_BUS_Table,MATCH($B22,MD_BUS_Index,0),MATCH($H$11,MD_BUS_Hdr,0)), INDEX(MD_BUS_Table,MATCH($B22,MD_BUS_Index,0),MATCH($J$11,MD_BUS_Hdr,0)), INDEX(MD_BUS_Table,MATCH($B22,MD_BUS_Index,0),MATCH($L$11,MD_BUS_Hdr,0)), INDEX(MD_BUS_Table,MATCH($B22,MD_BUS_Index,0),MATCH($N$11,MD_BUS_Hdr,0)), INDEX(MD_BUS_Table,MATCH($B22,MD_BUS_Index,0),MATCH($P$11,MD_BUS_Hdr,0)), INDEX(MD_BUS_Table,MATCH($B22,MD_BUS_Index,0),MATCH($R$11,MD_BUS_Hdr,0)), INDEX(MD_BUS_Table,MATCH($B22,MD_BUS_Index,0),MATCH($T$11,MD_BUS_Hdr,0)), ) -> 0 | F22: =SUM(INDEX(MD_BUS_Table,MATCH($B22,MD_BUS_Index,0),MATCH($D$11,MD_BUS_Hdr,0))*1, INDEX(MD_BUS_Table,MATCH($B22,MD_BUS_Index,0),MATCH($F$11,MD_BUS_Hdr,0))*1, INDEX(MD_BUS_Table,MATCH($B22,MD_BUS_Index,0),MATCH($H$11,MD_BUS_Hdr,0))*2, INDEX(MD_BUS_Table,MATCH($B22,MD_BUS_Index,0),MATCH($J$11,MD_BUS_Hdr,0))*3, INDEX(MD_BUS_Table,MATCH($B22,MD_BUS_Index,0),MATCH($L$11,MD_BUS_Hdr,0))*4, INDEX(MD_BUS_Table,MATCH($B22,MD_BUS_Index,0),MATCH($N$11,MD_BUS_Hdr,0))*5, INDEX(MD_BUS_Table,MATCH($B22,MD_BUS_Index,0),MATCH($P$11,MD_BUS_Hdr,0))*6, INDEX(MD_BUS_Table,MATCH($B22,MD_BUS_Index,0),MATCH($R$11,MD_BUS_Hdr,0))*7, INDEX(MD_BUS_Table,MATCH($B22,MD_BUS_Index,0),MATCH($T$11,MD_BUS_Hdr,0))*8, ) -> 0 | H22: =SUM(INDEX(MD_BUS_Table,MATCH($B22,MD_BUS_Index,0),MATCH($D$11,MD_BUS_Hdr,0))*INDEX(MD_BUS_Table,MATCH($B22,MD_BUS_Index,0),MATCH($E$11,MD_BUS_Hdr,0)), INDEX(MD_BUS_Table,MATCH($B22,MD_BUS_Index,0),MATCH($F$11,MD_BUS_Hdr,0))*INDEX(MD_BUS_Table,MATCH($B22,MD_BUS_Index,0),MATCH($G$11,MD_BUS_Hdr,0)), INDEX(MD_BUS_Table,MATCH($B22,MD_BUS_Index,0),MATCH($H$11,MD_BUS_Hdr,0))*INDEX(MD_BUS_Table,MATCH($B22,MD_BUS_Index,0),MATCH($I$11,MD_BUS_Hdr,0)), INDEX(MD_BUS_Table,MATCH($B22,MD_BUS_Index,0),MATCH($J$11,MD_BUS_Hdr,0))*INDEX(MD_BUS_Table,MATCH($B22,MD_BUS_Index,0),MATCH($K$11,MD_BUS_Hdr,0)), INDEX(MD_BUS_Table,MATCH($B22,MD_BUS_Index,0),MATCH($L$11,MD_BUS_Hdr,0))*INDEX(MD_BUS_Table,MATCH($B22,MD_BUS_Index,0),MATCH($M$11,MD_BUS_Hdr,0)), INDEX(MD_BUS_Table,MATCH($B22,MD_BUS_Index,0),MATCH($N$11,MD_BUS_Hdr,0))*INDEX(MD_BUS_Table,MATCH($B22,MD_BUS_Index,0),MATCH($O$11,MD_BUS_Hdr,0)), INDEX(MD_BUS_Table,MATCH($B22,MD_BUS_Index,0),MATCH($P$11,MD_BUS_Hdr,0))*INDEX(MD_BUS_Table,MATCH($B22,MD_BUS_Index,0),MATCH($Q$11,MD_BUS_Hdr,0)), INDEX(MD_BUS_Table,MATCH($B22,MD_BUS_Index,0),MATCH($R$11,MD_BUS_Hdr,0))*INDEX(MD_BUS_Table,MATCH($B22,MD_BUS_Index,0),MATCH($S$11,MD_BUS_Hdr,0)), INDEX(MD_BUS_Table,MATCH($B22,MD_BUS_Index,0),MATCH($T$11,MD_BUS_Hdr,0))*INDEX(MD_BUS_Table,MATCH($B22,MD_BUS_Index,0),MATCH($U$11,MD_BUS_Hdr,0)), ) -> 0 | K22: =IF(ISERROR(1/D22),0,F22/D22) -> 0 | N22: =IF(ISERROR(1/D22),0,H22/D22) -> 0 | Q22: =IF(ISERROR(1/K22),0,ROUNDDOWN((K22-1)*(IF(SI_IP_Units="IP",600,55.6)),0)+IF(SI_IP_Units="IP",1000,93)) -> 0 | AD22: =IF(ISERROR(1/Q22),0,ROUNDDOWN((Q22-N22)/(Q22*4%),0)) -> 0
A23: G
A24: G | B24: Homes Dwelling Unit Equipment Calculator
A25: G
A26: G | B26: Enter the appliances and equipment that is present in the residential dwelling units for the project. For clothes washers and dryers, enter the quantity of each unit installed within the project scope of work. For fans, enter the total supply volume for all fans installed for the project.
A27: G
A28: G | B28: Building ID | C28: Load Source | D28: =CONCATENATE("Quantity ", IF(SI_IP_Units="IP", "(or sum total fan volume [cfm] for fans)","(or sum total fan volume [L/s] for fans)")) -> Quantity (or sum total fan volume [cfm] for fans) | E28: Energy Star Eqp? | F28: Average bedrooms per dwelling unit | H28: Electric Loads | M28: Natural Gas Loads | R28: =CONCATENATE("Annual Service Hot Water Load ",IF(SI_IP_Units="IP","(gallons/year)","(Liters/year)")) -> Annual Service Hot Water Load (gallons/year)
A29: G | H29: =CONCATENATE("Annual Consumption ",IF(SI_IP_Units="IP","(kWh/year)","kWh/year")) -> Annual Consumption (kWh/year) | J29: Sensible Ratio | K29: Latent Ratio | M29: =CONCATENATE("Annual Consumption ",IF(SI_IP_Units="IP","(therms/year)","kWh/year")) -> Annual Consumption (therms/year) | O29: Sensible Ratio | P29: Latent Ratio | R29: Baseline Per Equipment | S29: Proposed Per Equipment | T29: Baseline Total | U29: Proposed Total
A30: G | H30: Baseline | I30: Proposed | M30: Baseline | N30: Proposed
A31: G | B31: Building ID | C31: Load_Source | D31: Qty | E31: Energy_Star | F31: Avg_Bedrooms_DU | G31: Blank1 | H31: Base_Elec_Consumption | I31: Design_Elec_Consumption | J31: Elec_Sens_Ratio | K31: Elec_Latent_Ratio | L31: Blank2 | M31: Base_Ng_Consumption | N31: Design_Ng_Consumption | O31: NG_Sens_Ratio | P31: NG_Latent_Ratio | Q31: Blank3 | R31: Base_DHW_Equip | S31: Design_DHW_Equip | T31: Base_DHW_Annual | U31: Design_DHW_Annual
A32: A | B32: =GI_Project_Name -> Project Name | F32: =IFERROR(INDEX(MD_BUS_SumTable,MATCH($B32,MD_BUS_SumIndex,0),MATCH($K$21,MD_BUS_SumHdr,0)),"") -> 0 | H32: =IFERROR($D32*((VLOOKUP($C32,Homes_DwellingEqpLookup,2,FALSE)+VLOOKUP($C32,Homes_DwellingEqpLookup,6,FALSE)*$F32)*VLOOKUP($C32,Homes_DwellingEqpLookup,12,FALSE)),"") ->  | I32: =IFERROR(IF($E32="No",$H32,$D32*(VLOOKUP($C32,Homes_DwellingEqpLookup,3,FALSE)+VLOOKUP($C32,Homes_DwellingEqpLookup,6,FALSE)*$F32)*VLOOKUP($C32,Homes_DwellingEqpLookup,12,FALSE)),"") ->  | J32: =IFERROR(VLOOKUP($C32,Homes_DwellingEqpLookup,4,0),"") ->  | K32: =IFERROR(VLOOKUP($C32,Homes_DwellingEqpLookup,5,0),"") ->  | M32: =IFERROR($D32*((VLOOKUP($C32,Homes_DwellingEqpLookup,7,FALSE)+VLOOKUP($C32,Homes_DwellingEqpLookup,11,FALSE)*$F32)*VLOOKUP($C32,Homes_DwellingEqpLookup,12,FALSE)),"") ->  | N32: =IFERROR(IF($E32="No",$M32,$D32*(VLOOKUP($C32,Homes_DwellingEqpLookup,8,FALSE)+VLOOKUP($C32,Homes_DwellingEqpLookup,11,FALSE)*$F32)*VLOOKUP($C32,Homes_DwellingEqpLookup,12,FALSE)),"") ->  | O32: =IFERROR(VLOOKUP($C32,Homes_DwellingEqpLookup,9,0),"") ->  | P32: =IFERROR(VLOOKUP($C32,Homes_DwellingEqpLookup,10,0),"") ->  | R32: =IFERROR(VLOOKUP($C32,Homes_DwellingEqpLookup,13,0),"") ->  | S32: =IFERROR(IF($E32="No",$R32,VLOOKUP($C32,Homes_DwellingEqpLookup,14,0)),"") ->  | T32: =IFERROR($R32*$D32,"") ->  | U32: =IFERROR($S32*$D32,"") -> 
B33: =GI_Project_Name -> Project Name | F33: 0 | T33: =IFERROR($R33*$D33,"") ->  | U33: =IFERROR($S33*$D33,"") -> 
B34: =GI_Project_Name -> Project Name | F34: 0 | T34: =IFERROR($R34*$D34,"") ->  | U34: =IFERROR($S34*$D34,"") -> 
B35: =GI_Project_Name -> Project Name | F35: 0
A36: G
A37: G
A38: G
A39: G
A40: G | B40: Homes Dwelling Unit Equipment Modeling Summary
A41: G
A42: G | B42: =CONCATENATE("Report the modeled Receptacle Equipment and Appliances Equivalent Full Load Hours of Operation in the Schedules tab before referring to the table below."," The Equivalent Full Load Hours of Operation is used to calculate the equipment power density for resdential dwelling units that must be modeled based on the building equipment reported for the building."," After confirming the Equivalent Full Load Hours of Operation in the schedules tab, use the values below for the Baseline and Proposed Miscellaneous Equipment Loads in the Dwelling Units. These loads include ",IF(SI_IP_Units="IP","0.5 Watts per square foot ","5.38 Watts per square meter"), " of electric miscellaneous equipment load with a 0.9 sensible ratio and 0.1 latent ratio in addition to the equipment load sources selected above.") -> Report the modeled Receptacle Equipment and Appliances Equivalent Full Load Hours of Operation in the Schedules tab before referring to the table below. The Equivalent Full Load Hours of Operation is used to calculate the equipment power density for resdential dwelling units that must be modeled based on the building equipment reported for the building. After confirming the Equivalent Full Load Hours of Operation in the schedules tab, use the values below for the Baseline and Proposed Miscellaneous Equipment Loads in the Dwelling Units. These loads include 0.5 Watts per square foot of electric miscellaneous equipment load with a 0.9 sensible ratio and 0.1 latent ratio in addition to the equipment load sources selected above.
A43: G
A44: G | B44: Building ID | C44: Equivalent Full Load Hours of Dwelling Unit Miscellaneous Equipment Operation Per Year | D44: =CONCATENATE("Total Area of Dwelling Units",IF(SI_IP_Units="IP"," (square feet)"," (square meters)")) -> Total Area of Dwelling Units (square feet) | F44: Electric Miscellaneous Loads in Dwelling Unit (including appliances and equipment listed above) | M44: Natural Gas Miscellaneous Loads in Dwelling Unit (including appliances and equipment listed above) | T44: =CONCATENATE("Dwelling Unit Equipment Hot Water Loads ",IF(SI_IP_Units="IP","(gallons/year)","(Liters/year)")) -> Dwelling Unit Equipment Hot Water Loads (gallons/year)
A45: G | F45: Baseline | I45: Proposed | M45: Baseline | P45: Proposed
A46: G | F46: =CONCATENATE("Equipment Power Density ", IF(SI_IP_Units="IP","(Watts/ sq ft)","(Watts/ sq m)")) -> Equipment Power Density (Watts/ sq ft) | G46: Sensible Ratio | H46: Latent Ratio | I46: =CONCATENATE("Equipment Power Density ", IF(SI_IP_Units="IP","(Watts/ sq ft)","(Watts/ sq m)")) -> Equipment Power Density (Watts/ sq ft) | J46: Sensible Ratio | K46: Latent Ratio | M46: =CONCATENATE("Equipment Power Density ", IF(SI_IP_Units="IP","(Btu/ sq ft)","(Watts/ sq m)")) -> Equipment Power Density (Btu/ sq ft) | N46: Sensible Ratio | O46: Latent Ratio | P46: =CONCATENATE("Equipment Power Density ", IF(SI_IP_Units="IP","(Btu/ sq ft)","(Watts/ sq m)")) -> Equipment Power Density (Btu/ sq ft) | Q46: Sensible Ratio | R46: Latent Ratio | T46: Base | U46: Proposed
A47: G | B47: =B44 -> Building ID | C47: EFLH | D47: Total_Area | E47: Blank1 | F47: Base_EPD_Elecric | G47: Base_Elec_Sens_Ratio | H47: Base_Elec_Latent_Ratio | I47: Prop_EPD_Elecric | J47: Prop_Elec_Sens_Ratio | K47: Prop_Elec_Latent_Ratio | L47: Blank2 | M47: Base_Ng_EPD | N47: Base_Ng_Sens_Ratio | O47: Base_Ng_Latent_Ratio | P47: Prop_Ng_EPD | Q47: Prop_Ng_Sens_Ratio | R47: Prop_Ng_Latent_Ratio | S47: Blank3 | T47: Base_HW_Loads | U47: Proposed_HW_Loads
A48: G | B48: ='Multiple Buildings Details'!B24 -> Project Name | C48: =Schedules!$F$12 -> 2117 | D48: =INDEX(MD_BUS_SumTable,MATCH($B48,MD_BUS_SumIndex,0),MATCH($H$21,MD_BUS_SumHdr,0)) -> 0 | F48: =IFERROR(SUMIF(MD_HDUEC_Index,$B48,OFFSET(MD_HDUEC_Index,0,MATCH($H$31,MD_HDUEC_Hdr,0)-1,ROWS(MD_HDUEC_Index),1))/$D48*1000/$C48+0.5*(IF(SI_IP_Units="IP",1,10.76)),"") ->  | G48: =IFERROR((SUMPRODUCT(OFFSET(MD_HDUEC_Index,0,MATCH($H$31,MD_HDUEC_Hdr,0)-1,ROWS(MD_HDUEC_Index),1),OFFSET(MD_HDUEC_Index,0,MATCH($J$31,MD_HDUEC_Hdr,0)-1,ROWS(MD_HDUEC_Index),1),--(MD_HDUEC_Index=$B48))*1000/$C48+IF(SI_IP_Units="IP",0.5,0.5*10.76)*$D48*0.9)/(SUMIF(MD_HDUEC_Index,$B48,(OFFSET(MD_HDUEC_Index,0,MATCH($H$31,MD_HDUEC_Hdr,0)-1,ROWS(MD_HDUEC_Index),1)))*1000/$C48+IF(SI_IP_Units="IP",0.5,0.5*10.76)*$D48),"") ->  | H48: =IFERROR((SUMPRODUCT(OFFSET(MD_HDUEC_Index,0,MATCH($H$31,MD_HDUEC_Hdr,0)-1,ROWS(MD_HDUEC_Index),1),OFFSET(MD_HDUEC_Index,0,MATCH($K$31,MD_HDUEC_Hdr,0)-1,ROWS(MD_HDUEC_Index),1),--(MD_HDUEC_Index=$B48))*1000/$C48+IF(SI_IP_Units="IP",0.5,0.5*10.76)*$D48*0.1)/(SUMIF(MD_HDUEC_Index,$B48,(OFFSET(MD_HDUEC_Index,0,MATCH($H$31,MD_HDUEC_Hdr,0)-1,ROWS(MD_HDUEC_Index),1)))*1000/$C48+IF(SI_IP_Units="IP",0.5,0.5*10.76)*$D48),"") ->  | I48: =IFERROR(SUMIF(MD_HDUEC_Index,$B48,OFFSET(MD_HDUEC_Index,0,MATCH($I$31,MD_HDUEC_Hdr,0)-1,ROWS(MD_HDUEC_Index),1))/$D48*1000/$C48+0.5*(IF(SI_IP_Units="IP",1,10.76)),"") ->  | J48: =IFERROR((SUMPRODUCT(OFFSET(MD_HDUEC_Index,0,MATCH($I$31,MD_HDUEC_Hdr,0)-1,ROWS(MD_HDUEC_Index),1),OFFSET(MD_HDUEC_Index,0,MATCH($J$31,MD_HDUEC_Hdr,0)-1,ROWS(MD_HDUEC_Index),1),--(MD_HDUEC_Index=$B48))*1000/$C48+IF(SI_IP_Units="IP",0.5,0.5*10.76)*$D48*0.9)/(SUMIF(MD_HDUEC_Index,$B48,(OFFSET(MD_HDUEC_Index,0,MATCH($I$31,MD_HDUEC_Hdr,0)-1,ROWS(MD_HDUEC_Index),1)))*1000/$C48+IF(SI_IP_Units="IP",0.5,0.5*10.76)*$D48),"") ->  | K48: =IFERROR((SUMPRODUCT(OFFSET(MD_HDUEC_Index,0,MATCH($I$31,MD_HDUEC_Hdr,0)-1,ROWS(MD_HDUEC_Index),1),OFFSET(MD_HDUEC_Index,0,MATCH($K$31,MD_HDUEC_Hdr,0)-1,ROWS(MD_HDUEC_Index),1),--(MD_HDUEC_Index=$B48))*1000/$C48+IF(SI_IP_Units="IP",0.5,0.5*10.76)*$D48*0.1)/(SUMIF(MD_HDUEC_Index,$B48,(OFFSET(MD_HDUEC_Index,0,MATCH($I$31,MD_HDUEC_Hdr,0)-1,ROWS(MD_HDUEC_Index),1)))*1000/$C48+IF(SI_IP_Units="IP",0.5,0.5*10.76)*$D48),"") ->  | M48: =IFERROR(SUMIF(MD_HDUEC_Index,$B48,OFFSET(MD_HDUEC_Index,0,MATCH($M$31,MD_HDUEC_Hdr,0)-1,ROWS(MD_HDUEC_Index),1))/$D48/$C48*IF(SI_IP_Units="IP",100000,1000),"") ->  | N48: =IFERROR(SUMPRODUCT(OFFSET(MD_HDUEC_Index,0,MATCH($M$31,MD_HDUEC_Hdr,0)-1,ROWS(MD_HDUEC_Index),1),OFFSET(MD_HDUEC_Index,0,MATCH($O$31,MD_HDUEC_Hdr,0)-1,ROWS(MD_HDUEC_Index),1),--(MD_HDUEC_Index=$B48))/SUMIF(MD_HDUEC_Index,$B48,OFFSET(MD_HDUEC_Index,0,MATCH($M$31,MD_HDUEC_Hdr,0)-1)),"") ->  | O48: =IFERROR(SUMPRODUCT(OFFSET(MD_HDUEC_Index,0,MATCH($M$31,MD_HDUEC_Hdr,0)-1,ROWS(MD_HDUEC_Index),1),OFFSET(MD_HDUEC_Index,0,MATCH($P$31,MD_HDUEC_Hdr,0)-1,ROWS(MD_HDUEC_Index),1),--(MD_HDUEC_Index=$B48))/SUMIF(MD_HDUEC_Index,$B48,OFFSET(MD_HDUEC_Index,0,MATCH($M$31,MD_HDUEC_Hdr,0)-1)),"") ->  | P48: =IFERROR(SUMIF(MD_HDUEC_Index,$B48,OFFSET(MD_HDUEC_Index,0,MATCH($N$31,MD_HDUEC_Hdr,0)-1,ROWS(MD_HDUEC_Index),1))/$D48/$C48*IF(SI_IP_Units="IP",100000,1000),"") ->  | Q48: =IFERROR(SUMPRODUCT(OFFSET(MD_HDUEC_Index,0,MATCH($N$31,MD_HDUEC_Hdr,0)-1,ROWS(MD_HDUEC_Index),1),OFFSET(MD_HDUEC_Index,0,MATCH($O$31,MD_HDUEC_Hdr,0)-1,ROWS(MD_HDUEC_Index),1),--(MD_HDUEC_Index=$B48))/SUMIF(MD_HDUEC_Index,$B48,OFFSET(MD_HDUEC_Index,0,MATCH($N$31,MD_HDUEC_Hdr,0)-1)),"") ->  | R48: =IFERROR(SUMPRODUCT(OFFSET(MD_HDUEC_Index,0,MATCH($N$31,MD_HDUEC_Hdr,0)-1,ROWS(MD_HDUEC_Index),1),OFFSET(MD_HDUEC_Index,0,MATCH($P$31,MD_HDUEC_Hdr,0)-1,ROWS(MD_HDUEC_Index),1),--(MD_HDUEC_Index=$B48))/SUMIF(MD_HDUEC_Index,$B48,OFFSET(MD_HDUEC_Index,0,MATCH($N$31,MD_HDUEC_Hdr,0)-1)),"") ->  | T48: =IFERROR(SUMIF(MD_HDUEC_Index,$B48,OFFSET(MD_HDUEC_Index,0,MATCH($T$31,MD_HDUEC_Hdr,0)-1,ROWS(MD_HDUEC_Index),1)),"") -> 0 | U48: =IFERROR(SUMIF(MD_HDUEC_Index,$B48,OFFSET(MD_HDUEC_Index,0,MATCH($U$31,MD_HDUEC_Hdr,0)-1,ROWS(MD_HDUEC_Index),1)),"") -> 0
A49: G
A50: G
A51: G | B51: Homes Laundry Room Equipment Calculator
A52: G
A53: G | B53: If the project has one or more laundry rooms serving multiple dwelling units, enter the equipment that is present in the laundry rooms. Leave blank if the project has no laundry rooms.
A54: G
A55: G | B55: Building ID | C55: Load Source | D55: Quantity | E55: Energy Star Equip-ment? | F55: Average Bedrooms per Dwelling Unit | H55: Electric Loads | M55: Natural Gas Loads | R55: =CONCATENATE("Annual Service Hot Water Load ",IF(SI_IP_Units="IP","(gallons/year)","(Liters/year)")) -> Annual Service Hot Water Load (gallons/year)
A56: G | H56: =CONCATENATE("Annual Consumption ",IF(SI_IP_Units="IP","(kWh/year)","kWh/year")) -> Annual Consumption (kWh/year) | J56: Sensible Ratio | K56: Latent Ratio | M56: =CONCATENATE("Annual Consumption ",IF(SI_IP_Units="IP","(therms/year)","kWh/year")) -> Annual Consumption (therms/year) | O56: Sensible Ratio | P56: Latent Ratio | R56: Baseline Per Equipment | S56: Proposed Per Eqiupment | T56: Baseline Total | U56: Proposed Total
A57: G | H57: Baseline | I57: Proposed | M57: Baseline | N57: Proposed
A58: G | B58: Building ID | C58: Load_Source | D58: Qty | E58: Energy_Star | F58: Avg_Bedrooms_DU | H58: Base_Elec_Consumption | I58: Design_Elec_Consumption | J58: Elec_Sens_Ratio | K58: Elec_Latent_Ratio | M58: Base_Ng_Consumption | N58: Design_Ng_Consumption | O58: NG_Sens_Ratio | P58: NG_Latent_Ratio | R58: Base_DHW_Equip | S58: Design_DHW_Equip | T58: Base_DHW_Annual | U58: Design_DHW_Annual
A59: B | B59: =GI_Project_Name -> Project Name | F59: =IFERROR(INDEX(MD_BUS_SumTable,MATCH($B59,MD_BUS_SumIndex,0),MATCH($K$21,MD_BUS_SumHdr,0)),"") -> 0 | H59: =IFERROR((VLOOKUP($C59,Homes_LaundryEqpLookup,2,FALSE)+VLOOKUP($C59,Homes_LaundryEqpLookup,6,FALSE)*$F59)*VLOOKUP($C59,Homes_LaundryEqpLookup,12,FALSE),"") ->  | I59: =IFERROR(IF($E59="No",$H59,(VLOOKUP($C59,Homes_LaundryEqpLookup,3,FALSE)+VLOOKUP($C59,Homes_LaundryEqpLookup,6,FALSE)*$F59)*VLOOKUP($C59,Homes_LaundryEqpLookup,12,FALSE)),"") ->  | J59: =IFERROR(VLOOKUP($C59,Homes_LaundryEqpLookup,4,0),"") ->  | K59: =IFERROR(VLOOKUP($C59,Homes_LaundryEqpLookup,5,0),"") ->  | M59: =IFERROR((VLOOKUP($C59,Homes_LaundryEqpLookup,7,FALSE)+VLOOKUP($C59,Homes_LaundryEqpLookup,11,FALSE)*$F59)*VLOOKUP($C59,Homes_LaundryEqpLookup,12,FALSE),"") ->  | N59: =IFERROR(IF($E59="No",$M59,(VLOOKUP($C59,Homes_LaundryEqpLookup,8,FALSE)+VLOOKUP($C59,Homes_LaundryEqpLookup,11,FALSE)*$F59)*VLOOKUP($C59,Homes_LaundryEqpLookup,12,FALSE)),"") ->  | O59: =IFERROR(VLOOKUP($C59,Homes_LaundryEqpLookup,9,0),"") ->  | P59: =IFERROR(VLOOKUP($C59,Homes_LaundryEqpLookup,10,0),"") ->  | R59: =IFERROR(VLOOKUP($C59,Homes_LaundryEqpLookup,13,0),"") ->  | S59: =IFERROR(VLOOKUP($C59,Homes_LaundryEqpLookup,14,0),"") ->  | T59: =IFERROR($R59*$D59,"") ->  | U59: =IFERROR($S59*$D59,"") -> 
B60: =GI_Project_Name -> Project Name | F60: 0 | T60: =IFERROR($R60*$D60,"") ->  | U60: =IFERROR($S60*$D60,"") -> 
B61: =GI_Project_Name -> Project Name | F61: 0 | T61: =IFERROR($R61*$D61,"") ->  | U61: =IFERROR($S61*$D61,"") -> 
B62: =GI_Project_Name -> Project Name | F62: 0 | T62: =IFERROR($R62*$D62,"") ->  | U62: =IFERROR($S62*$D62,"") -> 
A63: G
A64: G
A65: G
A66: G
A67: G | B67: Homes Laundry Room Equipment Modeling Summary
A68: G
A69: G | B69: =CONCATENATE("Identify the equivalent full load hours of operation and building area for the landury room(s) below. ","In the energy model(s), use the values below for the Baseline and Proposed Miscellaneous Equipment Loads in the Laundry Rooms. These loads include ",IF(SI_IP_Units="IP","0.2 Watts per square foot ","2.15 Watts per square meter"), " of electric miscellaneous equipment load with a 1.0 sensible ratio and 0.0 latent ratio in addition to the equipment load sources selected above."," Note that the Equivalent Full Load Hours of operation noted here must be consistent with that of the energy model in order for the equipment power densities"," listed here to appropriately calculate the annual laundry miscellaneous energy consumption in the energy model.") -> Identify the equivalent full load hours of operation and building area for the landury room(s) below. In the energy model(s), use the values below for the Baseline and Proposed Miscellaneous Equipment Loads in the Laundry Rooms. These loads include 0.2 Watts per square foot of electric miscellaneous equipment load with a 1.0 sensible ratio and 0.0 latent ratio in addition to the equipment load sources selected above. Note that the Equivalent Full Load Hours of operation noted here must be consistent with that of the energy model in order for the equipment power densities listed here to appropriately calculate the annual laundry miscellaneous energy consumption in the energy model.
A70: G
A71: G | B71: Building ID | C71: Equivalent Full Load Hours of Dwelling Unit Miscellaneous Equipment Operation Per Year | D71: =CONCATENATE("Total Area of Laundry Rooms",IF(SI_IP_Units="IP"," (square feet)"," (square meters)")) -> Total Area of Laundry Rooms (square feet) | F71: Electric Loads in Laundry Room (including appliances and equipment listed above) | M71: Natural Gas Loads in Laundry Room (including appliances and equipment listed above) | T71: =CONCATENATE("Laundry Room Equipment Hot Water Loads ",IF(SI_IP_Units="IP","(gallons/year)","(Liters/year)")) -> Laundry Room Equipment Hot Water Loads (gallons/year)
A72: G | F72: Baseline | I72: Proposed | M72: Baseline | P72: Proposed
A73: G | F73: =CONCATENATE("Equipment Power Density ", IF(SI_IP_Units="IP","(Watts/ sq ft)","(Watts/ sq m)")) -> Equipment Power Density (Watts/ sq ft) | G73: Sensible Ratio | H73: Latent Ratio | I73: =CONCATENATE("Equipment Power Density ", IF(SI_IP_Units="IP","(Watts/ sq ft)","(Watts/ sq m)")) -> Equipment Power Density (Watts/ sq ft) | J73: Sensible Ratio | K73: Latent Ratio | M73: =CONCATENATE("Equipment Power Density ", IF(SI_IP_Units="IP","(Btu/ sq ft)","(Watts/ sq m)")) -> Equipment Power Density (Btu/ sq ft) | N73: Sensible Ratio | O73: Latent Ratio | P73: =CONCATENATE("Equipment Power Density ", IF(SI_IP_Units="IP","(Btu/ sq ft)","(Watts/ sq m)")) -> Equipment Power Density (Btu/ sq ft) | Q73: Sensible Ratio | R73: Latent Ratio | T73: Base | U73: Proposed
A74: G | B74: Building ID | C74: EFLH | D74: Total_Area | E74: Blank1 | F74: Base_EPD_Elecric | G74: Base_Elec_Sens_Ratio | H74: Base_Elec_Latent_Ratio | I74: Prop_EPD_Elecric | J74: Prop_Elec_Sens_Ratio | K74: Prop_Elec_Latent_Ratio | L74: Blank2 | M74: Base_Ng_EPD | N74: Base_Ng_Sens_Ratio | O74: Base_Ng_Latent_Ratio | P74: Prop_Ng_EPD | Q74: Prop_Ng_Sens_Ratio | R74: Prop_Ng_Latent_Ratio | S74: Blank3 | T74: Base_HW_Loads | U74: Proposed_HW_Loads
A75: G | B75: ='Multiple Buildings Details'!B24 -> Project Name | F75: =IFERROR(SUMIF(MD_Laundry_Index,$B75,OFFSET(MD_Laundry_Index,0,MATCH($H$58,MD_Laundry_Hdr,0)-1,ROWS(MD_Laundry_Index),1))/$D75*1000/$C75+0.2*(IF(SI_IP_Units="IP",1,2.15)),"") ->  | G75: =IFERROR((SUMPRODUCT(OFFSET(MD_Laundry_Index,0,MATCH($H$58,MD_Laundry_Hdr,0)-1,ROWS(MD_Laundry_Index),1),OFFSET(MD_Laundry_Index,0,MATCH($J$58,MD_Laundry_Hdr,0)-1,ROWS(MD_Laundry_Index),1),--(MD_Laundry_Index=$B75))*1000/$C75+IF(SI_IP_Units="IP",0.2,0.2*10.76)*$D75*1)/(SUMIF(MD_Laundry_Index,$B75,(OFFSET(MD_Laundry_Index,0,MATCH($H$58,MD_Laundry_Hdr,0)-1,ROWS(MD_Laundry_Index),1)))*1000/$C75+IF(SI_IP_Units="IP",0.2,0.2*10.76)*$D75),"") ->  | H75: =IFERROR((SUMPRODUCT(OFFSET(MD_Laundry_Index,0,MATCH($H$58,MD_Laundry_Hdr,0)-1,ROWS(MD_Laundry_Index),1),OFFSET(MD_Laundry_Index,0,MATCH($K$58,MD_Laundry_Hdr,0)-1,ROWS(MD_Laundry_Index),1),--(MD_Laundry_Index=$B75))*1000/$C75+IF(SI_IP_Units="IP",0.2,0.2*10.76)*$D75*0)/(SUMIF(MD_Laundry_Index,$B75,(OFFSET(MD_Laundry_Index,0,MATCH($H$58,MD_Laundry_Hdr,0)-1,ROWS(MD_Laundry_Index),1)))*1000/$C75+IF(SI_IP_Units="IP",0.2,0.2*10.76)*$D75),"") ->  | I75: =IFERROR(SUMIF(MD_Laundry_Index,$B75,OFFSET(MD_Laundry_Index,0,MATCH($I$58,MD_Laundry_Hdr,0)-1,ROWS(MD_Laundry_Index),1))/$D75*1000/$C75+0.2*(IF(SI_IP_Units="IP",1,10.76)),"") ->  | J75: =IFERROR((SUMPRODUCT(OFFSET(MD_Laundry_Index,0,MATCH($I$58,MD_Laundry_Hdr,0)-1,ROWS(MD_Laundry_Index),1),OFFSET(MD_Laundry_Index,0,MATCH($J$58,MD_Laundry_Hdr,0)-1,ROWS(MD_Laundry_Index),1),--(MD_Laundry_Index=$B75))*1000/$C75+IF(SI_IP_Units="IP",0.2,0.2*10.76)*$D75*1)/(SUMIF(MD_Laundry_Index,$B75,(OFFSET(MD_Laundry_Index,0,MATCH($I$58,MD_Laundry_Hdr,0)-1,ROWS(MD_Laundry_Index),1)))*1000/$C75+IF(SI_IP_Units="IP",0.2,0.2*10.76)*$D75),"") ->  | K75: =IFERROR((SUMPRODUCT(OFFSET(MD_Laundry_Index,0,MATCH($I$58,MD_Laundry_Hdr,0)-1,ROWS(MD_Laundry_Index),1),OFFSET(MD_Laundry_Index,0,MATCH($K$58,MD_Laundry_Hdr,0)-1,ROWS(MD_Laundry_Index),1),--(MD_Laundry_Index=$B75))*1000/$C75+IF(SI_IP_Units="IP",0.2,0.2*10.76)*$D75*0)/(SUMIF(MD_Laundry_Index,$B75,(OFFSET(MD_Laundry_Index,0,MATCH($I$58,MD_Laundry_Hdr,0)-1,ROWS(MD_Laundry_Index),1)))*1000/$C75+IF(SI_IP_Units="IP",0.2,0.2*10.76)*$D75),"") ->  | M75: =IFERROR(SUMIF(MD_Laundry_Index,$B75,OFFSET(MD_Laundry_Index,0,MATCH($M$58,MD_Laundry_Hdr,0)-1,ROWS(MD_Laundry_Index),1))/$D75/$C75*IF(SI_IP_Units="IP",100000,1000),"") ->  | N75: =IFERROR(SUMPRODUCT(OFFSET(MD_Laundry_Index,0,MATCH($M$58,MD_Laundry_Hdr,0)-1,ROWS(MD_Laundry_Index),1),OFFSET(MD_Laundry_Index,0,MATCH($O$58,MD_Laundry_Hdr,0)-1,ROWS(MD_Laundry_Index),1),--(MD_Laundry_Index=$B75))/SUMIF(MD_Laundry_Index,$B75,OFFSET(MD_Laundry_Index,0,MATCH($M$58,MD_Laundry_Hdr,0)-1)),"") ->  | O75: =IFERROR(SUMPRODUCT(OFFSET(MD_Laundry_Index,0,MATCH($M$58,MD_Laundry_Hdr,0)-1,ROWS(MD_Laundry_Index),1),OFFSET(MD_Laundry_Index,0,MATCH($P$58,MD_Laundry_Hdr,0)-1,ROWS(MD_Laundry_Index),1),--(MD_Laundry_Index=$B75))/SUMIF(MD_Laundry_Index,$B75,OFFSET(MD_Laundry_Index,0,MATCH($M$58,MD_Laundry_Hdr,0)-1)),"") ->  | P75: =IFERROR(SUMIF(MD_Laundry_Index,$B75,OFFSET(MD_Laundry_Index,0,MATCH($N$58,MD_Laundry_Hdr,0)-1,ROWS(MD_Laundry_Index),1))/$D75/$C75*IF(SI_IP_Units="IP",100000,1000),"") ->  | Q75: =IFERROR(SUMPRODUCT(OFFSET(MD_Laundry_Index,0,MATCH($N$58,MD_Laundry_Hdr,0)-1,ROWS(MD_Laundry_Index),1),OFFSET(MD_Laundry_Index,0,MATCH($O$58,MD_Laundry_Hdr,0)-1,ROWS(MD_Laundry_Index),1),--(MD_Laundry_Index=$B75))/SUMIF(MD_Laundry_Index,$B75,OFFSET(MD_Laundry_Index,0,MATCH($N$58,MD_Laundry_Hdr,0)-1)),"") ->  | R75: =IFERROR(SUMPRODUCT(OFFSET(MD_Laundry_Index,0,MATCH($N$58,MD_Laundry_Hdr,0)-1,ROWS(MD_Laundry_Index),1),OFFSET(MD_Laundry_Index,0,MATCH($P$58,MD_Laundry_Hdr,0)-1,ROWS(MD_Laundry_Index),1),--(MD_Laundry_Index=$B75))/SUMIF(MD_Laundry_Index,$B75,OFFSET(MD_Laundry_Index,0,MATCH($N$58,MD_Laundry_Hdr,0)-1)),"") ->  | T75: =IFERROR(SUMIF(MD_Laundry_Index,$B75,OFFSET(MD_Laundry_Index,0,MATCH($T$58,MD_Laundry_Hdr,0)-1,ROWS(MD_Laundry_Index),1)),"") -> 0 | U75: =IFERROR(SUMIF(MD_Laundry_Index,$B75,OFFSET(MD_Laundry_Index,0,MATCH($U$58,MD_Laundry_Hdr,0)-1,ROWS(MD_Laundry_Index),1)),"") -> 0
A76: G
A77: G
A78: G | B78: Homes Service Water Heating Load Summary
A79: G
A80: G | B80: Residential Usage Profile Dependent on Project Demographics | R80: Baseline Residential Usage per person Excluding Clothes / Dish Washers
A81: G | B81: Low | C81: Demographics such as all occupants working, seniors, middle income, and higher population density. | S81: =IF(SI_IP_Units="IP",12,45) -> 12 | T81: =IF(SI_IP_Units="IP","gallons/day","liters/day") -> gallons/day
A82: G | B82: Medium | C82: Demographics such as mixture of working / non-working occupants, mixture of age groups, medium population densities. | S82: =IF(SI_IP_Units="IP",25,95) -> 25 | T82: =IF(SI_IP_Units="IP","gallons/day","liters/day") -> gallons/day
A83: G | B83: High | C83: Demographics such high percentages of children, low income, public assistance, or no occupants working. | S83: =IF(SI_IP_Units="IP",44,167) -> 44 | T83: =IF(SI_IP_Units="IP","gallons/day","liters/day") -> gallons/day
A84: G
A85: G | B85: =CONCATENATE("Report the modeled Service Water Heating Full Load Hours of Operation in the Schedules tab before referring to the table below."," The Equivalent Full Load Hours of Operation is used to calculate the DHW modeled peak residential flow a the DHW Heater that must be modeled to be consistent with the annual hot water consumption calculated here."," After confirming the Equivalent Full Load Hours of Operation in the schedules tab,","Identify the residential service water heating usage profile, and the average fixture flows for sink and shower fixtures. Supply temperature at fixture point of use shall be ",IF(SI_IP_Units="IP","120 degrees F","49 degrees C"),". If the modeled supply DHW temperature from the DHW heater is higher than this,"," indicate the supply DHW temperature from the DHW heater and the average cold water input temperature below."," This information along with the appliance information entered above and the schedule data from the schedules tab is used to determine the DHW modeled Peak Flow at DHW heater,","which should be input into the energy model.") -> Report the modeled Service Water Heating Full Load Hours of Operation in the Schedules tab before referring to the table below. The Equivalent Full Load Hours of Operation is used to calculate the DHW modeled peak residential flow a the DHW Heater that must be modeled to be consistent with the annual hot water consumption calculated here. After confirming the Equivalent Full Load Hours of Operation in the schedules tab,Identify the residential service water heating usage profile, and the average fixture flows for sink and shower fixtures. Supply temperature at fixture point of use shall be 120 degrees F. If the modeled supply DHW temperature from the DHW heater is higher than this, indicate the supply DHW temperature from the DHW heater and the average cold water input temperature below. This information along with the appliance information entered above and the schedule data from the schedules tab is used to determine the DHW modeled Peak Flow at DHW heater,which should be input into the energy model.
A86: G
A87: G | B87: Building ID | C87: Residential Usage Profile | D87: =CONCATENATE("Average Fixture Flows ",IF(SI_IP_Units="IP","(gallons/minute)","(Liters/second)")) -> Average Fixture Flows (gallons/minute) | F87: =CONCATENATE("DHW Temperature Settings ",IF(SI_IP_Units="IP","(degrees F)","(degrees C)")) -> DHW Temperature Settings (degrees F) | I87: =CONCATENATE("DHW Sink and Shower Fixture Loads at Point of Use",IF(SI_IP_Units="IP"," (gallons / year)", "(Liters / year)")) -> DHW Sink and Shower Fixture Loads at Point of Use (gallons / year) | K87: =CONCATENATE("DHW In-Unit Appliance Loads at Point of Use",IF(SI_IP_Units="IP"," (gallons / year)", "(Liters / year)")) -> DHW In-Unit Appliance Loads at Point of Use (gallons / year) | M87: =CONCATENATE("DHW Laundry Room Equipment Loads at Point of Use",IF(SI_IP_Units="IP"," (gallons / year)", "(Liters / year)")) -> DHW Laundry Room Equipment Loads at Point of Use (gallons / year) | O87: =CONCATENATE("DHW Total Residential Loads at Point of Use",IF(SI_IP_Units="IP"," (gallons / year)", "(Liters / year)")) -> DHW Total Residential Loads at Point of Use (gallons / year) | Q87: =CONCATENATE("DHW Total Residential Loads at DHW Heater",IF(SI_IP_Units="IP"," (gallons / year)", "(Liters / year)")) -> DHW Total Residential Loads at DHW Heater (gallons / year) | S87: DHW Equivalent Full Load Hours of Operation | T87: =CONCATENATE("DHW Modeled Peak Residential Flow at DHW Heater",IF(SI_IP_Units="IP"," (gallons / minute)", "(Liters / second)")) -> DHW Modeled Peak Residential Flow at DHW Heater (gallons / minute)
A88: G | F88: DHW Supply Temp | G88: Average Cold Water Temp | H88: DHW Temp at Fixture Point of Use
A89: G | D89: Showers | E89: Sinks | I89: Baseline | J89: Proposed | K89: Baseline | L89: Proposed | M89: Baseline | N89: Proposed | O89: Baseline | P89: Proposed | Q89: Baseline | R89: Proposed | T89: Baseline | U89: Proposed
A90: G | B90: Building ID | C90: Res_Usage_Profile | D90: Shower_Flow_Avg | E90: Sink_Flow_Avg | F90: DHW_Supply_Temp | G90: DHW_Cold_Water_Temp | H90: DHW_Fixture_Temp | I90: DHW_Base_Fixture_flow | J90: DHW_Design_Fixture_flow | K90: DHW_Base_Appliance_Flow | L90: DHW_Design_Appliance_Flow | M90: DHW_Base_Laundry_Flow | N90: DHW_Proposed_Laundry_Flow | O90: DHW_Base_Total_Flow | P90: DHW_Design_Total_Flow | Q90: DHW_Heater_Base_Flow | R90: DHW_Heater_Design_Flow | S90: DHW_EFLH | T90: DHW_Base_Modeled_Flowrate | U90: DHW_Design_Modeled_Flowrate
A91: G | B91: ='Multiple Buildings Details'!B24 -> Project Name | H91: =IF(SI_IP_Units="IP",120,CONVERT(120,"F","C")) -> 120 | I91: =IFERROR(VLOOKUP($C91,Res_Usage_Profile_Table,18,FALSE)*365*INDEX(MD_BUS_SumTable,MATCH($B91,MD_BUS_SumIndex,0),MATCH($F$21,MD_BUS_SumHdr,0)),"N/A") -> N/A | J91: =IF(ISERROR(1/$D91/$E91),$I91,IFERROR($I91*IF(SI_IP_Units="IP",(0.36+0.54*$D91/2.5+0.1*$E91/2.2),(0.36+0.54*$D91/0.16+0.1*$E91/0.14)),$I91)) -> N/A | K91: =IFERROR(SUMIF(MD_HDUEC_Index,$B91,OFFSET(MD_HDUEC_Index,0,MATCH($T$31,MD_HDUEC_Hdr,0)-1,ROWS(MD_HDUEC_Index),1)),"N/A") -> 0 | L91: =IFERROR(SUMIF(MD_HDUEC_Index,$B91,OFFSET(MD_HDUEC_Index,0,MATCH($U$31,MD_HDUEC_Hdr,0)-1,ROWS(MD_HDUEC_Index),1)),"N/A") -> 0 | M91: =IFERROR(SUMIF(MD_Laundry_Index,$B91,OFFSET(MD_Laundry_Index,0,MATCH($T$58,MD_Laundry_Hdr,0)-1,ROWS(MD_Laundry_Index),1)),"N/A") -> 0 | N91: =IFERROR(SUMIF(MD_Laundry_Index,$B91,OFFSET(MD_Laundry_Index,0,MATCH($U$58,MD_Laundry_Hdr,0)-1,ROWS(MD_Laundry_Index),1)),"N/A") -> 0 | O91: =IFERROR(SUM(I91,K91,M91),0) -> 0 | P91: =IFERROR(SUM(J91,L91,N91),0) -> 0 | Q91: =IFERROR(IF(ISERROR(1/$G91),O91,($H91-$G91)/($F91-$G91)*O91),O91) -> 0 | R91: =IFERROR(IF(ISERROR(1/$G91),P91,($H91-$G91)/($F91-$G91)*P91),P91) -> 0 | S91: =Schedules!$E$12 -> 2446 | T91: =IFERROR(IF(SI_IP_Units="IP",Q91/$S91/60,Q91/$S91/60/60),"N/A") -> 0 | U91: 0
A92: G | B92: Note: Flow rates are based on Energy Star Multifamily Simulation Guidance. One person is assumed per bedroom.

Sheet Opaque Assemblies
A1: G
A2: G | B2: Opaque Assemblies
A3: G
A4: G
A5: G | B5: Instructions: Complete the Opaque Building Envelope Requirements section, then describe each unique opaque building envelope construction on a separate row in the Opaque Building Envelope Constructions table. Please refer to the column header notes for information about Appendix G modeling protocol. For any information not applicable to the project, simply enter "N/A". Baseline information will autogenerate for new construction when the space conditioning category is selected.
A6: G
A7: G | B7: Opaque Building Envelope Requirements
A8: G
A9: G | B9: All residential spaces (guest rooms, living quarters, private living space, in-patient rooms, and sleeping quarters) have been modeled with the required residential construction types from Table 5.5
A10: G
A11: G | B11: For existing spaces, have there been any changes to the space conditioning category (for example, previously unconditioned spaces becoming fully conditioned)?
A12: G
A13: G | B13: All spaces qualifying as semiheated are not defined as heated per Table 3.1 or indirectly conditioned (see Section 3.2 definition of space).
A14: G
A15: G | B15: Opaque envelope assemblies separating conditioned space from unconditioned or semiheated space in the baseline are modeled using semiheated envelope assemblies per the ASHRAE 90.1-2010 User's Manual, Section 5.1.2, Space Conditioning Categories (Page 5-2). Refer to Figure 5-B.
A16: G
A17: G | B17: All baseline new construction opaque envelope assemblies were modeled as required by Table 5.5 for the project's climate zone and Table G3.1#5(b) as lightweight assembly types.
A18: G
A19: G | B19: =IF(RatingSystem_IDC,CONCATENATE("All existing envelope opaque assemblies were modeled as required by Table 5.5 for the project's climate zone and Table G3.1#5(Proposed)(b) as lightweight assembly types,"," and are not modeled using Exception (f) per Rating system requirements"),CONCATENATE("All baseline existing roofs, above-grade exterior walls, below-grade exterior walls, exposed floors, slab-on-grade floors, and opaque doors were modeled"," using the existing conditions prior to any revisions in spaces with unchanged space conditioning categories.")) -> All baseline existing roofs, above-grade exterior walls, below-grade exterior walls, exposed floors, slab-on-grade floors, and opaque doors were modeled using the existing conditions prior to any revisions in spaces with unchanged space conditioning categories.
A20: G
A21: G | B21: All proposed roofs, above-grade exterior walls, below-grade exterior walls, exposed floors, slab-on-grade floors, and opaque doors were modeled as-designed and with assembly U-factors, C-factors, and F-factors consistent with Appendix A values.
A22: G
A23: G | B23: Infiltration rates and schedules have been modeled identically in the baseline and proposed.
A24: G
A25: G | B25: For each item entered as “No” above, describe the applicable ASHRAE 90.1 Appendix G exception(s) that apply, or the circumstances preventing the opaque envelope parameters from being modeled as required. If the energy simulation software is not capable of modeling the required parameters, describe the adjustments that were made to provide a thermodynamically similar representation or provide a narrative justifying why the predicted energy performance results will not be influenced.
A26: G
A27: G
A28: G | B28: Opaque Building Envelope Constructions
A29: G | B29: Roof Constructions
A30: G | B30: General Information | F30: Baseline | H30: Proposed | K30: Roof Solar Reflectance and Thermal Emittance
A31: G | B31: Building ID | C31: New or Existing Construction | D31: Space-Conditioning Category | F31: Description | G31: Assembly U-factor | H31: Description | I31: Assembly U-factor | K31: Baseline | L31: Proposed
A32: G | B32: Helpful Notes | F32: • Describe the Baseline roof construction (for example: R-20 (R-2.6) continuous insulation entirely above metal deck). • New roofs: insulation entirely above deck with U-factor from appropriate Table 5.5 per Table G3.1#5(b). • Existing roofs: existing conditions per Table G3.1#5(f). | H32: • Describe the Proposed roof construction and Appendix A Table if referenced (for example: R-30 (R-5.3) continuous insulation entirely above metal deck per Table A2.2). • Proposed construction assembly U-factor should be as-designed and consistent with Appendix A of ASHRAE 90.1. | K32: • In accordance with Section 5.5.3.1.1(a) or 0.3/0.9 per Table G3.1#5(c). • Verify Baseline requirements for climate zones 1 through 3.
A33: G | B33: =B31 -> Building ID | C33: =C31 -> New or Existing Construction | D33: Space-Conditioning Category | F33: Base_Description | G33: Assembly U-factor | H33: Proposed_Description | I33: Assembly U-factor | K33: Baseline | L33: Proposed | Q33: Default_Description | R33: Default_Assembly_U-factor
A34: A | B34: =GI_Project_Name -> Project Name | F34: =IF(AND($O34<>0,$D34<>""),$O34,"") ->  | G34: =IF(AND($P34<>0,$D34<>""),$P34,"") ->  | O34: =IFERROR(IF(C34="New",INDEX('Envelope Assumptions'!$A$2:$D$38,MATCH('General Information'!$J$12,'Envelope Assumptions'!$A$2:$A$38,0),MATCH(D34,'Envelope Assumptions'!$A$2:$D$2,0)),0),"") -> 0 | P34: =IFERROR(IF(C34="New",INDEX('Envelope Assumptions'!$X$2:$Z$38,MATCH('General Information'!$J$12,'Envelope Assumptions'!$A$2:$A$38,0),MATCH(D34,'Envelope Assumptions'!$X$2:$Z$2,0)),0),"") -> 0 | Q34: =IF(AND($O34<>0,$D34<>""),$O34,"") ->  | R34: =IF(AND($P34<>0,$D34<>""),$P34,"") -> 
F35: =IF(AND($O35<>0,$D35<>""),$O35,"") ->  | G35: =IF(AND($P35<>0,$D35<>""),$P35,"") ->  | O35: =IFERROR(IF(C35="New",INDEX('Envelope Assumptions'!$A$2:$D$38,MATCH('General Information'!$J$12,'Envelope Assumptions'!$A$2:$A$38,0),MATCH(D35,'Envelope Assumptions'!$A$2:$D$2,0)),0),"") -> 0 | P35: =IFERROR(IF(C35="New",INDEX('Envelope Assumptions'!$X$2:$Z$38,MATCH('General Information'!$J$12,'Envelope Assumptions'!$A$2:$A$38,0),MATCH(D35,'Envelope Assumptions'!$X$2:$Z$2,0)),0),"") -> 0 | Q35: =IF(AND($O35<>0,$D35<>""),$O35,"") ->  | R35: =IF(AND($P35<>0,$D35<>""),$P35,"") -> 
O36: =IFERROR(IF(C36="New",INDEX('Envelope Assumptions'!$A$2:$D$38,MATCH('General Information'!$J$12,'Envelope Assumptions'!$A$2:$A$38,0),MATCH(D36,'Envelope Assumptions'!$A$2:$D$2,0)),0),"") -> 0 | P36: =IFERROR(IF(C36="New",INDEX('Envelope Assumptions'!$X$2:$Z$38,MATCH('General Information'!$J$12,'Envelope Assumptions'!$A$2:$A$38,0),MATCH(D36,'Envelope Assumptions'!$X$2:$Z$2,0)),0),"") -> 0
A37: G
A38: G
A39: G | B39: Above-Grade Exterior Wall Constructions
A40: G | B40: General Information | F40: Baseline | H40: Proposed
A41: G | B41: Building ID | C41: New or Existing Construction | D41: Space-Conditioning Category | F41: Description | G41: Assembly U-factor | H41: Description | I41: Assembly U-factor
A42: G | B42: Helpful Notes | F42: • Describe the Baseline above-grade exterior wall construction (for example: steel-framed with R-13.0 (R-2.3) cavity insulation and R-7.5 (R-1.3)continuous insulation). • New above-grade walls: steel-framed with U-factor from appropriate Table 5.5 per Table G3.1#5(b). • Existing above-grade walls: existing conditions per Table G3.1#5(f). | H42: • Describe the Proposed above-grade exterior wall construction and Appendix A Table referenced (for example: 6" (150mm) steel frames spaced 24" (610mm) on center with R-21 cavity insulation and R-10 (R3.7)continuous insulation per Table A3.3). • Proposed construction assembly U-factor should be as-designed and consistent with Appendix A of ASHRAE 90.1.
A43: G | B43: =B41 -> Building ID | C43: =C41 -> New or Existing Construction | D43: =D41 -> Space-Conditioning Category | F43: Base_Description | G43: =G41 -> Assembly U-factor | H43: Proposed_Description | I43: =I41 -> Assembly U-factor | Q43: Default_Description | R43: Default_Assembly_U-factor
A44: B | B44: =GI_Project_Name -> Project Name | F44: =IF(AND($O44<>0,$D44<>""),$O44,"") ->  | G44: =IF(AND($P44<>0,$D44<>""),$P44,"") ->  | O44: =IFERROR(IF(C44="New",INDEX('Envelope Assumptions'!$E$2:$G$38,MATCH('General Information'!$J$12,'Envelope Assumptions'!$A$2:$A$38,0),MATCH(D44,'Envelope Assumptions'!$E$2:$G$2,0)),0),"") -> 0 | P44: =IFERROR(IF(C44="New",INDEX('Envelope Assumptions'!$AA$2:$AC$38,MATCH('General Information'!$J$12,'Envelope Assumptions'!$A$2:$A$38,0),MATCH(D44,'Envelope Assumptions'!$AA$2:$AC$2,0)),0),"") -> 0 | Q44: =IF(AND($O44<>0,$D44<>""),$O44,"") ->  | R44: =IF(AND($P44<>0,$D44<>""),$P44,"") -> 
F45: =IF(AND($O45<>0,$D45<>""),$O45,"") ->  | G45: =IF(AND($P45<>0,$D45<>""),$P45,"") ->  | O45: =IFERROR(IF(C45="New",INDEX('Envelope Assumptions'!$E$2:$G$38,MATCH('General Information'!$J$12,'Envelope Assumptions'!$A$2:$A$38,0),MATCH(D45,'Envelope Assumptions'!$E$2:$G$2,0)),0),"") -> 0 | P45: =IFERROR(IF(C45="New",INDEX('Envelope Assumptions'!$AA$2:$AC$38,MATCH('General Information'!$J$12,'Envelope Assumptions'!$A$2:$A$38,0),MATCH(D45,'Envelope Assumptions'!$AA$2:$AC$2,0)),0),"") -> 0 | Q45: =IF(AND($O45<>0,$D45<>""),$O45,"") ->  | R45: =IF(AND($P45<>0,$D45<>""),$P45,"") -> 
O46: =IFERROR(IF(C46="New",INDEX('Envelope Assumptions'!$E$2:$G$38,MATCH('General Information'!$J$12,'Envelope Assumptions'!$A$2:$A$38,0),MATCH(D46,'Envelope Assumptions'!$E$2:$G$2,0)),0),"") -> 0 | P46: =IFERROR(IF(C46="New",INDEX('Envelope Assumptions'!$AA$2:$AC$38,MATCH('General Information'!$J$12,'Envelope Assumptions'!$A$2:$A$38,0),MATCH(D46,'Envelope Assumptions'!$AA$2:$AC$2,0)),0),"") -> 0
A47: G
A48: G
A49: G | B49: Below-Grade Exterior Wall Constructions
A50: G | B50: General Information | F50: Baseline | H50: Proposed
A51: G | B51: Building ID | C51: New or Existing Construction | D51: Space-Conditioning Category | F51: Description | G51: Assembly C-factor | H51: Description | I51: Assembly C-factor
A52: G | B52: Helpful Notes | F52: • Describe the Baseline below-grade exterior wall construction (for example: 8" (200mm) medium-weight concrete block with solid grouted cores and R-7.5 (R-1.3)continuous insulation). • New below-grade walls: 8" medium weight concrete block with solid grouted cores as defined in A4.1 with C-factor from appropriate Table 5.5 per Table G3.1#5(b). • Existing below-grade walls: existing conditions per Table G3.1#5(f). | H52: • Describe the Baseline below-grade exterior wall construction and Appendix A Table referenced (for example: 8" (200mm) medium-weight concrete b-lock with solid grouted cores and R-10 (R3.7) continuous insulation per Table A4.2). • Proposed construction assembly U-factor should be as-designed and consistent with Appendix A of ASHRAE 90.1.
A53: G | B53: =B51 -> Building ID | C53: =C51 -> New or Existing Construction | D53: =D51 -> Space-Conditioning Category | F53: Base_Description | G53: =G51 -> Assembly C-factor | H53: Proposed_Description | I53: =I51 -> Assembly C-factor | Q53: Default_Description | R53: Default_Assembly_C-factor
A54: C | B54: =GI_Project_Name -> Project Name | F54: =IF(AND($O54<>0,$D54<>""),$O54,"") ->  | G54: =IF(AND($P54<>0,$D54<>""),$P54,"") ->  | O54: =IFERROR(IF(C54="New",INDEX('Envelope Assumptions'!H$2:$J$38,MATCH('General Information'!$J$12,'Envelope Assumptions'!$A$2:$A$38,0),MATCH(D54,'Envelope Assumptions'!$H$2:$J$2,0)),0),"") -> 0 | P54: =IFERROR(IF(C54="New",INDEX('Envelope Assumptions'!$AD$2:$AF$38,MATCH('General Information'!$J$12,'Envelope Assumptions'!$A$2:$A$38,0),MATCH(D54,'Envelope Assumptions'!$AD$2:$AF$2,0)),0),"") -> 0 | Q54: =IF(AND($O54<>0,$D54<>""),$O54,"") ->  | R54: =IF(AND($P54<>0,$D54<>""),$P54,"") -> 
F55: =IF(AND($O55<>0,$D55<>""),$O55,"") ->  | G55: =IF(AND($P55<>0,$D55<>""),$P55,"") ->  | O55: =IFERROR(IF(C55="New",INDEX('Envelope Assumptions'!H$2:$J$38,MATCH('General Information'!$J$12,'Envelope Assumptions'!$A$2:$A$38,0),MATCH(D55,'Envelope Assumptions'!$H$2:$J$2,0)),0),"") -> 0 | P55: =IFERROR(IF(C55="New",INDEX('Envelope Assumptions'!$AD$2:$AF$38,MATCH('General Information'!$J$12,'Envelope Assumptions'!$A$2:$A$38,0),MATCH(D55,'Envelope Assumptions'!$AD$2:$AF$2,0)),0),"") -> 0 | Q55: =IF(AND($O55<>0,$D55<>""),$O55,"") ->  | R55: =IF(AND($P55<>0,$D55<>""),$P55,"") -> 
O56: =IFERROR(IF(C56="New",INDEX('Envelope Assumptions'!H$2:$J$38,MATCH('General Information'!$J$12,'Envelope Assumptions'!$A$2:$A$38,0),MATCH(D56,'Envelope Assumptions'!$H$2:$J$2,0)),0),"") -> 0 | P56: =IFERROR(IF(C56="New",INDEX('Envelope Assumptions'!$AD$2:$AF$38,MATCH('General Information'!$J$12,'Envelope Assumptions'!$A$2:$A$38,0),MATCH(D56,'Envelope Assumptions'!$AD$2:$AF$2,0)),0),"") -> 0
A57: G
A58: G
A59: G | B59: Exposed Floor Constructions
A60: G | B60: General Information | F60: Baseline | H60: Proposed
A61: G | B61: Building ID | C61: New or Existing Construction | D61: Space-Conditioning Category | F61: Description | G61: Assembly U-factor | H61: Description | I61: Assembly U-factor
A62: G | B62: Helpful Notes | F62: • Describe the Baseline floor construction (for example: steel-joist with R-30 (R-5.3) batt insulation between the floor joists) • New floors: steel-joist with U-factor from appropriate Table 5.5 per Table G3.1#5(b). • Existing floors: existing conditions per Table G3.1#5(f). • For floor assemblies above unconditioned or semiheated space, select the space conditioning category as semiheated per 90.1-2010 User's Manual, Section 5.1.2-Space Conditioning Categories (Figure 5-B) | H62: • Describe the Proposed floor construction and Appendix A Table referenced (for example: steel-joist with R-20 (R-2.6) spray-on insulation on underside of floor and joists per Table A5.3). • Proposed construction assembly U-factor should be as-designed and consistent with Appendix A of ASHRAE 90.1.
A63: G | B63: =B61 -> Building ID | C63: =C61 -> New or Existing Construction | D63: =D61 -> Space-Conditioning Category | F63: Base_Description | G63: =G61 -> Assembly U-factor | H63: Proposed_Description | I63: =I61 -> Assembly U-factor | Q63: Default_Description | R63: Default_Assembly_U-factor
A64: D | B64: =GI_Project_Name -> Project Name | F64: =IF(AND($O64<>0,$D64<>""),$O64,"") ->  | G64: =IF(AND($P64<>0,$D64<>""),$P64,"") ->  | O64: =IFERROR(IF(C64="New",INDEX('Envelope Assumptions'!K$2:$M$38,MATCH('General Information'!$J$12,'Envelope Assumptions'!$A$2:$A$38,0),MATCH(D64,'Envelope Assumptions'!$K$2:$M$2,0)),0),"") -> 0 | P64: =IFERROR(IF(C64="New",INDEX('Envelope Assumptions'!$AG$2:$AI$38,MATCH('General Information'!$J$12,'Envelope Assumptions'!$A$2:$A$38,0),MATCH(D64,'Envelope Assumptions'!$AG$2:$AI$2,0)),0),"") -> 0 | Q64: =IF(AND($O64<>0,$D64<>""),$O64,"") ->  | R64: =IF(AND($P64<>0,$D64<>""),$P64,"") -> 
F65: =IF(AND($O65<>0,$D65<>""),$O65,"") ->  | G65: =IF(AND($P65<>0,$D65<>""),$P65,"") ->  | O65: =IFERROR(IF(C65="New",INDEX('Envelope Assumptions'!K$2:$M$38,MATCH('General Information'!$J$12,'Envelope Assumptions'!$A$2:$A$38,0),MATCH(D65,'Envelope Assumptions'!$K$2:$M$2,0)),0),"") -> 0 | P65: =IFERROR(IF(C65="New",INDEX('Envelope Assumptions'!$AG$2:$AI$38,MATCH('General Information'!$J$12,'Envelope Assumptions'!$A$2:$A$38,0),MATCH(D65,'Envelope Assumptions'!$AG$2:$AI$2,0)),0),"") -> 0 | Q65: =IF(AND($O65<>0,$D65<>""),$O65,"") ->  | R65: =IF(AND($P65<>0,$D65<>""),$P65,"") -> 
O66: =IFERROR(IF(C66="New",INDEX('Envelope Assumptions'!K$2:$M$38,MATCH('General Information'!$J$12,'Envelope Assumptions'!$A$2:$A$38,0),MATCH(D66,'Envelope Assumptions'!$K$2:$M$2,0)),0),"") -> 0 | P66: =IFERROR(IF(C66="New",INDEX('Envelope Assumptions'!$AG$2:$AI$38,MATCH('General Information'!$J$12,'Envelope Assumptions'!$A$2:$A$38,0),MATCH(D66,'Envelope Assumptions'!$AG$2:$AI$2,0)),0),"") -> 0
A67: G
A68: G
A69: G | B69: Slab-On-Grade Floors
A70: G | B70: General Information | F70: Baseline | H70: Proposed
A71: G | B71: Building ID | C71: New or Existing Construction | D71: Space-Conditioning Category | F71: Description | G71: Assembly F-factor | H71: Description | I71: Assembly F-factor
A72: G | B72: Helpful Notes | F72: • Describe the Baseline slab-on-grade floor construction (for example: unheated 6" (150 mm) concrete slab poured directly on the earth with no insulation). • New slab-on-grade floors: unheated 6" concrete slab as defined in A4.6 with F-factor from appropriate Table 5.5 per Table G3.1#5(b). • Existing slab-on-grade floors: existing conditions per Table G3.1#5(f). | H72: • Describe the Proposed slab-on-grade floor construction and Appendix A Table referenced (for example: unheated 6" (150 mm) concrete slab poured directly on the earth with 24" R-10 (610 mm R-3.7) vertical insulation per Table A6.3). • Proposed construction assembly U-factor should be as-designed and consistent with Appendix A of ASHRAE 90.1 .
A73: G | B73: =B71 -> Building ID | C73: =C71 -> New or Existing Construction | D73: =D71 -> Space-Conditioning Category | F73: Base_Description | G73: =G71 -> Assembly F-factor | H73: Proposed_Description | I73: =I71 -> Assembly F-factor | Q73: Default_Description | R73: Default_Assembly_F-factor
A74: E | B74: =GI_Project_Name -> Project Name | F74: =IF(AND($O74<>0,$D74<>""),$O74,"") ->  | G74: =IF(AND($P74<>0,$D74<>""),$P74,"") ->  | O74: =IFERROR(IF(C74="New",INDEX('Envelope Assumptions'!N$2:$P$38,MATCH('General Information'!$J$12,'Envelope Assumptions'!$A$2:$A$38,0),MATCH(D74,'Envelope Assumptions'!$N$2:$P$2,0)),0),"") -> 0 | P74: =IFERROR(IF(C74="New",INDEX('Envelope Assumptions'!$AJ$2:$AL$38,MATCH('General Information'!$J$12,'Envelope Assumptions'!$A$2:$A$38,0),MATCH(D74,'Envelope Assumptions'!$AJ$2:$AL$2,0)),0),"") -> 0 | Q74: =IF(AND($O74<>0,$D74<>""),$O74,"") ->  | R74: =IF(AND($P74<>0,$D74<>""),$P74,"") -> 
F75: =IF(AND($O75<>0,$D75<>""),$O75,"") ->  | G75: =IF(AND($P75<>0,$D75<>""),$P75,"") ->  | O75: =IFERROR(IF(C75="New",INDEX('Envelope Assumptions'!N$2:$P$38,MATCH('General Information'!$J$12,'Envelope Assumptions'!$A$2:$A$38,0),MATCH(D75,'Envelope Assumptions'!$N$2:$P$2,0)),0),"") -> 0 | P75: =IFERROR(IF(C75="New",INDEX('Envelope Assumptions'!$AJ$2:$AL$38,MATCH('General Information'!$J$12,'Envelope Assumptions'!$A$2:$A$38,0),MATCH(D75,'Envelope Assumptions'!$AJ$2:$AL$2,0)),0),"") -> 0 | Q75: =IF(AND($O75<>0,$D75<>""),$O75,"") ->  | R75: =IF(AND($P75<>0,$D75<>""),$P75,"") -> 
O76: =IFERROR(IF(C76="New",INDEX('Envelope Assumptions'!N$2:$P$38,MATCH('General Information'!$J$12,'Envelope Assumptions'!$A$2:$A$38,0),MATCH(D76,'Envelope Assumptions'!$N$2:$P$2,0)),0),"") -> 0 | P76: =IFERROR(IF(C76="New",INDEX('Envelope Assumptions'!$AJ$2:$AL$38,MATCH('General Information'!$J$12,'Envelope Assumptions'!$A$2:$A$38,0),MATCH(D76,'Envelope Assumptions'!$AJ$2:$AL$2,0)),0),"") -> 0
A77: G
A78: G
A79: G | B79: Opaque Doors
A80: G | B80: General Information | F80: Baseline | H80: Proposed
A81: G | B81: Building ID | C81: New or Existing Construction | D81: Space-Conditioning Category | F81: Description | G81: Assembly U-factor | H81: Description | I81: Assembly U-factor
A82: G | B82: Helpful Notes | F82: • Describe the Baseline opaque door construction (for example: swinging or nonswinging). • New opaque doors: U-factor from appropriate Table 5.5 per Table G3.1#5(b). • Existing opaque doors: existing conditions per Table G3.1#5(f). | H82: • Describe the Proposed opaque door construction (for example: insulated metal swinging door). • Proposed construction assembly U-factor should be as-designed and consistent with Appendix A of ASHRAE 90.1.
A83: G | B83: =B81 -> Building ID | C83: =C81 -> New or Existing Construction | D83: =D81 -> Space-Conditioning Category | F83: Base_Description | G83: =G81 -> Assembly U-factor | H83: Proposed_Description | I83: =I81 -> Assembly U-factor | Q83: Default_Description | R83: Default_Assembly_U-factor
A84: F | B84: =GI_Project_Name -> Project Name | F84: =IF(AND($O84<>0,$D84<>""),$O84,"") ->  | G84: =IF(AND($P84<>0,$D84<>""),$P84,"") ->  | O84: =IFERROR(IF(C84="New",CONCATENATE("Swinging Doors: ",INDEX('Envelope Assumptions'!Q$2:$S$38,MATCH('General Information'!$J$12,'Envelope Assumptions'!$A$2:$A$38,0),MATCH(D84,'Envelope Assumptions'!$Q$2:$S$2,0)),"; Nonswinging Doors: ",INDEX('Envelope Assumptions'!T$2:$V$38,MATCH('General Information'!$J$12,'Envelope Assumptions'!$A$2:$A$38,0),MATCH(D84,'Envelope Assumptions'!$T$2:$V$2,0))),0),"") -> 0 | P84: =IFERROR(IF(C84="New",CONCATENATE(INDEX('Envelope Assumptions'!AM$2:$AO$38,MATCH('General Information'!$J$12,'Envelope Assumptions'!$A$2:$A$38,0),MATCH(D84,'Envelope Assumptions'!$AM$2:$AO$2,0))," / ",INDEX('Envelope Assumptions'!AP$2:$AR$38,MATCH('General Information'!$J$12,'Envelope Assumptions'!$A$2:$A$38,0),MATCH(D84,'Envelope Assumptions'!$AP$2:$AR$2,0))),0),0) -> 0 | Q84: =IF(AND($O84<>0,$D84<>""),$O84,"") ->  | R84: =IF(AND($P84<>0,$D84<>""),$P84,"") -> 
F85: =IF(AND($O85<>0,$D85<>""),$O85,"") ->  | G85: =IF(AND($P85<>0,$D85<>""),$P85,"") ->  | O85: =IFERROR(IF(C85="New",CONCATENATE("Swinging Doors: ",INDEX('Envelope Assumptions'!Q$2:$S$38,MATCH('General Information'!$J$12,'Envelope Assumptions'!$A$2:$A$38,0),MATCH(D85,'Envelope Assumptions'!$Q$2:$S$2,0)),"; Nonswinging Doors: ",INDEX('Envelope Assumptions'!T$2:$V$38,MATCH('General Information'!$J$12,'Envelope Assumptions'!$A$2:$A$38,0),MATCH(D85,'Envelope Assumptions'!$T$2:$V$2,0))),0),"") -> 0 | P85: =IFERROR(IF(C85="New",CONCATENATE(INDEX('Envelope Assumptions'!AM$2:$AO$38,MATCH('General Information'!$J$12,'Envelope Assumptions'!$A$2:$A$38,0),MATCH(D85,'Envelope Assumptions'!$AM$2:$AO$2,0))," / ",INDEX('Envelope Assumptions'!AP$2:$AR$38,MATCH('General Information'!$J$12,'Envelope Assumptions'!$A$2:$A$38,0),MATCH(D85,'Envelope Assumptions'!$AP$2:$AR$2,0))),0),0) -> 0 | Q85: =IF(AND($O85<>0,$D85<>""),$O85,"") ->  | R85: =IF(AND($P85<>0,$D85<>""),$P85,"") -> 
F86: =IF(AND($O86<>0,$D86<>""),$O86,"") ->  | G86: =IF(AND($P86<>0,$D86<>""),$P86,"") ->  | O86: =IFERROR(IF(C86="New",CONCATENATE("Swinging Doors: ",INDEX('Envelope Assumptions'!Q$2:$S$38,MATCH('General Information'!$J$12,'Envelope Assumptions'!$A$2:$A$38,0),MATCH(D86,'Envelope Assumptions'!$Q$2:$S$2,0)),"; Nonswinging Doors: ",INDEX('Envelope Assumptions'!T$2:$V$38,MATCH('General Information'!$J$12,'Envelope Assumptions'!$A$2:$A$38,0),MATCH(D86,'Envelope Assumptions'!$T$2:$V$2,0))),0),"") -> 0 | P86: =IFERROR(IF(C86="New",CONCATENATE(INDEX('Envelope Assumptions'!AM$2:$AO$38,MATCH('General Information'!$J$12,'Envelope Assumptions'!$A$2:$A$38,0),MATCH(D86,'Envelope Assumptions'!$AM$2:$AO$2,0))," / ",INDEX('Envelope Assumptions'!AP$2:$AR$38,MATCH('General Information'!$J$12,'Envelope Assumptions'!$A$2:$A$38,0),MATCH(D86,'Envelope Assumptions'!$AP$2:$AR$2,0))),0),0) -> 0 | Q86: =IF(AND($O86<>0,$D86<>""),$O86,"") ->  | R86: =IF(AND($P86<>0,$D86<>""),$P86,"") -> 
A87: G
A88: G
A89: G | B89: Additional notes:
A90: G

Sheet Shading and Fenestration
A1: G
A2: G | B2: Shading and Fenestration
A3: G
A4: G
A5: G | B5: Building Massing and Zoning
A6: G | B6: Instructions: Provide the following shading and orientation information. An example of the expected level of detail has been provided for each input. For any information not applicable to the project, simply enter "N/A".
B7: Manual fenestration shading devices such as blinds or shades have been modeled or not modeled, the same as in the proposed.
B8: Any shading by adjacent structures and terrain or manual shading devices have been modeled or not modeled, the same as in the proposed.
B9: The baseline is modeled with the same shape and orientation as the proposed.
B10: =IF(RatingSystem_IDC,CONCATENATE("All existing fenestration has been modeled as required by Table 5.5 for the project's climate zone and Table G3.1#5(Proposed)(c) and (d)"," and are not modeled using Exception (f) per Rating system requirements"),CONCATENATE("All baseline existing fenestration for spaces with unchanged space conditioning categories has been modeled using existing conditions prior to revisions that are part of the project scope of work.")) -> All baseline existing fenestration for spaces with unchanged space conditioning categories has been modeled using existing conditions prior to revisions that are part of the project scope of work.
B11: Thermal Blocks were modeled consistent with Table G3.1#7 and Table G3.1#8 as applicable, and were modeled identically in the Baseline and Proposed design models
B13: For each item entered as “No” above, describe the applicable ASHRAE 90.1 Appendix G exception(s) that apply, or the circumstances preventing the building massing modeling parameters from being modeled as required. If the energy simulation software is not capable of modeling the required parameters, describe the adjustments that were made to provide a thermodynamically similar representation or provide a narrative justifying why the predicted energy performance results will not be influenced.
A16: G | B16: Building ID | D16: ='Multiple Buildings Details'!B24 -> Project Name
A17: G | B17: Model Input Parameter | F17: Baseline | I17: Proposed
B18: Helpful Notes: | F18: • All vertical glazing flush with exterior wall and no shading projections per Table G3.1#5(c) • Manual shading devices such as blinds or shades may be modeled per Table G3.1#5(c) • No self-shading per Table G3.1#5 • Total vertical fenestration areas for new construction equal to Proposed up to 40% maximum, and distributed on each face of the building in the same proportions as the Proposed design per Table G3.1#5(c) | I18: • Manual shading devices such as blinds or shades may be modeled and must be consistent with the baseline per Table G3.1#5(d) • Permanent shading devices (such as fins, overhangs, and light shelves) and automatically controlled shades or blinds must be modeled per Table G3.1#5(d)
A19: G | B19: Above-grade wall and vertical glazing area by orientation | D19: Orientation | F19: =CONCATENATE("Above-Grade Wall Area ",IF(SI_IP_Units="IP"," (sq ft)"," (sq m)")) -> Above-Grade Wall Area (sq ft) | G19: Vertical Glazing Area | I19: =CONCATENATE("Above-Grade Wall Area ",IF(SI_IP_Units="IP"," (sq ft)"," (sq m)")) -> Above-Grade Wall Area (sq ft) | J19: Vertical Glazing Area
A20: G | G20: =IF(SI_IP_Units="IP"," (sq ft)"," (sq m)") -> (sq ft) | H20: (%) | J20: =IF(SI_IP_Units="IP"," (sq ft)"," (sq m)") -> (sq ft) | K20: (%) | O20: Building ID | P20: %Difference | Q20: >40%Error | R20: Count
A21: G | D21: North | H21: =IFERROR(G21/F21,"") ->  | I21: Identical to baseline | K21: =IFERROR(J21/F21,"") -> 
A22: G | D22: East | H22: =IFERROR(G22/F22,"") ->  | I22: Identical to baseline | K22: =IFERROR(J22/F22,"") -> 
A23: G | D23: South | I23: Identical to baseline
A24: G | D24: West | I24: Identical to baseline
A25: G | D25: Total | F25: =SUM(F21:F24) -> 0 | G25: =SUM(G21:G24) -> 0 | H25: =IFERROR(G25/I25,0) -> 0 | I25: =F25 -> 0 | J25: =SUM(J21:J24) -> 0 | K25: =IFERROR(J25/I25,0) -> 0 | O25: =IF(ResDwellingUnitsExist="No",D16,INDEX(MBD_BS_Table,MATCH(OFFSET(O25,-9,-11,1,1),MBD_BS_Index,0),MATCH('Multiple Buildings Details'!$E$22,MBD_BS_Hdr,0))) -> Project Name | P25: =IFERROR(IF(AND(H25<0.4,K25<0.4),ABS(H25-K25)/MIN(H25,K25),""),0) -> 0 | Q25: =IFERROR(AND(H25>40.5%,K25>40.5%),FALSE) -> FALSE
A26: G | B26: Roof and skylight area | F26: =CONCATENATE("Roof Area ",IF(SI_IP_Units="IP"," (sq ft)"," (sq m)")) -> Roof Area (sq ft) | G26: Skylight Area | I26: =CONCATENATE("Roof Area ",IF(SI_IP_Units="IP"," (sq ft)"," (sq m)")) -> Roof Area (sq ft) | J26: Skylight Area
A27: G | G27: =IF(SI_IP_Units="IP"," (sq ft)"," (sq m)") -> (sq ft) | H27: (%) | J27: =IF(SI_IP_Units="IP"," (sq ft)"," (sq m)") -> (sq ft) | K27: (%)
A28: G | H28: =IFERROR(G28/F28,0) -> 0 | I28: Identical to baseline | K28: =IFERROR(J28/F28,0) -> 0
A29: G | B29: Number of Thermal Blocks | F29: Conditioned | G29: Semi-heated | H29: Unconditioned | I29: Conditioned | J29: Semi-heated | K29: Unconditioned
A30: G | I30: Identical to baseline | J30: Identical to baseline | K30: Identical to baseline | O30: =CONCATENATE(INDEX(MBD_BS_Table,MATCH(OFFSET(O30,-14,-11,1,1),MBD_BS_Index,0),MATCH('Multiple Buildings Details'!$E$22,MBD_BS_Hdr,0))," zones") -> 1 zones | P30: =SUM(IFERROR(VALUE(IF(ISNUMBER(F30:H30),F30:H30,IFERROR(LEFT(F30:H30,IFERROR(FIND("to",F30:H30)-1,"")),""))),""))+SUM(IFERROR(FIND(">100",F30:H30)*100,"")) -> 0
A31: G
A32: G | B32: Reason for exemption from modeling the additional building orientations.
O33: Total | P33: =MAX(P15:P32) -> 0 | Q33: =IF(COUNTIF(Q15:Q32,TRUE)>0,TRUE,FALSE) -> FALSE
B34: =IF(IFERROR(FIND("*",B33),FALSE),"* Please ensure that the site plan provided for the Project Information forms clearly indicate the constraints to comply with Table G3.1.5 (a) (baseline) Exception 1","") -> 
A38: G | B38: Fenestration
A39: G | B39: Instructions: Describe each unique fenestration assembly on a separate row in the following table. Please refer to the column header notes for information about Appendix G modeling protocol. For any information not applicable to the project, simply enter "N/A". Baseline information will autogenerate for new construction.
A40: G | B40: Vertical Glazing
A41: G | B41: General Information | F41: Baseline | I41: Proposed
A42: G | B42: Building ID | C42: New or Existing Construction | D42: Space-Conditioning Category | F42: Description | G42: Assembly U-factor | H42: SHGC | I42: Description | J42: Assembly U-factor | K42: SHGC | L42: VLT
A43: G | B43: Helpful Notes: | F43: • New vertical glazing: • If "New" is chosen, select a description. • Assembly U-factor and SHGC from appropriate Table 5.5 per Table G3.1#5(c). • Existing vertical glazing: • If "Existing" is chosen, provide a description. • Existing conditions per Table G3.1#5(f). • Enter the Baseline vertical glazing assembly solar heat gain coefficient (SHGC). Please note that this is not equivalent to the shading coefficient (SC). | I43: • Proposed vertical glazing assembly U-factor should be as-designed and account for the impact of the frames on the whole assembly. Reference Table A8.2 of ASHRAE 90.1 as necessary. • Describe the Proposed vertical glazing assembly (for example: double glazing, argon filled, low-e coating, aluminum frame with thermal break) • Enter the Proposed vertical glazing assembly solar heat gain coefficient (SHGC). Please note that this is not equivalent to the shading coefficient (SC). • Enter the Proposed vertical glazing assembly visual light transmittance (VLT)
A44: G | B44: =B42 -> Building ID | C44: =C42 -> New or Existing Construction | D44: =D42 -> Space-Conditioning Category | F44: =F42 -> Description | G44: Base_Assembly_U-factor | H44: Base_SHGC | I44: Description | J44: Assembly U-factor | K44: SHGC | L44: VLT | R44: Default_Assembly_U-factor | S44: Default_SHGC
A45: A | B45: =GI_Project_Name -> Project Name | G45: =IF($C45="Existing","Provide U-Factor",IF($P45<>0,$P45,"")) ->  | H45: =IF($C45="Existing", "Provide SHGC",IF($Q45<>0,$Q45,"")) ->  | P45: =IFERROR(IF(AND(C45="New",D45<>"Semiheated"),INDEX('Envelope Assumptions'!$AT$2:$AW$38,MATCH('General Information'!$J$12,'Envelope Assumptions'!$A$2:$A$38,0),MATCH(F45,'Envelope Assumptions'!$AT$2:$AW$2,0)),0),"") -> 0 | Q45: =IFERROR(IF(AND(OR('General Information'!$C$48="3B",'General Information'!$C$48="3C"),$C45="New",$D45="Residential"),0,IF(AND($C45="New",$D45<>"Semiheated"),INDEX('Envelope Assumptions'!$AX$1:$AX$38,MATCH('General Information'!$J$12,'Envelope Assumptions'!$A$2:$A$38,0)),0)),"") -> 0 | R45: =IF($C45="Existing","Provide U-Factor",IF($P45<>0,$P45,"")) ->  | S45: =IF($C45="Existing", "Provide SHGC",IF($Q45<>0,$Q45,"")) -> 
B46: =GI_Project_Name -> Project Name | G46: =IF($C46="Existing","Provide U-Factor",IF($P46<>0,$P46,"")) ->  | H46: =IF($C46="Existing", "Provide SHGC",IF($Q46<>0,$Q46,"")) ->  | P46: =IFERROR(IF(AND(C46="New",D46<>"Semiheated"),INDEX('Envelope Assumptions'!$AT$2:$AW$38,MATCH('General Information'!$J$12,'Envelope Assumptions'!$A$2:$A$38,0),MATCH(F46,'Envelope Assumptions'!$AT$2:$AW$2,0)),0),"") -> 0 | Q46: =IFERROR(IF(AND(OR('General Information'!$C$48="3B",'General Information'!$C$48="3C"),$C46="New",$D46="Residential"),0,IF(AND($C46="New",$D46<>"Semiheated"),INDEX('Envelope Assumptions'!$AX$1:$AX$38,MATCH('General Information'!$J$12,'Envelope Assumptions'!$A$2:$A$38,0)),0)),"") -> 0 | R46: =IF($C46="Existing","Provide U-Factor",IF($P46<>0,$P46,"")) ->  | S46: =IF($C46="Existing", "Provide SHGC",IF($Q46<>0,$Q46,"")) -> 
B47: =GI_Project_Name -> Project Name | P47: =IFERROR(IF(AND(C47="New",D47<>"Semiheated"),INDEX('Envelope Assumptions'!$AT$2:$AW$38,MATCH('General Information'!$J$12,'Envelope Assumptions'!$A$2:$A$38,0),MATCH(F47,'Envelope Assumptions'!$AT$2:$AW$2,0)),0),"") -> 0 | Q47: =IFERROR(IF(AND(OR('General Information'!$C$48="3B",'General Information'!$C$48="3C"),$C47="New",$D47="Residential"),0,IF(AND($C47="New",$D47<>"Semiheated"),INDEX('Envelope Assumptions'!$AX$1:$AX$38,MATCH('General Information'!$J$12,'Envelope Assumptions'!$A$2:$A$38,0)),0)),"") -> 0
B48: =GI_Project_Name -> Project Name | P48: =IFERROR(IF(AND(C48="New",D48<>"Semiheated"),INDEX('Envelope Assumptions'!$AT$2:$AW$38,MATCH('General Information'!$J$12,'Envelope Assumptions'!$A$2:$A$38,0),MATCH(F48,'Envelope Assumptions'!$AT$2:$AW$2,0)),0),"") -> 0 | Q48: =IFERROR(IF(AND(OR('General Information'!$C$48="3B",'General Information'!$C$48="3C"),$C48="New",$D48="Residential"),0,IF(AND($C48="New",$D48<>"Semiheated"),INDEX('Envelope Assumptions'!$AX$1:$AX$38,MATCH('General Information'!$J$12,'Envelope Assumptions'!$A$2:$A$38,0)),0)),"") -> 0
A49: G
A50: G
A51: G | B51: Skylights
A52: G | B52: General Information | F52: Baseline | I52: Proposed
A53: G | B53: Building ID | C53: New or Existing Construction | D53: Space-Conditioning Category | F53: Description | G53: Assembly U-factor | H53: SHGC | I53: Description | J53: Assembly U-factor | K53: SHGC | L53: VLT
A54: G | B54: Helpful Notes: | F54: • New skylights: assembly U-factor and SHGC from appropriate Table 5.5 per Table G3.1#5(d). • Existing skylights: existing conditions per Table G3.1#5(f). • Enter the Baseline skylight assembly solar heat gain coefficient (SHGC). Please note that this is not equivalent to the shading coefficient (SC). | I54: • Proposed skylight assembly U-factor should be as-designed and account for the impact of the frames on the whole assembly. Reference Tables A8.1A and A8.1B of ASHRAE 90.1 as necessary. • Describe the Proposed skylight assembly (for example: glass with curb, double glazing, argon filled, low-e coating, aluminum frame with thermal break) • Enter the Proposed skylight assembly solar heat gain coefficient (SHGC). Please note that this is not equivalent to the shading coefficient (SC). • Enter the Proposed skylight assembly visual light transmittance (VLT)
A55: G | B55: =B53 -> Building ID | C55: =C53 -> New or Existing Construction | D55: =D53 -> Space-Conditioning Category | F55: Base_Description | G55: Base_Assembly_U-factor | H55: Base_SHGC | I55: Proposed_Description | J55: =J53 -> Assembly U-factor | K55: SHGC | L55: VLT | R55: Default_Assembly_U-factor | S55: Default_SHGC
A56: B | B56: =GI_Project_Name -> Project Name | G56: =IF($C56="Existing","Provide U-Factor",IF($P56<>0,$P56,"")) ->  | H56: =IF($C56="Existing", "Provide SHGC",IF($Q56<>0,$Q56,"")) ->  | P56: =IFERROR(IF(AND(C56="New",D56<>"Semiheated"),INDEX('Envelope Assumptions'!$AY$2:$BD$38,MATCH('General Information'!$J$12,'Envelope Assumptions'!$A$2:$A$38,0),MATCH(F56,'Envelope Assumptions'!$AY$2:$BD$2,0)),0),"") -> 0 | Q56: =IFERROR(IF(AND(C56="New",D56="Nonresidential"),INDEX('Envelope Assumptions'!$BE$2:$BJ$38,MATCH('General Information'!$J$12,'Envelope Assumptions'!$A$2:$A$38,0),MATCH(F56,'Envelope Assumptions'!$BE$2:$BJ$2,0)),0),"") -> 0 | R56: =IF($C56="Existing","Provide U-Factor",IF($P56<>0,$P56,"")) ->  | S56: =IF($C56="Existing", "Provide SHGC",IF($Q56<>0,$Q56,"")) -> 
B57: =GI_Project_Name -> Project Name | G57: =IF($C57="Existing","Provide U-Factor",IF($P57<>0,$P57,"")) ->  | H57: =IF($C57="Existing", "Provide SHGC",IF($Q57<>0,$Q57,"")) ->  | P57: =IFERROR(IF(AND(C57="New",D57<>"Semiheated"),INDEX('Envelope Assumptions'!$AY$2:$BD$38,MATCH('General Information'!$J$12,'Envelope Assumptions'!$A$2:$A$38,0),MATCH(F57,'Envelope Assumptions'!$AY$2:$BD$2,0)),0),"") -> 0 | Q57: =IFERROR(IF(AND(C57="New",D57="Nonresidential"),INDEX('Envelope Assumptions'!$BE$2:$BJ$38,MATCH('General Information'!$J$12,'Envelope Assumptions'!$A$2:$A$38,0),MATCH(F57,'Envelope Assumptions'!$BE$2:$BJ$2,0)),0),"") -> 0 | R57: =IF($C57="Existing","Provide U-Factor",IF($P57<>0,$P57,"")) ->  | S57: =IF($C57="Existing", "Provide SHGC",IF($Q57<>0,$Q57,"")) -> 
B58: =GI_Project_Name -> Project Name | P58: =IFERROR(IF(AND(C58="New",D58<>"Semiheated"),INDEX('Envelope Assumptions'!$AY$2:$BD$38,MATCH('General Information'!$J$12,'Envelope Assumptions'!$A$2:$A$38,0),MATCH(F58,'Envelope Assumptions'!$AY$2:$BD$2,0)),0),"") -> 0 | Q58: =IFERROR(IF(AND(C58="New",D58="Nonresidential"),INDEX('Envelope Assumptions'!$BE$2:$BJ$38,MATCH('General Information'!$J$12,'Envelope Assumptions'!$A$2:$A$38,0),MATCH(F58,'Envelope Assumptions'!$BE$2:$BJ$2,0)),0),"") -> 0
A59: G
A60: G
A61: G | B61: How were the proposed framed assembly fenestration U-factors determined?
A62: G
A63: G
A64: G | B64: Additional notes:
A65: G
H68: NFRC testing for site-assembled fenestration
H69: NFRC testing for manufactured fenestration assemblies
H70: Table A8.2 (windows) and Table A8.1 (skylights)
H71: LBNL Window 5 or Window 6 calculations
H72: Energy simulation includes separate frame and glazing
H73: Other (Describe)

Sheet Envelope Assumptions (hidden)
A1: Climate Zone | B1: Roof Constructions | E1: Above-Grade Exterior Wall Constructions | H1: Below-Grade Exterior Wall Constructions | K1: Exposed Floor Constructions | N1: Slab-On-Grade Floors | Q1: Opaque Doors - Swinging | T1: Opaque Doors - Nonwwinging | X1: Roof Constructions | AA1: Above-Grade Exterior Wall Constructions | AD1: Below-Grade Exterior Wall Constructions | AG1: Exposed Floor Constructions | AJ1: Slab-On-Grade Floors | AM1: Opaque Doors - Swinging | AP1: Opaque Doors - Nonswinging | AT1: Vertical Glazing | AX1: SHGC | AY1: Skylights - Ufactor | BE1: Skylights - SHGC
B2: Nonresidential | C2: Residential | D2: Semiheated | E2: Nonresidential | F2: Residential | G2: Semiheated | H2: Nonresidential | I2: Residential | J2: Semiheated | K2: Nonresidential | L2: Residential | M2: Semiheated | N2: Nonresidential | O2: Residential | P2: Semiheated | Q2: Nonresidential | R2: Residential | S2: Semiheated | T2: Nonresidential | U2: Residential | V2: Semiheated | X2: Nonresidential | Y2: Residential | Z2: Semiheated | AA2: Nonresidential | AB2: Residential | AC2: Semiheated | AD2: Nonresidential | AE2: Residential | AF2: Semiheated | AG2: Nonresidential | AH2: Residential | AI2: Semiheated | AJ2: Nonresidential | AK2: Residential | AL2: Semiheated | AM2: Nonresidential | AN2: Residential | AO2: Semiheated | AP2: Nonresidential | AQ2: Residential | AR2: Semiheated | AT2: Nonmetal framing (all) | AU2: Metal framing (curtainwall/storefront) | AV2: Metal framing (entrance door) | AW2: Metal framing (all other) | AY2: Skylight with Curb, Glass, 0%-2.0% | AZ2: Skylight with Curb, Glass, 2.1%-5.0% | BA2: Skylight with Curb, Plastic, 0%-2.0% | BB2: Skylight with Curb, Plastic, 2.1%-5.0% | BC2: Skylight without Curb, All, 0%-2.0% | BD2: Skylight without Curb, All, 2.1%-5.0% | BE2: Skylight with Curb, Glass, 0%-2.0% | BF2: Skylight with Curb, Glass, 2.1%-5.0% | BG2: Skylight with Curb, Plastic, 0%-2.0% | BH2: Skylight with Curb, Plastic, 2.1%-5.0% | BI2: Skylight without Curb, All, 0%-2.0% | BJ2: Skylight without Curb, All, 2.1%-5.0%
A3: 1A (IP) | B3: R-15 insulation entirely above deck with a U-factor of 0.063 | C3: R-20 insulation entirely above deck with a U-factor of 0.048 | D3: R-3.8 insulation entirely above deck with a U-factor of 0.218 | E3: steel-framed with R-13 cavity insulation with a U-factor of 0.124 | F3: steel-framed with R-13 cavity insulation with a U-factor of 0.124 | G3: steel-framed with no insulation with a U-factor of 0.352 | H3: 8" medium weight concrete block with solid grouted cores and no insulation with a C-factor of 1.140 | I3: 8" medium weight concrete block with solid grouted cores and no insulation with a C-factor of 1.140 | J3: 8" medium weight concrete block with solid grouted cores and no insulation with a C-factor of 1.140 | K3: steel-joist with no insulation with a U-factor of 0.350 | L3: steel-joist with no insulation with a U-factor of 0.350 | M3: steel-joist with no insulation with a U-factor of 0.350 | N3: 6" concrete slabs with no insulation with an F-factor of 0.730 | O3: 6" concrete slabs with no insulation with an F-factor of 0.730 | P3: 6" concrete slabs with no insulation with an F-factor of 0.730 | Q3: U-factor of 0.700 | R3: U-factor of 0.700 | S3: U-factor of 0.700 | T3: U-factor of 1.450 | U3: U-factor of 1.450 | V3: U-factor of 1.450 | X3: U-0.063 | Y3: U-0.048 | Z3: U-0.218 | AA3: U-0.124 | AB3: U-0.124 | AC3: U-0.352 | AD3: C-1.140 | AE3: C-1.140 | AF3: C-1.140 | AG3: U-0.350 | AH3: U-0.350 | AI3: U-0.350 | AJ3: F-0.730 | AK3: F-0.730 | AL3: F-0.730 | AM3: U-0.700 | AN3: U-0.700 | AO3: U-0.700 | AP3: U-1.450 | AQ3: U-1.450 | AR3: U-1.450 | AT3: 1.2 | AU3: 1.2 | AV3: 1.2 | AW3: 1.2 | AX3: 0.25 | AY3: 1.98 | AZ3: 1.98 | BA3: 1.9 | BB3: 1.9 | BC3: 1.36 | BD3: 1.36 | BE3: 0.36 | BF3: 0.19 | BG3: 0.34 | BH3: 0.27 | BI3: 0.36 | BJ3: 0.19
A4: 1A (SI) | B4: R-2.6 c.i. insulation entirely above deck with a U-factor of 0.360 | C4: R-3.5 c.i. insulation entirely above deck with a U-factor of 0.273 | D4: R-0.7 c.i. insulation entirely above deck with a U-factor of 1.240 | E4: steel-framed with R-2.3 cavity insulation with a U-factor of 0.705 | F4: steel-framed with R-2.3 cavity insulation with a U-factor of 0.705 | G4: steel-framed with no insulation with a U-factor of 1.998 | H4: 205 mm medium weight concrete block with solid grouted cores and no insulation with a C-factor of 6.473 | I4: 205 mm medium weight concrete block with solid grouted cores and no insulation with a C-factor of 6.473 | J4: 205 mm medium weight concrete block with solid grouted cores and no insulation with a C-factor of 6.473 | K4: steel-joist with no insulation with a U-factor of 1.986 | L4: steel-joist with no insulation with a U-factor of 1.986 | M4: steel-joist with no insulation with a U-factor of 1.986 | N4: 150 mm concrete slabs with no insulation with an F-factor of 1.264 | O4: 150 mm concrete slabs with no insulation with an F-factor of 1.264 | P4: 150 mm concrete slabs with no insulation with an F-factor of 1.264 | Q4: U-factor of 3.975 | R4: U-factor of 3.975 | S4: U-factor of 3.975 | T4: U-factor of 8.233 | U4: U-factor of 8.233 | V4: U-factor of 8.233 | X4: U-0.360 | Y4: U-0.273 | Z4: U-1.240 | AA4: U-0.705 | AB4: U-0.705 | AC4: U-1.998 | AD4: C-6.473 | AE4: C-6.473 | AF4: C-6.473 | AG4: U-1.986 | AH4: U-1.986 | AI4: U-1.986 | AJ4: F-1.264 | AK4: F-1.264 | AL4: F-1.264 | AM4: U-3.975 | AN4: U-3.975 | AO4: U-3.975 | AP4: U-8.233 | AQ4: U-8.233 | AR4: U-8.233 | AT4: 6.81 | AU4: 6.81 | AV4: 6.81 | AW4: 6.81 | AX4: 0.25 | AY4: 11.24 | AZ4: 11.24 | BA4: 10.79 | BB4: 10.79 | BC4: 7.72 | BD4: 7.72 | BE4: 0.36 | BF4: 0.19 | BG4: 0.34 | BH4: 0.27 | BI4: 0.36 | BJ4: 0.19
A5: 1B (IP) | B5: R-15 insulation entirely above deck with a U-factor of 0.063 | C5: R-20 insulation entirely above deck with a U-factor of 0.048 | D5: R-3.8 insulation entirely above deck with a U-factor of 0.218 | E5: steel-framed with R-13 cavity insulation with a U-factor of 0.124 | F5: steel-framed with R-13 cavity insulation with a U-factor of 0.124 | G5: steel-framed with no insulation with a U-factor of 0.352 | H5: 8" medium weight concrete block with solid grouted cores and no insulation with a C-factor of 1.140 | I5: 8" medium weight concrete block with solid grouted cores and no insulation with a C-factor of 1.140 | J5: 8" medium weight concrete block with solid grouted cores and no insulation with a C-factor of 1.140 | K5: steel-joist with no insulation with a U-factor of 0.350 | L5: steel-joist with no insulation with a U-factor of 0.350 | M5: steel-joist with no insulation with a U-factor of 0.350 | N5: 6" concrete slabs with no insulation with an F-factor of 0.730 | O5: 6" concrete slabs with no insulation with an F-factor of 0.730 | P5: 6" concrete slabs with no insulation with an F-factor of 0.730 | Q5: U-factor of 0.700 | R5: U-factor of 0.700 | S5: U-factor of 0.700 | T5: U-factor of 1.450 | U5: U-factor of 1.450 | V5: U-factor of 1.450 | X5: U-0.063 | Y5: U-0.048 | Z5: U-0.218 | AA5: U-0.124 | AB5: U-0.124 | AC5: U-0.352 | AD5: C-1.140 | AE5: C-1.140 | AF5: C-1.140 | AG5: U-0.350 | AH5: U-0.350 | AI5: U-0.350 | AJ5: F-0.730 | AK5: F-0.730 | AL5: F-0.730 | AM5: U-0.700 | AN5: U-0.700 | AO5: U-0.700 | AP5: U-1.450 | AQ5: U-1.450 | AR5: U-1.450 | AT5: 1.2 | AU5: 1.2 | AV5: 1.2 | AW5: 1.2 | AX5: 0.25 | AY5: 1.98 | AZ5: 1.98 | BA5: 1.9 | BB5: 1.9 | BC5: 1.36 | BD5: 1.36 | BE5: 0.36 | BF5: 0.19 | BG5: 0.34 | BH5: 0.27 | BI5: 0.36 | BJ5: 0.19
A6: 1B (SI) | B6: R-2.6 c.i. insulation entirely above deck with a U-factor of 0.360 | C6: R-3.5 c.i. insulation entirely above deck with a U-factor of 0.273 | D6: R-0.7 c.i. insulation entirely above deck with a U-factor of 1.240 | E6: steel-framed with R-2.3 cavity insulation with a U-factor of 0.705 | F6: steel-framed with R-2.3 cavity insulation with a U-factor of 0.705 | G6: steel-framed with no insulation with a U-factor of 1.998 | H6: 205 mm medium weight concrete block with solid grouted cores and no insulation with a C-factor of 6.473 | I6: 205 mm medium weight concrete block with solid grouted cores and no insulation with a C-factor of 6.473 | J6: 205 mm medium weight concrete block with solid grouted cores and no insulation with a C-factor of 6.473 | K6: steel-joist with no insulation with a U-factor of 1.986 | L6: steel-joist with no insulation with a U-factor of 1.986 | M6: steel-joist with no insulation with a U-factor of 1.986 | N6: 150 mm concrete slabs with no insulation with an F-factor of 1.264 | O6: 150 mm concrete slabs with no insulation with an F-factor of 1.264 | P6: 150 mm concrete slabs with no insulation with an F-factor of 1.264 | Q6: U-factor of 3.975 | R6: U-factor of 3.975 | S6: U-factor of 3.975 | T6: U-factor of 8.233 | U6: U-factor of 8.233 | V6: U-factor of 8.233 | X6: U-0.360 | Y6: U-0.273 | Z6: U-1.240 | AA6: U-0.705 | AB6: U-0.705 | AC6: U-1.998 | AD6: C-6.473 | AE6: C-6.473 | AF6: C-6.473 | AG6: U-1.986 | AH6: U-1.986 | AI6: U-1.986 | AJ6: F-1.264 | AK6: F-1.264 | AL6: F-1.264 | AM6: U-3.975 | AN6: U-3.975 | AO6: U-3.975 | AP6: U-8.233 | AQ6: U-8.233 | AR6: U-8.233 | AT6: 6.81 | AU6: 6.81 | AV6: 6.81 | AW6: 6.81 | AX6: 0.25 | AY6: 11.24 | AZ6: 11.24 | BA6: 10.79 | BB6: 10.79 | BC6: 7.72 | BD6: 7.72 | BE6: 0.36 | BF6: 0.19 | BG6: 0.34 | BH6: 0.27 | BI6: 0.36 | BJ6: 0.19
A7: 2A (IP) | B7: R-20 insulation entirely above deck with a U-factor of 0.048 | C7: R-20 insulation entirely above deck with a U-factor of 0.048 | D7: R-3.8 insulation entirely above deck with a U-factor of 0.218 | E7: steel-framed with R-13 cavity insulation with a U-factor of 0.124 | F7: steel-framed with R-13 cavity and R-7.5 continuous insulation with a U-factor of 0.064 | G7: steel-framed with R-13 cavity insulation with a U-factor of 0.124 | H7: 8" medium weight concrete block with solid grouted cores and no insulation with a C-factor of 1.140 | I7: 8" medium weight concrete block with solid grouted cores and no insulation with a C-factor of 1.140 | J7: 8" medium weight concrete block with solid grouted cores and no insulation with a C-factor of 1.140 | K7: steel-joist with R-19 insulation with a U-factor of 0.052 | L7: steel-joist with R-19 insulation with a U-factor of 0.052 | M7: steel-joist with R-13 insulation with a U-factor of 0.069 | N7: 6" concrete slabs with no insulation with an F-factor of 0.730 | O7: 6" concrete slabs with no insulation with an F-factor of 0.730 | P7: 6" concrete slabs with no insulation with an F-factor of 0.730 | Q7: U-factor of 0.700 | R7: U-factor of 0.700 | S7: U-factor of 0.700 | T7: U-factor of 1.450 | U7: U-factor of 0.500 | V7: U-factor of 1.450 | X7: U-0.048 | Y7: U-0.048 | Z7: U-0.218 | AA7: U-0.124 | AB7: U-0.064 | AC7: U-0.124 | AD7: C-1.140 | AE7: C-1.140 | AF7: C-1.140 | AG7: U-0.052 | AH7: U-0.052 | AI7: U-0.069 | AJ7: F-0.730 | AK7: F-0.730 | AL7: F-0.730 | AM7: U-0.700 | AN7: U-0.700 | AO7: U-0.700 | AP7: U-1.450 | AQ7: U-0.500 | AR7: U-1.450 | AT7: 0.75 | AU7: 0.7 | AV7: 1.1 | AW7: 0.75 | AX7: 0.25 | AY7: 1.98 | AZ7: 1.98 | BA7: 1.9 | BB7: 1.9 | BC7: 1.36 | BD7: 1.36 | BE7: 0.36 | BF7: 0.19 | BG7: 0.39 | BH7: 0.34 | BI7: 0.36 | BJ7: 0.19
A8: 2A (SI) | B8: R-3.5 c.i. insulation entirely above deck with a U-factor of 0.273 | C8: R-3.5 c.i. insulation entirely above deck with a U-factor of 0.273 | D8: R-0.7 c.i. insulation entirely above deck with a U-factor of 1.240 | E8: steel-framed with R-2.3 cavity insulation with a U-factor of 0.705 | F8: steel-framed with R-2.3 cavity and R-1.3 continuous insulation with a U-factor of 0.365 | G8: steel-framed with R-2.3 cavity insulation with a U-factor of 0.705 | H8: 205 mm medium weight concrete block with solid grouted cores and no insulation with a C-factor of 6.473 | I8: 205 mm medium weight concrete block with solid grouted cores and no insulation with a C-factor of 6.473 | J8: 205 mm medium weight concrete block with solid grouted cores and no insulation with a C-factor of 6.473 | K8: steel-joist with R-3.3 insulation with a U-factor of 0.296 | L8: steel-joist with R-3.3 insulation with a U-factor of 0.296 | M8: steel-joist with R-2.3 insulation with a U-factor of 0.390 | N8: 150 mm concrete slabs with no insulation with an F-factor of 1.264 | O8: 150 mm concrete slabs with no insulation with an F-factor of 1.264 | P8: 150 mm concrete slabs with no insulation with an F-factor of 1.264 | Q8: U-factor of 3.975 | R8: U-factor of 3.975 | S8: U-factor of 3.975 | T8: U-factor of 8.233 | U8: U-factor of 2.839 | V8: U-factor of 8.233 | X8: U-0.273 | Y8: U-0.273 | Z8: U-1.240 | AA8: U-0.705 | AB8: U-0.365 | AC8: U-0.705 | AD8: C-6.473 | AE8: C-6.473 | AF8: C-6.473 | AG8: U-0.296 | AH8: U-0.296 | AI8: U-0.390 | AJ8: F-1.264 | AK8: F-1.264 | AL8: F-1.264 | AM8: U-3.975 | AN8: U-3.975 | AO8: U-3.975 | AP8: U-8.233 | AQ8: U-2.839 | AR8: U-8.233 | AT8: 4.26 | AU8: 3.97 | AV8: 6.25 | AW8: 4.26 | AX8: 0.25 | AY8: 11.24 | AZ8: 11.24 | BA8: 10.79 | BB8: 10.79 | BC8: 7.72 | BD8: 7.72 | BE8: 0.36 | BF8: 0.19 | BG8: 0.39 | BH8: 0.34 | BI8: 0.36 | BJ8: 0.19
A9: 2B (IP) | B9: R-20 insulation entirely above deck with a U-factor of 0.048 | C9: R-20 insulation entirely above deck with a U-factor of 0.048 | D9: R-3.8 insulation entirely above deck with a U-factor of 0.218 | E9: steel-framed with R-13 cavity insulation with a U-factor of 0.124 | F9: steel-framed with R-13 cavity and R-7.5 continuous insulation with a U-factor of 0.064 | G9: steel-framed with R-13 cavity insulation with a U-factor of 0.124 | H9: 8" medium weight concrete block with solid grouted cores and no insulation with a C-factor of 1.140 | I9: 8" medium weight concrete block with solid grouted cores and no insulation with a C-factor of 1.140 | J9: 8" medium weight concrete block with solid grouted cores and no insulation with a C-factor of 1.140 | K9: steel-joist with R-19 insulation with a U-factor of 0.052 | L9: steel-joist with R-19 insulation with a U-factor of 0.052 | M9: steel-joist with R-13 insulation with a U-factor of 0.069 | N9: 6" concrete slabs with no insulation with an F-factor of 0.730 | O9: 6" concrete slabs with no insulation with an F-factor of 0.730 | P9: 6" concrete slabs with no insulation with an F-factor of 0.730 | Q9: U-factor of 0.700 | R9: U-factor of 0.700 | S9: U-factor of 0.700 | T9: U-factor of 1.450 | U9: U-factor of 0.500 | V9: U-factor of 1.450 | X9: U-0.048 | Y9: U-0.048 | Z9: U-0.218 | AA9: U-0.124 | AB9: U-0.064 | AC9: U-0.124 | AD9: C-1.140 | AE9: C-1.140 | AF9: C-1.140 | AG9: U-0.052 | AH9: U-0.052 | AI9: U-0.069 | AJ9: F-0.730 | AK9: F-0.730 | AL9: F-0.730 | AM9: U-0.700 | AN9: U-0.700 | AO9: U-0.700 | AP9: U-1.450 | AQ9: U-0.500 | AR9: U-1.450 | AT9: 0.75 | AU9: 0.7 | AV9: 1.1 | AW9: 0.75 | AX9: 0.25 | AY9: 1.98 | AZ9: 1.98 | BA9: 1.9 | BB9: 1.9 | BC9: 1.36 | BD9: 1.36 | BE9: 0.36 | BF9: 0.19 | BG9: 0.39 | BH9: 0.34 | BI9: 0.36 | BJ9: 0.19
A10: 2B (SI) | B10: R-3.5 c.i. insulation entirely above deck with a U-factor of 0.273 | C10: R-3.5 c.i. insulation entirely above deck with a U-factor of 0.273 | D10: R-0.7 c.i. insulation entirely above deck with a U-factor of 1.240 | E10: steel-framed with R-2.3 cavity insulation with a U-factor of 0.705 | F10: steel-framed with R-2.3 cavity and R-1.3 continuous insulation with a U-factor of 0.365 | G10: steel-framed with R-2.3 cavity insulation with a U-factor of 0.705 | H10: 205 mm medium weight concrete block with solid grouted cores and no insulation with a C-factor of 6.473 | I10: 205 mm medium weight concrete block with solid grouted cores and no insulation with a C-factor of 6.473 | J10: 205 mm medium weight concrete block with solid grouted cores and no insulation with a C-factor of 6.473 | K10: steel-joist with R-3.3 insulation with a U-factor of 0.296 | L10: steel-joist with R-3.3 insulation with a U-factor of 0.296 | M10: steel-joist with R-2.3 insulation with a U-factor of 0.390 | N10: 150 mm concrete slabs with no insulation with an F-factor of 1.264 | O10: 150 mm concrete slabs with no insulation with an F-factor of 1.264 | P10: 150 mm concrete slabs with no insulation with an F-factor of 1.264 | Q10: U-factor of 3.975 | R10: U-factor of 3.975 | S10: U-factor of 3.975 | T10: U-factor of 8.233 | U10: U-factor of 2.839 | V10: U-factor of 8.233 | X10: U-0.273 | Y10: U-0.273 | Z10: U-1.240 | AA10: U-0.705 | AB10: U-0.365 | AC10: U-0.705 | AD10: C-6.473 | AE10: C-6.473 | AF10: C-6.473 | AG10: U-0.296 | AH10: U-0.296 | AI10: U-0.390 | AJ10: F-1.264 | AK10: F-1.264 | AL10: F-1.264 | AM10: U-3.975 | AN10: U-3.975 | AO10: U-3.975 | AP10: U-8.233 | AQ10: U-2.839 | AR10: U-8.233 | AT10: 4.26 | AU10: 3.97 | AV10: 6.25 | AW10: 4.26 | AX10: 0.25 | AY10: 11.24 | AZ10: 11.24 | BA10: 10.79 | BB10: 10.79 | BC10: 7.72 | BD10: 7.72 | BE10: 0.36 | BF10: 0.19 | BG10: 0.39 | BH10: 0.34 | BI10: 0.36 | BJ10: 0.19
A11: 3A (IP) | B11: R-20 insulation entirely above deck with a U-factor of 0.048 | C11: R-20 insulation entirely above deck with a U-factor of 0.048 | D11: R-5.0 insulation entirely above deck with a U-factor of 0.173 | E11: steel-framed with R-13 cavity and R-3.8 continuous insulation with a U-factor of 0.084 | F11: steel-framed with R-13 cavity and R-7.5 continuous insulation with a U-factor of 0.064 | G11: steel-framed with R-13 cavity insulation with a U-factor of 0.124 | H11: 8" medium weight concrete block with solid grouted cores and no insulation with a C-factor of 1.140 | I11: 8" medium weight concrete block with solid grouted cores and no insulation with a C-factor of 1.140 | J11: 8" medium weight concrete block with solid grouted cores and no insulation with a C-factor of 1.140 | K11: steel-joist with R-19 insulation with a U-factor of 0.052 | L11: steel-joist with R-19 insulation with a U-factor of 0.052 | M11: steel-joist with R-13 insulation with a U-factor of 0.069 | N11: 6" concrete slabs with no insulation with an F-factor of 0.730 | O11: 6" concrete slabs with no insulation with an F-factor of 0.730 | P11: 6" concrete slabs with no insulation with an F-factor of 0.730 | Q11: U-factor of 0.700 | R11: U-factor of 0.700 | S11: U-factor of 0.700 | T11: U-factor of 1.450 | U11: U-factor of 0.500 | V11: U-factor of 1.450 | X11: U-0.048 | Y11: U-0.048 | Z11: U-0.173 | AA11: U-0.084 | AB11: U-0.064 | AC11: U-0.124 | AD11: C-1.140 | AE11: C-1.140 | AF11: C-1.140 | AG11: U-0.052 | AH11: U-0.052 | AI11: U-0.069 | AJ11: F-0.730 | AK11: F-0.730 | AL11: F-0.730 | AM11: U-0.700 | AN11: U-0.700 | AO11: U-0.700 | AP11: U-1.450 | AQ11: U-0.500 | AR11: U-1.450 | AT11: 0.65 | AU11: 0.6 | AV11: 0.9 | AW11: 0.65 | AX11: 0.25 | AY11: 1.17 | AZ11: 1.17 | BA11: 1.3 | BB11: 1.3 | BC11: 0.69 | BD11: 0.69 | BE11: 0.39 | BF11: 0.19 | BG11: 0.65 | BH11: 0.34 | BI11: 0.39 | BJ11: 0.19
A12: 3A (SI) | B12: R-3.5 c.i. insulation entirely above deck with a U-factor of 0.273 | C12: R-3.5 c.i. insulation entirely above deck with a U-factor of 0.273 | D12: R-0.9 c.i. insulation entirely above deck with a U-factor of 0.982 | E12: steel-framed with R-2.3 cavity and R-0.7 continuous insulation with a U-factor of 0.479 | F12: steel-framed with R-2.3 cavity and R-1.3 continuous insulation with a U-factor of 0.365 | G12: steel-framed with R-2.3 cavity insulation with a U-factor of 0.705 | H12: 205 mm medium weight concrete block with solid grouted cores and no insulation with a C-factor of 6.473 | I12: 205 mm medium weight concrete block with solid grouted cores and no insulation with a C-factor of 6.473 | J12: 205 mm medium weight concrete block with solid grouted cores and no insulation with a C-factor of 6.473 | K12: steel-joist with R-3.3 insulation with a U-factor of 0.296 | L12: steel-joist with R-3.3 insulation with a U-factor of 0.296 | M12: steel-joist with R-2.3 insulation with a U-factor of 0.390 | N12: 150 mm concrete slabs with no insulation with an F-factor of 1.264 | O12: 150 mm concrete slabs with no insulation with an F-factor of 1.264 | P12: 150 mm concrete slabs with no insulation with an F-factor of 1.264 | Q12: U-factor of 3.975 | R12: U-factor of 3.975 | S12: U-factor of 3.975 | T12: U-factor of 8.233 | U12: U-factor of 2.839 | V12: U-factor of 8.233 | X12: U-0.273 | Y12: U-0.273 | Z12: U-0.982 | AA12: U-0.479 | AB12: U-0.365 | AC12: U-0.705 | AD12: C-6.473 | AE12: C-6.473 | AF12: C-6.473 | AG12: U-0.296 | AH12: U-0.296 | AI12: U-0.390 | AJ12: F-1.264 | AK12: F-1.264 | AL12: F-1.264 | AM12: U-3.975 | AN12: U-3.975 | AO12: U-3.975 | AP12: U-8.233 | AQ12: U-2.839 | AR12: U-8.233 | AT12: 3.69 | AU12: 3.41 | AV12: 5.11 | AW12: 3.69 | AX12: 0.25 | AY12: 6.64 | AZ12: 6.64 | BA12: 7.38 | BB12: 7.38 | BC12: 3.92 | BD12: 3.92 | BE12: 0.39 | BF12: 0.19 | BG12: 0.65 | BH12: 0.34 | BI12: 0.39 | BJ12: 0.19
A13: 3B (IP) | B13: R-20 insulation entirely above deck with a U-factor of 0.048 | C13: R-20 insulation entirely above deck with a U-factor of 0.048 | D13: R-5.0 insulation entirely above deck with a U-factor of 0.173 | E13: steel-framed with R-13 cavity and R-3.8 continuous insulation with a U-factor of 0.084 | F13: steel-framed with R-13 cavity and R-7.5 continuous insulation with a U-factor of 0.064 | G13: steel-framed with R-13 cavity insulation with a U-factor of 0.124 | H13: 8" medium weight concrete block with solid grouted cores and no insulation with a C-factor of 1.140 | I13: 8" medium weight concrete block with solid grouted cores and no insulation with a C-factor of 1.140 | J13: 8" medium weight concrete block with solid grouted cores and no insulation with a C-factor of 1.140 | K13: steel-joist with R-19 insulation with a U-factor of 0.052 | L13: steel-joist with R-19 insulation with a U-factor of 0.052 | M13: steel-joist with R-13 insulation with a U-factor of 0.069 | N13: 6" concrete slabs with no insulation with an F-factor of 0.730 | O13: 6" concrete slabs with no insulation with an F-factor of 0.730 | P13: 6" concrete slabs with no insulation with an F-factor of 0.730 | Q13: U-factor of 0.700 | R13: U-factor of 0.700 | S13: U-factor of 0.700 | T13: U-factor of 1.450 | U13: U-factor of 0.500 | V13: U-factor of 1.450 | X13: U-0.048 | Y13: U-0.048 | Z13: U-0.173 | AA13: U-0.084 | AB13: U-0.064 | AC13: U-0.124 | AD13: C-1.140 | AE13: C-1.140 | AF13: C-1.140 | AG13: U-0.052 | AH13: U-0.052 | AI13: U-0.069 | AJ13: F-0.730 | AK13: F-0.730 | AL13: F-0.730 | AM13: U-0.700 | AN13: U-0.700 | AO13: U-0.700 | AP13: U-1.450 | AQ13: U-0.500 | AR13: U-1.450 | AT13: 0.65 | AU13: 0.6 | AV13: 0.9 | AW13: 0.65 | AX13: 0.25 | AY13: 1.17 | AZ13: 1.17 | BA13: 1.3 | BB13: 1.3 | BC13: 0.69 | BD13: 0.69 | BE13: 0.39 | BF13: 0.19 | BG13: 0.65 | BH13: 0.34 | BI13: 0.39 | BJ13: 0.19
A14: 3B (SI) | B14: R-3.5 c.i. insulation entirely above deck with a U-factor of 0.273 | C14: R-3.5 c.i. insulation entirely above deck with a U-factor of 0.273 | D14: R-0.9 c.i. insulation entirely above deck with a U-factor of 0.982 | E14: steel-framed with R-2.3 cavity and R-0.7 continuous insulation with a U-factor of 0.479 | F14: steel-framed with R-2.3 cavity and R-1.3 continuous insulation with a U-factor of 0.365 | G14: steel-framed with R-2.3 cavity insulation with a U-factor of 0.705 | H14: 205 mm medium weight concrete block with solid grouted cores and no insulation with a C-factor of 6.473 | I14: 205 mm medium weight concrete block with solid grouted cores and no insulation with a C-factor of 6.473 | J14: 205 mm medium weight concrete block with solid grouted cores and no insulation with a C-factor of 6.473 | K14: steel-joist with R-3.3 insulation with a U-factor of 0.296 | L14: steel-joist with R-3.3 insulation with a U-factor of 0.296 | M14: steel-joist with R-2.3 insulation with a U-factor of 0.390 | N14: 150 mm concrete slabs with no insulation with an F-factor of 1.264 | O14: 150 mm concrete slabs with no insulation with an F-factor of 1.264 | P14: 150 mm concrete slabs with no insulation with an F-factor of 1.264 | Q14: U-factor of 3.975 | R14: U-factor of 3.975 | S14: U-factor of 3.975 | T14: U-factor of 8.233 | U14: U-factor of 2.839 | V14: U-factor of 8.233 | X14: U-0.273 | Y14: U-0.273 | Z14: U-0.982 | AA14: U-0.479 | AB14: U-0.365 | AC14: U-0.705 | AD14: C-6.473 | AE14: C-6.473 | AF14: C-6.473 | AG14: U-0.296 | AH14: U-0.296 | AI14: U-0.390 | AJ14: F-1.264 | AK14: F-1.264 | AL14: F-1.264 | AM14: U-3.975 | AN14: U-3.975 | AO14: U-3.975 | AP14: U-8.233 | AQ14: U-2.839 | AR14: U-8.233 | AT14: 3.69 | AU14: 3.41 | AV14: 5.11 | AW14: 3.69 | AX14: 0.25 | AY14: 6.64 | AZ14: 6.64 | BA14: 7.38 | BB14: 7.38 | BC14: 3.92 | BD14: 3.92 | BE14: 0.39 | BF14: 0.19 | BG14: 0.65 | BH14: 0.34 | BI14: 0.39 | BJ14: 0.19
A15: 3C (IP) | B15: R-20 insulation entirely above deck with a U-factor of 0.048 | C15: R-20 insulation entirely above deck with a U-factor of 0.048 | D15: R-5.0 insulation entirely above deck with a U-factor of 0.173 | E15: steel-framed with R-13 cavity and R-3.8 continuous insulation with a U-factor of 0.084 | F15: steel-framed with R-13 cavity and R-7.5 continuous insulation with a U-factor of 0.064 | G15: steel-framed with R-13 cavity insulation with a U-factor of 0.124 | H15: 8" medium weight concrete block with solid grouted cores and no insulation with a C-factor of 1.140 | I15: 8" medium weight concrete block with solid grouted cores and no insulation with a C-factor of 1.140 | J15: 8" medium weight concrete block with solid grouted cores and no insulation with a C-factor of 1.140 | K15: steel-joist with R-19 insulation with a U-factor of 0.052 | L15: steel-joist with R-19 insulation with a U-factor of 0.052 | M15: steel-joist with R-13 insulation with a U-factor of 0.069 | N15: 6" concrete slabs with no insulation with an F-factor of 0.730 | O15: 6" concrete slabs with no insulation with an F-factor of 0.730 | P15: 6" concrete slabs with no insulation with an F-factor of 0.730 | Q15: U-factor of 0.700 | R15: U-factor of 0.700 | S15: U-factor of 0.700 | T15: U-factor of 1.450 | U15: U-factor of 0.500 | V15: U-factor of 1.450 | X15: U-0.048 | Y15: U-0.048 | Z15: U-0.173 | AA15: U-0.084 | AB15: U-0.064 | AC15: U-0.124 | AD15: C-1.140 | AE15: C-1.140 | AF15: C-1.140 | AG15: U-0.052 | AH15: U-0.052 | AI15: U-0.069 | AJ15: F-0.730 | AK15: F-0.730 | AL15: F-0.730 | AM15: U-0.700 | AN15: U-0.700 | AO15: U-0.700 | AP15: U-1.450 | AQ15: U-0.500 | AR15: U-1.450 | AT15: 0.65 | AU15: 0.6 | AV15: 0.9 | AW15: 0.65 | AX15: 0.25 | AY15: 1.17 | AZ15: 1.17 | BA15: 1.3 | BB15: 1.3 | BC15: 0.69 | BD15: 0.69 | BE15: 0.39 | BF15: 0.19 | BG15: 0.65 | BH15: 0.34 | BI15: 0.39 | BJ15: 0.19
A16: 3C (SI) | B16: R-3.5 c.i. insulation entirely above deck with a U-factor of 0.273 | C16: R-3.5 c.i. insulation entirely above deck with a U-factor of 0.273 | D16: R-0.9 c.i. insulation entirely above deck with a U-factor of 0.982 | E16: steel-framed with R-2.3 cavity and R-0.7 continuous insulation with a U-factor of 0.479 | F16: steel-framed with R-2.3 cavity and R-1.3 continuous insulation with a U-factor of 0.365 | G16: steel-framed with R-2.3 cavity insulation with a U-factor of 0.705 | H16: 205 mm medium weight concrete block with solid grouted cores and no insulation with a C-factor of 6.473 | I16: 205 mm medium weight concrete block with solid grouted cores and no insulation with a C-factor of 6.473 | J16: 205 mm medium weight concrete block with solid grouted cores and no insulation with a C-factor of 6.473 | K16: steel-joist with R-3.3 insulation with a U-factor of 0.296 | L16: steel-joist with R-3.3 insulation with a U-factor of 0.296 | M16: steel-joist with R-2.3 insulation with a U-factor of 0.390 | N16: 150 mm concrete slabs with no insulation with an F-factor of 1.264 | O16: 150 mm concrete slabs with no insulation with an F-factor of 1.264 | P16: 150 mm concrete slabs with no insulation with an F-factor of 1.264 | Q16: U-factor of 3.975 | R16: U-factor of 3.975 | S16: U-factor of 3.975 | T16: U-factor of 8.233 | U16: U-factor of 2.839 | V16: U-factor of 8.233 | X16: U-0.273 | Y16: U-0.273 | Z16: U-0.982 | AA16: U-0.479 | AB16: U-0.365 | AC16: U-0.705 | AD16: C-6.473 | AE16: C-6.473 | AF16: C-6.473 | AG16: U-0.296 | AH16: U-0.296 | AI16: U-0.390 | AJ16: F-1.264 | AK16: F-1.264 | AL16: F-1.264 | AM16: U-3.975 | AN16: U-3.975 | AO16: U-3.975 | AP16: U-8.233 | AQ16: U-2.839 | AR16: U-8.233 | AT16: 3.69 | AU16: 3.41 | AV16: 5.11 | AW16: 3.69 | AX16: 0.25 | AY16: 6.64 | AZ16: 6.64 | BA16: 7.38 | BB16: 7.38 | BC16: 3.92 | BD16: 3.92 | BE16: 0.39 | BF16: 0.19 | BG16: 0.65 | BH16: 0.34 | BI16: 0.39 | BJ16: 0.19
A17: 4A (IP) | B17: R-20 insulation entirely above deck with a U-factor of 0.048 | C17: R-20 insulation entirely above deck with a U-factor of 0.048 | D17: R-5.0 insulation entirely above deck with a U-factor of 0.173 | E17: steel-framed with R-13 cavity and R-7.5 continuous insulation with a U-factor of 0.064 | F17: steel-framed with R-13 cavity and R-7.5 continuous insulation with a U-factor of 0.064 | G17: steel-framed with R-13 cavity insulation with a U-factor of 0.124 | H17: 8" medium weight concrete block with solid grouted cores and no insulation with a C-factor of 1.140 | I17: 8" medium weight concrete block with solid grouted cores and R-7.5 insulation with a C-factor of 0.119 | J17: 8" medium weight concrete block with solid grouted cores and no insulation with a C-factor of 1.140 | K17: steel-joist with R-30 insulation with a U-factor of 0.038 | L17: steel-joist with R-30 insulation with a U-factor of 0.038 | M17: steel-joist with R-13 insulation with a U-factor of 0.069 | N17: 6" concrete slabs with no insulation with an F-factor of 0.730 | O17: 6" concrete slabs with R-10 insulation for 24 in. with an F-factor of 0.540 | P17: 6" concrete slabs with no insulation with an F-factor of 0.730 | Q17: U-factor of 0.700 | R17: U-factor of 0.700 | S17: U-factor of 0.700 | T17: U-factor of 0.500 | U17: U-factor of 0.500 | V17: U-factor of 1.450 | X17: U-0.048 | Y17: U-0.048 | Z17: U-0.173 | AA17: U-0.064 | AB17: U-0.064 | AC17: U-0.124 | AD17: C-1.140 | AE17: C-0.119 | AF17: C-1.140 | AG17: U-0.038 | AH17: U-0.038 | AI17: U-0.069 | AJ17: F-0.730 | AK17: F-0.540 | AL17: F-0.730 | AM17: U-0.700 | AN17: U-0.700 | AO17: U-0.700 | AP17: U-1.500 | AQ17: U-0.500 | AR17: U-1.450 | AT17: 0.4 | AU17: 0.5 | AV17: 0.85 | AW17: 0.55 | AX17: 0.4 | AY17: 1.17 | AZ17: 1.17 | BA17: 1.3 | BB17: 1.3 | BC17: 0.69 | BD17: 0.69 | BE17: 0.49 | BF17: 0.39 | BG17: 0.65 | BH17: 0.34 | BI17: 0.49 | BJ17: 0.39
A18: 4A (SI) | B18: R-3.5 c.i. insulation entirely above deck with a U-factor of 0.273 | C18: R-3.5 c.i. insulation entirely above deck with a U-factor of 0.273 | D18: R-0.9 c.i. insulation entirely above deck with a U-factor of 0.982 | E18: steel-framed with R-2.3 cavity and R-1.3 continuous insulation with a U-factor of 0.365 | F18: steel-framed with R-2.3 cavity and R-1.3 continuous insulation with a U-factor of 0.365 | G18: steel-framed with R-2.3 cavity insulation with a U-factor of 0.705 | H18: 205 mm medium weight concrete block with solid grouted cores and no insulation with a C-factor of 6.473 | I18: 205 mm medium weight concrete block with solid grouted cores and R-1.3 continuous insulation with a C-factor of 0.678 | J18: 205 mm medium weight concrete block with solid grouted cores and no insulation with a C-factor of 6.473 | K18: steel-joist with R-5.3 insulation with a U-factor of 0.214 | L18: steel-joist with R-5.3 insulation with a U-factor of 0.214 | M18: steel-joist with R-2.3 insulation with a U-factor of 0.390 | N18: 150 mm concrete slabs with no insulation with an F-factor of 1.264 | O18: 150 mm concrete slabs with R-1.8 insulation for 600 mm with an F-factor of 0.935 | P18: 150 mm concrete slabs with no insulation with an F-factor of 1.264 | Q18: U-factor of 3.975 | R18: U-factor of 3.975 | S18: U-factor of 3.975 | T18: U-factor of 2.839 | U18: U-factor of 2.839 | V18: U-factor of 8.233 | X18: U-0.273 | Y18: U-0.273 | Z18: U-0.982 | AA18: U-0.365 | AB18: U-0.365 | AC18: U-0.705 | AD18: C-6.473 | AE18: C-0.678 | AF18: C-6.473 | AG18: U-0.214 | AH18: U-0.214 | AI18: U-0.390 | AJ18: F-1.264 | AK18: F-0.935 | AL18: F-1.264 | AM18: U-3.975 | AN18: U-3.975 | AO18: U-3.975 | AP18: U-2.839 | AQ18: U-2.839 | AR18: U-8.233 | AT18: 2.27 | AU18: 2.84 | AV18: 4.83 | AW18: 3.12 | AX18: 0.4 | AY18: 6.64 | AZ18: 6.64 | BA18: 7.38 | BB18: 7.38 | BC18: 3.92 | BD18: 3.92 | BE18: 0.49 | BF18: 0.39 | BG18: 0.65 | BH18: 0.34 | BI18: 0.49 | BJ18: 0.39
A19: 4B (IP) | B19: R-20 insulation entirely above deck with a U-factor of 0.048 | C19: R-20 insulation entirely above deck with a U-factor of 0.048 | D19: R-5.0 insulation entirely above deck with a U-factor of 0.173 | E19: steel-framed with R-13 cavity and R-7.5 continuous insulation with a U-factor of 0.064 | F19: steel-framed with R-13 cavity and R-7.5 continuous insulation with a U-factor of 0.064 | G19: steel-framed with R-13 cavity insulation with a U-factor of 0.124 | H19: 8" medium weight concrete block with solid grouted cores and no insulation with a C-factor of 1.140 | I19: 8" medium weight concrete block with solid grouted cores and R-7.5 insulation with a C-factor of 0.119 | J19: 8" medium weight concrete block with solid grouted cores and no insulation with a C-factor of 1.140 | K19: steel-joist with R-30 insulation with a U-factor of 0.038 | L19: steel-joist with R-30 insulation with a U-factor of 0.038 | M19: steel-joist with R-13 insulation with a U-factor of 0.069 | N19: 6" concrete slabs with no insulation with an F-factor of 0.730 | O19: 6" concrete slabs with R-10 insulation for 24 in. with an F-factor of 0.540 | P19: 6" concrete slabs with no insulation with an F-factor of 0.730 | Q19: U-factor of 0.700 | R19: U-factor of 0.700 | S19: U-factor of 0.700 | T19: U-factor of 0.500 | U19: U-factor of 0.500 | V19: U-factor of 1.450 | X19: U-0.048 | Y19: U-0.048 | Z19: U-0.173 | AA19: U-0.064 | AB19: U-0.064 | AC19: U-0.124 | AD19: C-1.140 | AE19: C-0.119 | AF19: C-1.140 | AG19: U-0.038 | AH19: U-0.038 | AI19: U-0.069 | AJ19: F-0.730 | AK19: F-0.540 | AL19: F-0.730 | AM19: U-0.700 | AN19: U-0.700 | AO19: U-0.700 | AP19: U-1.500 | AQ19: U-0.500 | AR19: U-1.450 | AT19: 0.4 | AU19: 0.5 | AV19: 0.85 | AW19: 0.55 | AX19: 0.4 | AY19: 1.17 | AZ19: 1.17 | BA19: 1.3 | BB19: 1.3 | BC19: 0.69 | BD19: 0.69 | BE19: 0.49 | BF19: 0.39 | BG19: 0.65 | BH19: 0.34 | BI19: 0.49 | BJ19: 0.39
A20: 4B (SI) | B20: R-3.5 c.i. insulation entirely above deck with a U-factor of 0.273 | C20: R-3.5 c.i. insulation entirely above deck with a U-factor of 0.273 | D20: R-0.9 c.i. insulation entirely above deck with a U-factor of 0.982 | E20: steel-framed with R-2.3 cavity and R-1.3 continuous insulation with a U-factor of 0.365 | F20: steel-framed with R-2.3 cavity and R-1.3 continuous insulation with a U-factor of 0.365 | G20: steel-framed with R-2.3 cavity insulation with a U-factor of 0.705 | H20: 205 mm medium weight concrete block with solid grouted cores and no insulation with a C-factor of 6.473 | I20: 205 mm medium weight concrete block with solid grouted cores and R-1.3 continuous insulation with a C-factor of 0.678 | J20: 205 mm medium weight concrete block with solid grouted cores and no insulation with a C-factor of 6.473 | K20: steel-joist with R-5.3 insulation with a U-factor of 0.214 | L20: steel-joist with R-5.3 insulation with a U-factor of 0.214 | M20: steel-joist with R-2.3 insulation with a U-factor of 0.390 | N20: 150 mm concrete slabs with no insulation with an F-factor of 1.264 | O20: 150 mm concrete slabs with R-1.8 insulation for 600 mm with an F-factor of 0.935 | P20: 150 mm concrete slabs with no insulation with an F-factor of 1.264 | Q20: U-factor of 3.975 | R20: U-factor of 3.975 | S20: U-factor of 3.975 | T20: U-factor of 2.839 | U20: U-factor of 2.839 | V20: U-factor of 8.233 | X20: U-0.273 | Y20: U-0.273 | Z20: U-0.982 | AA20: U-0.365 | AB20: U-0.365 | AC20: U-0.705 | AD20: C-6.473 | AE20: C-0.678 | AF20: C-6.473 | AG20: U-0.214 | AH20: U-0.214 | AI20: U-0.390 | AJ20: F-1.264 | AK20: F-0.935 | AL20: F-1.264 | AM20: U-3.975 | AN20: U-3.975 | AO20: U-3.975 | AP20: U-2.839 | AQ20: U-2.839 | AR20: U-8.233 | AT20: 2.27 | AU20: 2.84 | AV20: 4.83 | AW20: 3.12 | AX20: 0.4 | AY20: 6.64 | AZ20: 6.64 | BA20: 7.38 | BB20: 7.38 | BC20: 3.92 | BD20: 3.92 | BE20: 0.49 | BF20: 0.39 | BG20: 0.65 | BH20: 0.34 | BI20: 0.49 | BJ20: 0.39
A21: 4C (IP) | B21: R-20 insulation entirely above deck with a U-factor of 0.048 | C21: R-20 insulation entirely above deck with a U-factor of 0.048 | D21: R-5.0 insulation entirely above deck with a U-factor of 0.173 | E21: steel-framed with R-13 cavity and R-7.5 continuous insulation with a U-factor of 0.064 | F21: steel-framed with R-13 cavity and R-7.5 continuous insulation with a U-factor of 0.064 | G21: steel-framed with R-13 cavity insulation with a U-factor of 0.124 | H21: 8" medium weight concrete block with solid grouted cores and no insulation with a C-factor of 1.140 | I21: 8" medium weight concrete block with solid grouted cores and R-7.5 insulation with a C-factor of 0.119 | J21: 8" medium weight concrete block with solid grouted cores and no insulation with a C-factor of 1.140 | K21: steel-joist with R-30 insulation with a U-factor of 0.038 | L21: steel-joist with R-30 insulation with a U-factor of 0.038 | M21: steel-joist with R-13 insulation with a U-factor of 0.069 | N21: 6" concrete slabs with no insulation with an F-factor of 0.730 | O21: 6" concrete slabs with R-10 insulation for 24 in. with an F-factor of 0.540 | P21: 6" concrete slabs with no insulation with an F-factor of 0.730 | Q21: U-factor of 0.700 | R21: U-factor of 0.700 | S21: U-factor of 0.700 | T21: U-factor of 0.500 | U21: U-factor of 0.500 | V21: U-factor of 1.450 | X21: U-0.048 | Y21: U-0.048 | Z21: U-0.173 | AA21: U-0.064 | AB21: U-0.064 | AC21: U-0.124 | AD21: C-1.140 | AE21: C-0.119 | AF21: C-1.140 | AG21: U-0.038 | AH21: U-0.038 | AI21: U-0.069 | AJ21: F-0.730 | AK21: F-0.540 | AL21: F-0.730 | AM21: U-0.700 | AN21: U-0.700 | AO21: U-0.700 | AP21: U-1.500 | AQ21: U-0.500 | AR21: U-1.450 | AT21: 0.4 | AU21: 0.5 | AV21: 0.85 | AW21: 0.55 | AX21: 0.4 | AY21: 1.17 | AZ21: 1.17 | BA21: 1.3 | BB21: 1.3 | BC21: 0.69 | BD21: 0.69 | BE21: 0.49 | BF21: 0.39 | BG21: 0.65 | BH21: 0.34 | BI21: 0.49 | BJ21: 0.39
A22: 4C (SI) | B22: R-3.5 c.i. insulation entirely above deck with a U-factor of 0.273 | C22: R-3.5 c.i. insulation entirely above deck with a U-factor of 0.273 | D22: R-0.9 c.i. insulation entirely above deck with a U-factor of 0.982 | E22: steel-framed with R-2.3 cavity and R-1.3 continuous insulation with a U-factor of 0.365 | F22: steel-framed with R-2.3 cavity and R-1.3 continuous insulation with a U-factor of 0.365 | G22: steel-framed with R-2.3 cavity insulation with a U-factor of 0.705 | H22: 205 mm medium weight concrete block with solid grouted cores and no insulation with a C-factor of 6.473 | I22: 205 mm medium weight concrete block with solid grouted cores and R-1.3 continuous insulation with a C-factor of 0.678 | J22: 205 mm medium weight concrete block with solid grouted cores and no insulation with a C-factor of 6.473 | K22: steel-joist with R-5.3 insulation with a U-factor of 0.214 | L22: steel-joist with R-5.3 insulation with a U-factor of 0.214 | M22: steel-joist with R-2.3 insulation with a U-factor of 0.390 | N22: 150 mm concrete slabs with no insulation with an F-factor of 1.264 | O22: 150 mm concrete slabs with R-1.8 insulation for 600 mm with an F-factor of 0.935 | P22: 150 mm concrete slabs with no insulation with an F-factor of 1.264 | Q22: U-factor of 3.975 | R22: U-factor of 3.975 | S22: U-factor of 3.975 | T22: U-factor of 2.839 | U22: U-factor of 2.839 | V22: U-factor of 8.233 | X22: U-0.273 | Y22: U-0.273 | Z22: U-0.982 | AA22: U-0.365 | AB22: U-0.365 | AC22: U-0.705 | AD22: C-6.473 | AE22: C-0.678 | AF22: C-6.473 | AG22: U-0.214 | AH22: U-0.214 | AI22: U-0.390 | AJ22: F-1.264 | AK22: F-0.935 | AL22: F-1.264 | AM22: U-3.975 | AN22: U-3.975 | AO22: U-3.975 | AP22: U-2.839 | AQ22: U-2.839 | AR22: U-8.233 | AT22: 2.27 | AU22: 2.84 | AV22: 4.83 | AW22: 3.12 | AX22: 0.4 | AY22: 6.64 | AZ22: 6.64 | BA22: 7.38 | BB22: 7.38 | BC22: 3.92 | BD22: 3.92 | BE22: 0.49 | BF22: 0.39 | BG22: 0.65 | BH22: 0.34 | BI22: 0.49 | BJ22: 0.39
A23: 5A (IP) | B23: R-20 insulation entirely above deck with a U-factor of 0.048 | C23: R-20 insulation entirely above deck with a U-factor of 0.048 | D23: R-7.6 insulation entirely above deck with a U-factor of 0.119 | E23: steel-framed with R-13 cavity and R-7.5 continuous insulation with a U-factor of 0.064 | F23: steel-framed with R-13 cavity and R-7.5 continuous insulation with a U-factor of 0.064 | G23: steel-framed with R-13 cavity insulation with a U-factor of 0.124 | H23: 8" medium weight concrete block with solid grouted cores and R-7.5 insulation with a C-factor of 0.119 | I23: 8" medium weight concrete block with solid grouted cores and R-7.5 insulation with a C-factor of 0.119 | J23: 8" medium weight concrete block with solid grouted cores and no insulation with a C-factor of 1.140 | K23: steel-joist with R-30 insulation with a U-factor of 0.038 | L23: steel-joist with R-30 insulation with a U-factor of 0.038 | M23: steel-joist with R-19 insulation with a U-factor of 0.052 | N23: 6" concrete slabs with no insulation with an F-factor of 0.730 | O23: 6" concrete slabs with R-10 insulation for 24 in. with an F-factor of 0.540 | P23: 6" concrete slabs with no insulation with an F-factor of 0.730 | Q23: U-factor of 0.700 | R23: U-factor of 0.500 | S23: U-factor of 0.700 | T23: U-factor of 0.500 | U23: U-factor of 0.500 | V23: U-factor of 1.450 | X23: U-0.048 | Y23: U-0.048 | Z23: U-0.119 | AA23: U-0.064 | AB23: U-0.064 | AC23: U-0.124 | AD23: C-0.119 | AE23: C-0.119 | AF23: C-1.140 | AG23: U-0.038 | AH23: U-0.038 | AI23: U- 0.052 | AJ23: F-0.730 | AK23: F-0.540 | AL23: F-0.730 | AM23: U-0.700 | AN23: U-0.500 | AO23: U-0.700 | AP23: U-0.500 | AQ23: U-0.500 | AR23: U-1.450 | AT23: 0.35 | AU23: 0.45 | AV23: 0.8 | AW23: 0.55 | AX23: 0.4 | AY23: 1.17 | AZ23: 1.17 | BA23: 1.1 | BB23: 1.1 | BC23: 0.69 | BD23: 0.69 | BE23: 0.49 | BF23: 0.39 | BG23: 0.77 | BH23: 0.62 | BI23: 0.49 | BJ23: 0.39
A24: 5A (SI) | B24: R-3.5 c.i. insulation entirely above deck with a U-factor of 0.273 | C24: R-3.5 c.i. insulation entirely above deck with a U-factor of 0.273 | D24: R-1.3 c.i. insulation entirely above deck with a U-factor of 0.667 | E24: steel-framed with R-2.3 cavity and R-1.3 continuous insulation with a U-factor of 0.365 | F24: steel-framed with R-2.3 cavity and R-1.3 continuous insulation with a U-factor of 0.365 | G24: steel-framed with R-2.3 cavity insulation with a U-factor of 0.705 | H24: 205 mm medium weight concrete block with solid grouted cores and R-1.3 continuous insulation with a C-factor of 0.678 | I24: 205 mm medium weight concrete block with solid grouted cores and R-1.3 continuous insulation with a C-factor of 0.678 | J24: 205 mm medium weight concrete block with solid grouted cores and no insulation with a C-factor of 6.473 | K24: steel-joist with R-5.3 insulation with a U-factor of 0.214 | L24: steel-joist with R-5.3 insulation with a U-factor of 0.214 | M24: steel-joist with R-3.3 insulation with a U-factor of 0.296 | N24: 150 mm concrete slabs with no insulation with an F-factor of 1.264 | O24: 150 mm concrete slabs with R-1.8 insulation for 600 mm with an F-factor of 0.935 | P24: 150 mm concrete slabs with no insulation with an F-factor of 1.264 | Q24: U-factor of 3.975 | R24: U-factor of 2.839 | S24: U-factor of 3.975 | T24: U-factor of 2.839 | U24: U-factor of 2.839 | V24: U-factor of 8.233 | X24: U-0.273 | Y24: U-0.273 | Z24: U-0.677 | AA24: U-0.365 | AB24: U-0.365 | AC24: U-0.705 | AD24: C-0.678 | AE24: C-0.678 | AF24: C-6.473 | AG24: U-0.214 | AH24: U-0.214 | AI24: U- 0.296 | AJ24: F-1.264 | AK24: F-0.935 | AL24: F-1.264 | AM24: U-3.975 | AN24: U-2.839 | AO24: U-3.975 | AP24: U-2.839 | AQ24: U-2.839 | AR24: U-8.233 | AT24: 1.99 | AU24: 2.56 | AV24: 4.54 | AW24: 3.12 | AX24: 0.4 | AY24: 6.64 | AZ24: 6.64 | BA24: 6.25 | BB24: 6.25 | BC24: 3.92 | BD24: 3.92 | BE24: 0.49 | BF24: 0.39 | BG24: 0.77 | BH24: 0.62 | BI24: 0.49 | BJ24: 0.39
A25: 5B (IP) | B25: R-20 insulation entirely above deck with a U-factor of 0.048 | C25: R-20 insulation entirely above deck with a U-factor of 0.048 | D25: R-7.6 insulation entirely above deck with a U-factor of 0.119 | E25: steel-framed with R-13 cavity and R-7.5 continuous insulation with a U-factor of 0.064 | F25: steel-framed with R-13 cavity and R-7.5 continuous insulation with a U-factor of 0.064 | G25: steel-framed with R-13 cavity insulation with a U-factor of 0.124 | H25: 8" medium weight concrete block with solid grouted cores and R-7.5 insulation with a C-factor of 0.119 | I25: 8" medium weight concrete block with solid grouted cores and R-7.5 insulation with a C-factor of 0.119 | J25: 8" medium weight concrete block with solid grouted cores and no insulation with a C-factor of 1.140 | K25: steel-joist with R-30 insulation with a U-factor of 0.038 | L25: steel-joist with R-30 insulation with a U-factor of 0.038 | M25: steel-joist with R-19 insulation with a U-factor of 0.052 | N25: 6" concrete slabs with no insulation with an F-factor of 0.730 | O25: 6" concrete slabs with R-10 insulation for 24 in. with an F-factor of 0.540 | P25: 6" concrete slabs with no insulation with an F-factor of 0.730 | Q25: U-factor of 0.700 | R25: U-factor of 0.500 | S25: U-factor of 0.700 | T25: U-factor of 0.500 | U25: U-factor of 0.500 | V25: U-factor of 1.450 | X25: U-0.048 | Y25: U-0.048 | Z25: U-0.119 | AA25: U-0.064 | AB25: U-0.064 | AC25: U-0.124 | AD25: C-0.119 | AE25: C-0.119 | AF25: C-1.140 | AG25: U-0.038 | AH25: U-0.038 | AI25: U- 0.052 | AJ25: F-0.730 | AK25: F-0.540 | AL25: F-0.730 | AM25: U-0.700 | AN25: U-0.500 | AO25: U-0.700 | AP25: U-0.500 | AQ25: U-0.500 | AR25: U-1.450 | AT25: 0.35 | AU25: 0.45 | AV25: 0.8 | AW25: 0.55 | AX25: 0.4 | AY25: 1.17 | AZ25: 1.17 | BA25: 1.1 | BB25: 1.1 | BC25: 0.69 | BD25: 0.69 | BE25: 0.49 | BF25: 0.39 | BG25: 0.77 | BH25: 0.62 | BI25: 0.49 | BJ25: 0.39
A26: 5B (SI) | B26: R-3.5 c.i. insulation entirely above deck with a U-factor of 0.273 | C26: R-3.5 c.i. insulation entirely above deck with a U-factor of 0.273 | D26: R-1.3 c.i. insulation entirely above deck with a U-factor of 0.667 | E26: steel-framed with R-2.3 cavity and R-1.3 continuous insulation with a U-factor of 0.365 | F26: steel-framed with R-2.3 cavity and R-1.3 continuous insulation with a U-factor of 0.365 | G26: steel-framed with R-2.3 cavity insulation with a U-factor of 0.705 | H26: 205 mm medium weight concrete block with solid grouted cores and R-1.3 continuous insulation with a C-factor of 0.678 | I26: 205 mm medium weight concrete block with solid grouted cores and R-1.3 continuous insulation with a C-factor of 0.678 | J26: 205 mm medium weight concrete block with solid grouted cores and no insulation with a C-factor of 6.473 | K26: steel-joist with R-5.3 insulation with a U-factor of 0.214 | L26: steel-joist with R-5.3 insulation with a U-factor of 0.214 | M26: steel-joist with R-3.3 insulation with a U-factor of 0.296 | N26: 150 mm concrete slabs with no insulation with an F-factor of 1.264 | O26: 150 mm concrete slabs with R-1.8 insulation for 600 mm with an F-factor of 0.935 | P26: 150 mm concrete slabs with no insulation with an F-factor of 1.264 | Q26: U-factor of 3.975 | R26: U-factor of 2.839 | S26: U-factor of 3.975 | T26: U-factor of 2.839 | U26: U-factor of 2.839 | V26: U-factor of 8.233 | X26: U-0.273 | Y26: U-0.273 | Z26: U-0.677 | AA26: U-0.365 | AB26: U-0.365 | AC26: U-0.705 | AD26: C-0.678 | AE26: C-0.678 | AF26: C-6.473 | AG26: U-0.214 | AH26: U-0.214 | AI26: U- 0.296 | AJ26: F-1.264 | AK26: F-0.935 | AL26: F-1.264 | AM26: U-3.975 | AN26: U-2.839 | AO26: U-3.975 | AP26: U-2.839 | AQ26: U-2.839 | AR26: U-8.233 | AT26: 1.99 | AU26: 2.56 | AV26: 4.54 | AW26: 3.12 | AX26: 0.4 | AY26: 6.64 | AZ26: 6.64 | BA26: 6.25 | BB26: 6.25 | BC26: 3.92 | BD26: 3.92 | BE26: 0.49 | BF26: 0.39 | BG26: 0.77 | BH26: 0.62 | BI26: 0.49 | BJ26: 0.39
A27: 5C (IP) | B27: R-20 insulation entirely above deck with a U-factor of 0.048 | C27: R-20 insulation entirely above deck with a U-factor of 0.048 | D27: R-7.6 insulation entirely above deck with a U-factor of 0.119 | E27: steel-framed with R-13 cavity and R-7.5 continuous insulation with a U-factor of 0.064 | F27: steel-framed with R-13 cavity and R-7.5 continuous insulation with a U-factor of 0.064 | G27: steel-framed with R-13 cavity insulation with a U-factor of 0.124 | H27: 8" medium weight concrete block with solid grouted cores and R-7.5 insulation with a C-factor of 0.119 | I27: 8" medium weight concrete block with solid grouted cores and R-7.5 insulation with a C-factor of 0.119 | J27: 8" medium weight concrete block with solid grouted cores and no insulation with a C-factor of 1.140 | K27: steel-joist with R-30 insulation with a U-factor of 0.038 | L27: steel-joist with R-30 insulation with a U-factor of 0.038 | M27: steel-joist with R-19 insulation with a U-factor of 0.052 | N27: 6" concrete slabs with no insulation with an F-factor of 0.730 | O27: 6" concrete slabs with R-10 insulation for 24 in. with an F-factor of 0.540 | P27: 6" concrete slabs with no insulation with an F-factor of 0.730 | Q27: U-factor of 0.700 | R27: U-factor of 0.500 | S27: U-factor of 0.700 | T27: U-factor of 0.500 | U27: U-factor of 0.500 | V27: U-factor of 1.450 | X27: U-0.048 | Y27: U-0.048 | Z27: U-0.119 | AA27: U-0.064 | AB27: U-0.064 | AC27: U-0.124 | AD27: C-0.119 | AE27: C-0.119 | AF27: C-1.140 | AG27: U-0.038 | AH27: U-0.038 | AI27: U- 0.052 | AJ27: F-0.730 | AK27: F-0.540 | AL27: F-0.730 | AM27: U-0.700 | AN27: U-0.500 | AO27: U-0.700 | AP27: U-0.500 | AQ27: U-0.500 | AR27: U-1.450 | AT27: 0.35 | AU27: 0.45 | AV27: 0.8 | AW27: 0.55 | AX27: 0.4 | AY27: 1.17 | AZ27: 1.17 | BA27: 1.1 | BB27: 1.1 | BC27: 0.69 | BD27: 0.69 | BE27: 0.49 | BF27: 0.39 | BG27: 0.77 | BH27: 0.62 | BI27: 0.49 | BJ27: 0.39
A28: 5C (SI) | B28: R-3.5 c.i. insulation entirely above deck with a U-factor of 0.273 | C28: R-3.5 c.i. insulation entirely above deck with a U-factor of 0.273 | D28: R-1.3 c.i. insulation entirely above deck with a U-factor of 0.667 | E28: steel-framed with R-2.3 cavity and R-1.3 continuous insulation with a U-factor of 0.365 | F28: steel-framed with R-2.3 cavity and R-1.3 continuous insulation with a U-factor of 0.365 | G28: steel-framed with R-2.3 cavity insulation with a U-factor of 0.705 | H28: 205 mm medium weight concrete block with solid grouted cores and R-1.3 continuous insulation with a C-factor of 0.678 | I28: 205 mm medium weight concrete block with solid grouted cores and R-1.3 continuous insulation with a C-factor of 0.678 | J28: 205 mm medium weight concrete block with solid grouted cores and no insulation with a C-factor of 6.473 | K28: steel-joist with R-5.3 insulation with a U-factor of 0.214 | L28: steel-joist with R-5.3 insulation with a U-factor of 0.214 | M28: steel-joist with R-3.3 insulation with a U-factor of 0.296 | N28: 150 mm concrete slabs with no insulation with an F-factor of 1.264 | O28: 150 mm concrete slabs with R-1.8 insulation for 600 mm with an F-factor of 0.935 | P28: 150 mm concrete slabs with no insulation with an F-factor of 1.264 | Q28: U-factor of 3.975 | R28: U-factor of 2.839 | S28: U-factor of 3.975 | T28: U-factor of 2.839 | U28: U-factor of 2.839 | V28: U-factor of 8.233 | X28: U-0.273 | Y28: U-0.273 | Z28: U-0.677 | AA28: U-0.365 | AB28: U-0.365 | AC28: U-0.705 | AD28: C-0.678 | AE28: C-0.678 | AF28: C-6.473 | AG28: U-0.214 | AH28: U-0.214 | AI28: U- 0.296 | AJ28: F-1.264 | AK28: F-0.935 | AL28: F-1.264 | AM28: U-3.975 | AN28: U-2.839 | AO28: U-3.975 | AP28: U-2.839 | AQ28: U-2.839 | AR28: U-8.233 | AT28: 1.99 | AU28: 2.56 | AV28: 4.54 | AW28: 3.12 | AX28: 0.4 | AY28: 6.64 | AZ28: 6.64 | BA28: 6.25 | BB28: 6.25 | BC28: 3.92 | BD28: 3.92 | BE28: 0.49 | BF28: 0.39 | BG28: 0.77 | BH28: 0.62 | BI28: 0.49 | BJ28: 0.39
A29: 6A (IP) | B29: R-20 insulation entirely above deck with a U-factor of 0.048 | C29: R-20 insulation entirely above deck with a U-factor of 0.048 | D29: R-10.0 insulation entirely above deck with a U-factor of 0.093 | E29: steel-framed with R-13 cavity and R-7.5 continuous insulation with a U-factor of 0.064 | F29: steel-framed with R-13 cavity and R-7.5 continuous insulation with a U-factor of 0.064 | G29: steel-framed with R-13 cavity insulation with a U-factor of 0.124 | H29: 8" medium weight concrete block with solid grouted cores and R-7.5 insulation with a C-factor of 0.119 | I29: 8" medium weight concrete block with solid grouted cores and R-7.5 insulation with a C-factor of 0.119 | J29: 8" medium weight concrete block with solid grouted cores and no insulation with a C-factor of 1.140 | K29: steel-joist with R-30 insulation with a U-factor of 0.038 | L29: steel-joist with R-38 insulation with a U-factor of 0.032 | M29: steel-joist with R-19 insulation with a U-factor of 0.052 | N29: 6" concrete slabs with R-10 insulation for 24 in. with an F-factor of 0.540 | O29: 6" concrete slabs with R-15 insulation for 24 in. with an F-factor of 0.520 | P29: 6" concrete slabs with no insulation with an F-factor of 0.730 | Q29: U-factor of 0.700 | R29: U-factor of 0.500 | S29: U-factor of 0.700 | T29: U-factor of 0.500 | U29: U-factor of 0.500 | V29: U-factor of 1.450 | X29: U-0.048 | Y29: U-0.048 | Z29: U-0.093 | AA29: U-0.064 | AB29: U-0.064 | AC29: U-0.124 | AD29: C-0.119 | AE29: C-0.119 | AF29: C-1.140 | AG29: U-0.038 | AH29: U-0.032 | AI29: U- 0.052 | AJ29: F-0.540 | AK29: F-0.520 | AL29: F-0.730 | AM29: U-0.700 | AN29: U-0.500 | AO29: U-0.700 | AP29: U-0.500 | AQ29: U-0.500 | AR29: U-1.450 | AT29: 0.35 | AU29: 0.45 | AV29: 0.8 | AW29: 0.55 | AX29: 0.4 | AY29: 1.17 | AZ29: 1.17 | BA29: 0.87 | BB29: 0.87 | BC29: 0.69 | BD29: 0.69 | BE29: 0.49 | BF29: 0.49 | BG29: 0.71 | BH29: 0.58 | BI29: 0.49 | BJ29: 0.49
A30: 6A (SI) | B30: R-3.5 c.i. insulation entirely above deck with a U-factor of 0.273 | C30: R-3.5 c.i. insulation entirely above deck with a U-factor of 0.273 | D30: R-1.8 insulation entirely above deck with a U-factor of 0.527 | E30: steel-framed with R-2.3 cavity and R-1.3 continuous insulation with a U-factor of 0.365 | F30: steel-framed with R-2.3 cavity and R-1.3 continuous insulation with a U-factor of 0.365 | G30: steel-framed with R-2.3 cavity insulation with a U-factor of 0.705 | H30: 205 mm medium weight concrete block with solid grouted cores and R-1.3 continuous insulation with a C-factor of 0.678 | I30: 205 mm medium weight concrete block with solid grouted cores and R-1.3 continuous insulation with a C-factor of 0.678 | J30: 205 mm medium weight concrete block with solid grouted cores and no insulation with a C-factor of 6.473 | K30: steel-joist with R-5.3 insulation with a U-factor of 0.214 | L30: steel-joist with R-6.7 insulation with a U-factor of 0.183 | M30: steel-joist with R-3.3 insulation with a U-factor of 0.296 | N30: 150 mm concrete slabs with R-1.8 insulation for 600 mm with an F-factor of 0.935 | O30: 150 mm concrete slabs with R-2.6 insulation for 600 mm with an F-factor of 0.900 | P30: 150 mm concrete slabs with no insulation with an F-factor of 1.264 | Q30: U-factor of 3.975 | R30: U-factor of 2.839 | S30: U-factor of 3.975 | T30: U-factor of 2.839 | U30: U-factor of 2.839 | V30: U-factor of 8.233 | X30: U-0.273 | Y30: U-0.273 | Z30: U-0.527 | AA30: U-0.365 | AB30: U-0.365 | AC30: U-0.705 | AD30: C-0.678 | AE30: C-0.678 | AF30: C-6.473 | AG30: U-0.214 | AH30: U-0.183 | AI30: U- 0.296 | AJ30: F-0.935 | AK30: F-0.900 | AL30: F-1.264 | AM30: U-3.975 | AN30: U-2.839 | AO30: U-3.975 | AP30: U-2.839 | AQ30: U-2.839 | AR30: U-8.233 | AT30: 1.99 | AU30: 2.56 | AV30: 4.54 | AW30: 3.12 | AX30: 0.4 | AY30: 6.64 | AZ30: 6.64 | BA30: 4.94 | BB30: 4.94 | BC30: 3.92 | BD30: 3.92 | BE30: 0.49 | BF30: 0.49 | BG30: 0.71 | BH30: 0.58 | BI30: 0.49 | BJ30: 0.49
A31: 6B (IP) | B31: R-20 insulation entirely above deck with a U-factor of 0.048 | C31: R-20 insulation entirely above deck with a U-factor of 0.048 | D31: R-10.0 insulation entirely above deck with a U-factor of 0.093 | E31: steel-framed with R-13 cavity and R-7.5 continuous insulation with a U-factor of 0.064 | F31: steel-framed with R-13 cavity and R-7.5 continuous insulation with a U-factor of 0.064 | G31: steel-framed with R-13 cavity insulation with a U-factor of 0.124 | H31: 8" medium weight concrete block with solid grouted cores and R-7.5 insulation with a C-factor of 0.119 | I31: 8" medium weight concrete block with solid grouted cores and R-7.5 insulation with a C-factor of 0.119 | J31: 8" medium weight concrete block with solid grouted cores and no insulation with a C-factor of 1.140 | K31: steel-joist with R-30 insulation with a U-factor of 0.038 | L31: steel-joist with R-38 insulation with a U-factor of 0.032 | M31: steel-joist with R-19 insulation with a U-factor of 0.052 | N31: 6" concrete slabs with R-10 insulation for 24 in. with an F-factor of 0.540 | O31: 6" concrete slabs with R-15 insulation for 24 in. with an F-factor of 0.520 | P31: 6" concrete slabs with no insulation with an F-factor of 0.730 | Q31: U-factor of 0.700 | R31: U-factor of 0.500 | S31: U-factor of 0.700 | T31: U-factor of 0.500 | U31: U-factor of 0.500 | V31: U-factor of 1.450 | X31: U-0.048 | Y31: U-0.048 | Z31: U-0.093 | AA31: U-0.064 | AB31: U-0.064 | AC31: U-0.124 | AD31: C-0.119 | AE31: C-0.119 | AF31: C-1.140 | AG31: U-0.038 | AH31: U-0.032 | AI31: U- 0.052 | AJ31: F-0.540 | AK31: F-0.520 | AL31: F-0.730 | AM31: U-0.700 | AN31: U-0.500 | AO31: U-0.700 | AP31: U-0.500 | AQ31: U-0.500 | AR31: U-1.450 | AT31: 0.35 | AU31: 0.45 | AV31: 0.8 | AW31: 0.55 | AX31: 0.4 | AY31: 1.17 | AZ31: 1.17 | BA31: 0.87 | BB31: 0.87 | BC31: 0.69 | BD31: 0.69 | BE31: 0.49 | BF31: 0.49 | BG31: 0.71 | BH31: 0.58 | BI31: 0.49 | BJ31: 0.49
A32: 6B (SI) | B32: R-3.5 c.i. insulation entirely above deck with a U-factor of 0.273 | C32: R-3.5 c.i. insulation entirely above deck with a U-factor of 0.273 | D32: R-1.8 insulation entirely above deck with a U-factor of 0.527 | E32: steel-framed with R-2.3 cavity and R-1.3 continuous insulation with a U-factor of 0.365 | F32: steel-framed with R-2.3 cavity and R-1.3 continuous insulation with a U-factor of 0.365 | G32: steel-framed with R-2.3 cavity insulation with a U-factor of 0.705 | H32: 205 mm medium weight concrete block with solid grouted cores and R-1.3 continuous insulation with a C-factor of 0.678 | I32: 205 mm medium weight concrete block with solid grouted cores and R-1.3 continuous insulation with a C-factor of 0.678 | J32: 205 mm medium weight concrete block with solid grouted cores and no insulation with a C-factor of 6.473 | K32: steel-joist with R-5.3 insulation with a U-factor of 0.214 | L32: steel-joist with R-6.7 insulation with a U-factor of 0.183 | M32: steel-joist with R-3.3 insulation with a U-factor of 0.296 | N32: 150 mm concrete slabs with R-1.8 insulation for 600 mm with an F-factor of 0.935 | O32: 150 mm concrete slabs with R-2.6 insulation for 600 mm with an F-factor of 0.900 | P32: 150 mm concrete slabs with no insulation with an F-factor of 1.264 | Q32: U-factor of 3.975 | R32: U-factor of 2.839 | S32: U-factor of 3.975 | T32: U-factor of 2.839 | U32: U-factor of 2.839 | V32: U-factor of 8.233 | X32: U-0.273 | Y32: U-0.273 | Z32: U-0.527 | AA32: U-0.365 | AB32: U-0.365 | AC32: U-0.705 | AD32: C-0.678 | AE32: C-0.678 | AF32: C-6.473 | AG32: U-0.214 | AH32: U-0.183 | AI32: U- 0.296 | AJ32: F-0.935 | AK32: F-0.900 | AL32: F-1.264 | AM32: U-3.975 | AN32: U-2.839 | AO32: U-3.975 | AP32: U-2.839 | AQ32: U-2.839 | AR32: U-8.233 | AT32: 1.99 | AU32: 2.56 | AV32: 4.54 | AW32: 3.12 | AX32: 0.4 | AY32: 6.64 | AZ32: 6.64 | BA32: 4.94 | BB32: 4.94 | BC32: 3.92 | BD32: 3.92 | BE32: 0.49 | BF32: 0.49 | BG32: 0.71 | BH32: 0.58 | BI32: 0.49 | BJ32: 0.49
A33: 7A (IP) | B33: R-20 insulation entirely above deck with a U-factor of 0.048 | C33: R-20 insulation entirely above deck with a U-factor of 0.048 | D33: R-10.0 insulation entirely above deck with a U-factor of 0.093 | E33: steel-framed with R-13 cavity and R-7.5 continuous insulation with a U-factor of 0.064 | F33: steel-framed with R-13 cavity and R-15.6 continuous insulation with a U-factor of 0.042 | G33: steel-framed with R-13 cavity insulation with a U-factor of 0.124 | H33: 8" medium weight concrete block with solid grouted cores and R-7.5 insulation with a C-factor of 0.119 | I33: 8" medium weight concrete block with solid grouted cores and R-10.0 insulation with a C-factor of 0.092 | J33: 8" medium weight concrete block with solid grouted cores and no insulation with a C-factor of 1.140 | K33: steel-joist with R-30 insulation with a U-factor of 0.038 | L33: steel-joist with R-38 insulation with a U-factor of 0.032 | M33: steel-joist with R-19 insulation with a U-factor of 0.052 | N33: 6" concrete slabs with R-15 insulation for 24 in. with an F-factor of 0.520 | O33: 6" concrete slabs with R-15 insulation for 24 in. with an F-factor of 0.520 | P33: 6" concrete slabs with no insulation with an F-factor of 0.730 | Q33: U-factor of 0.500 | R33: U-factor of 0.500 | S33: U-factor of 0.700 | T33: U-factor of 0.500 | U33: U-factor of 0.500 | V33: U-factor of 1.450 | X33: U-0.048 | Y33: U-0.048 | Z33: U-0.093 | AA33: U-0.064 | AB33: U-0.042 | AC33: U-0.124 | AD33: C-0.119 | AE33: C-0.092 | AF33: C-1.140 | AG33: U-0.038 | AH33: U-0.032 | AI33: U- 0.052 | AJ33: F-0.520 | AK33: F-0.520 | AL33: F-0.730 | AM33: U-0.500 | AN33: U-0.500 | AO33: U-0.700 | AP33: U-0.500 | AQ33: U-0.500 | AR33: U-1.450 | AT33: 0.35 | AU33: 0.4 | AV33: 0.8 | AW33: 0.45 | AX33: 0.45 | AY33: 1.17 | AZ33: 1.17 | BA33: 0.87 | BB33: 0.87 | BC33: 0.69 | BD33: 0.69 | BE33: 0.68 | BF33: 0.64 | BG33: 0.77 | BH33: 0.71 | BI33: 0.68 | BJ33: 0.64
A34: 7A (SI) | B34: R-3.5 c.i. insulation entirely above deck with a U-factor of 0.273 | C34: R-3.5 c.i. insulation entirely above deck with a U-factor of 0.273 | D34: R-1.8 insulation entirely above deck with a U-factor of 0.527 | E34: steel-framed with R-2.3 cavity and R-1.3 continuous insulation with a U-factor of 0.365 | F34: steel-framed with R-2.3 cavity and R-2.7 continuous insulation with a U-factor of 0.240 | G34: steel-framed with R-2.3 cavity insulation with a U-factor of 0.705 | H34: 205 mm medium weight concrete block with solid grouted cores and R-1.3 continuous insulation with a C-factor of 0.678 | I34: 205 mm medium weight concrete block with solid grouted cores and R-1.8 continuous insulation with a C-factor of 0.522 | J34: 205 mm medium weight concrete block with solid grouted cores and no insulation with a C-factor of 6.473 | K34: steel-joist with R-5.3 insulation with a U-factor of 0.214 | L34: steel-joist with R-6.7 insulation with a U-factor of 0.183 | M34: steel-joist with R-3.3 insulation with a U-factor of 0.296 | N34: 150 mm concrete slabs with R-2.6 insulation for 600 mm with an F-factor of 0.900 | O34: 150 mm concrete slabs with R-2.6 insulation for 600 mm with an F-factor of 0.900 | P34: 150 mm concrete slabs with no insulation with an F-factor of 1.264 | Q34: U-factor of 2.839 | R34: U-factor of 2.839 | S34: U-factor of 3.975 | T34: U-factor of 2.839 | U34: U-factor of 2.839 | V34: U-factor of 8.233 | X34: U-0.273 | Y34: U-0.273 | Z34: U-0.527 | AA34: U-0.365 | AB34: U-0.240 | AC34: U-0.705 | AD34: C-0.678 | AE34: C-0.522 | AF34: C-6.473 | AG34: U-0.214 | AH34: U-0.183 | AI34: U- 0.296 | AJ34: F-0.900 | AK34: F-0.900 | AL34: F-1.264 | AM34: U-2.839 | AN34: U-2.839 | AO34: U-3.975 | AP34: U-2.839 | AQ34: U-2.839 | AR34: U-8.233 | AT34: 1.99 | AU34: 2.27 | AV34: 4.54 | AW34: 2.56 | AX34: 0.45 | AY34: 6.64 | AZ34: 6.64 | BA34: 4.94 | BB34: 4.94 | BC34: 3.92 | BD34: 3.92 | BE34: 0.68 | BF34: 0.64 | BG34: 0.77 | BH34: 0.71 | BI34: 0.68 | BJ34: 0.64
A35: 7B (IP) | B35: R-20 insulation entirely above deck with a U-factor of 0.048 | C35: R-20 insulation entirely above deck with a U-factor of 0.048 | D35: R-10.0 insulation entirely above deck with a U-factor of 0.093 | E35: steel-framed with R-13 cavity and R-7.5 continuous insulation with a U-factor of 0.064 | F35: steel-framed with R-13 cavity and R-15.6 continuous insulation with a U-factor of 0.042 | G35: steel-framed with R-13 cavity insulation with a U-factor of 0.124 | H35: 8" medium weight concrete block with solid grouted cores and R-7.5 insulation with a C-factor of 0.119 | I35: 8" medium weight concrete block with solid grouted cores and R-10.0 insulation with a C-factor of 0.092 | J35: 8" medium weight concrete block with solid grouted cores and no insulation with a C-factor of 1.140 | K35: steel-joist with R-30 insulation with a U-factor of 0.038 | L35: steel-joist with R-38 insulation with a U-factor of 0.032 | M35: steel-joist with R-19 insulation with a U-factor of 0.052 | N35: 6" concrete slabs with R-15 insulation for 24 in. with an F-factor of 0.520 | O35: 6" concrete slabs with R-15 insulation for 24 in. with an F-factor of 0.520 | P35: 6" concrete slabs with no insulation with an F-factor of 0.730 | Q35: U-factor of 0.500 | R35: U-factor of 0.500 | S35: U-factor of 0.700 | T35: U-factor of 0.500 | U35: U-factor of 0.500 | V35: U-factor of 1.450 | X35: U-0.048 | Y35: U-0.048 | Z35: U-0.093 | AA35: U-0.064 | AB35: U-0.042 | AC35: U-0.124 | AD35: C-0.119 | AE35: C-0.092 | AF35: C-1.140 | AG35: U-0.038 | AH35: U-0.032 | AI35: U- 0.052 | AJ35: F-0.520 | AK35: F-0.520 | AL35: F-0.730 | AM35: U-0.500 | AN35: U-0.500 | AO35: U-0.700 | AP35: U-0.500 | AQ35: U-0.500 | AR35: U-1.450 | AT35: 0.35 | AU35: 0.4 | AV35: 0.8 | AW35: 0.45 | AX35: 0.45 | AY35: 1.17 | AZ35: 1.17 | BA35: 0.87 | BB35: 0.87 | BC35: 0.69 | BD35: 0.69 | BE35: 0.68 | BF35: 0.64 | BG35: 0.77 | BH35: 0.71 | BI35: 0.68 | BJ35: 0.64
A36: 7B (SI) | B36: R-3.5 c.i. insulation entirely above deck with a U-factor of 0.273 | C36: R-3.5 c.i. insulation entirely above deck with a U-factor of 0.273 | D36: R-1.8 insulation entirely above deck with a U-factor of 0.527 | E36: steel-framed with R-2.3 cavity and R-1.3 continuous insulation with a U-factor of 0.365 | F36: steel-framed with R-2.3 cavity and R-2.7 continuous insulation with a U-factor of 0.240 | G36: steel-framed with R-2.3 cavity insulation with a U-factor of 0.705 | H36: 205 mm medium weight concrete block with solid grouted cores and R-1.3 continuous insulation with a C-factor of 0.678 | I36: 205 mm medium weight concrete block with solid grouted cores and R-1.8 continuous insulation with a C-factor of 0.522 | J36: 205 mm medium weight concrete block with solid grouted cores and no insulation with a C-factor of 6.473 | K36: steel-joist with R-5.3 insulation with a U-factor of 0.214 | L36: steel-joist with R-6.7 insulation with a U-factor of 0.183 | M36: steel-joist with R-3.3 insulation with a U-factor of 0.296 | N36: 150 mm concrete slabs with R-2.6 insulation for 600 mm with an F-factor of 0.900 | O36: 150 mm concrete slabs with R-2.6 insulation for 600 mm with an F-factor of 0.900 | P36: 150 mm concrete slabs with no insulation with an F-factor of 1.264 | Q36: U-factor of 2.839 | R36: U-factor of 2.839 | S36: U-factor of 3.975 | T36: U-factor of 2.839 | U36: U-factor of 2.839 | V36: U-factor of 8.233 | X36: U-0.273 | Y36: U-0.273 | Z36: U-0.527 | AA36: U-0.365 | AB36: U-0.240 | AC36: U-0.705 | AD36: C-0.678 | AE36: C-0.522 | AF36: C-6.473 | AG36: U-0.214 | AH36: U-0.183 | AI36: U- 0.296 | AJ36: F-0.900 | AK36: F-0.900 | AL36: F-1.264 | AM36: U-2.839 | AN36: U-2.839 | AO36: U-3.975 | AP36: U-2.839 | AQ36: U-2.839 | AR36: U-8.233 | AT36: 1.99 | AU36: 2.27 | AV36: 4.54 | AW36: 2.56 | AX36: 0.45 | AY36: 6.64 | AZ36: 6.64 | BA36: 4.94 | BB36: 4.94 | BC36: 3.92 | BD36: 3.92 | BE36: 0.68 | BF36: 0.64 | BG36: 0.77 | BH36: 0.71 | BI36: 0.68 | BJ36: 0.64
A37: 8 (IP) | B37: R-20 insulation entirely above deck with a U-factor of 0.048 | C37: R-20 insulation entirely above deck with a U-factor of 0.048 | D37: R-15.0 insulation entirely above deck with a U-factor of 0.063 | E37: steel-framed with R-13 cavity and R-7.5 continuous insulation with a U-factor of 0.064 | F37: steel-framed with R-13 cavity and R-18.8 continuous insulation with a U-factor of 0.037 | G37: steel-framed with R-13 cavity and R-3.8 continuous insulation with a U-factor of 0.084 | H37: 8" medium weight concrete block with solid grouted cores and R-7.5 insulation with a C-factor of 0.119 | I37: 8" medium weight concrete block with solid grouted cores and R-12.5 insulation with a C-factor of 0.075 | J37: 8" medium weight concrete block with solid grouted cores and no insulation with a C-factor of 1.140 | K37: steel-joist with R-38 insulation with a U-factor of 0.032 | L37: steel-joist with R-38 insulation with a U-factor of 0.032 | M37: steel-joist with R-19 insulation with a U-factor of 0.052 | N37: 6" concrete slabs with R-15 insulation for 24 in. with an F-factor of 0.520 | O37: 6" concrete slabs with R-20 insulation for 24 in. with an F-factor of 0.510 | P37: 6" concrete slabs with no insulation with an F-factor of 0.730 | Q37: U-factor of 0.500 | R37: U-factor of 0.500 | S37: U-factor of 0.700 | T37: U-factor of 0.500 | U37: U-factor of 0.500 | V37: U-factor of 0.500 | X37: U-0.048 | Y37: U-0.048 | Z37: U-0.063 | AA37: U-0.064 | AB37: U-0.037 | AC37: U-0.084 | AD37: C-0.119 | AE37: C-0.075 | AF37: C-1.140 | AG37: U-0.032 | AH37: U-0.032 | AI37: U- 0.052 | AJ37: F-0.520 | AK37: F-0.510 | AL37: F-0.730 | AM37: U-0.500 | AN37: U-0.500 | AO37: U-0.700 | AP37: U-0.500 | AQ37: U-0.500 | AR37: U-0.500 | AT37: 0.35 | AU37: 0.4 | AV37: 0.8 | AW37: 0.45 | AX37: 0.45 | AY37: 0.98 | AZ37: 0.98 | BA37: 0.61 | BB37: 0.61 | BC37: 0.58 | BD37: 0.58 | BE37: 0.68 | BF37: 0.64 | BG37: 0.77 | BH37: 0.71 | BI37: 0.68 | BJ37: 0.64
A38: 8 (SI) | B38: R-3.5 c.i. insulation entirely above deck with a U-factor of 0.273 | C38: R-3.5 c.i. insulation entirely above deck with a U-factor of 0.273 | D38: R-2.6 c.i. insulation entirely above deck with a U-factor of 0.360 | E38: steel-framed with R-2.3 cavity and R-1.3 continuous insulation with a U-factor of 0.365 | F38: steel-framed with R-2.3 cavity and R-3.3 continuous insulation with a U-factor of 0.212 | G38: steel-framed with R-2.3 cavity and R-0.7 continuous insulation with a U-factor of 0.479 | H38: 205 mm medium weight concrete block with solid grouted cores and R-1.3 continuous insulation with a C-factor of 0.678 | I38: 205 mm medium weight concrete block with solid grouted cores and R-2.2 continuous insulation with a C-factor of 0.425 | J38: 205 mm medium weight concrete block with solid grouted cores and no insulation with a C-factor of 6.473 | K38: steel-joist with R-6.7 insulation with a U-factor of 0.183 | L38: steel-joist with R-6.7 insulation with a U-factor of 0.183 | M38: steel-joist with R-3.3 insulation with a U-factor of 0.296 | N38: 150 mm concrete slabs with R-2.6 insulation for 600 mm with an F-factor of 0.900 | O38: 150 mm concrete slabs with R-3.5 insulation for 600 mm with an F-factor of 0.883 | P38: 150 mm concrete slabs with no insulation with an F-factor of 1.264 | Q38: U-factor of 2.839 | R38: U-factor of 2.839 | S38: U-factor of 3.975 | T38: U-factor of 2.839 | U38: U-factor of 2.839 | V38: U-factor of 2.839 | X38: U-0.273 | Y38: U-0.273 | Z38: U-0.360 | AA38: U-0.365 | AB38: U-0.212 | AC38: U-0.479 | AD38: C-0.678 | AE38: C-0.425 | AF38: C-6.473 | AG38: U-0.183 | AH38: U-0.183 | AI38: U- 0.296 | AJ38: F-0.900 | AK38: F-0.883 | AL38: F-1.264 | AM38: U-2.839 | AN38: U-2.839 | AO38: U-3.975 | AP38: U-2.839 | AQ38: U-2.839 | AR38: U-2.839 | AT38: 1.99 | AU38: 2.27 | AV38: 4.54 | AW38: 2.56 | AX38: 0.45 | AY38: 5.56 | AZ38: 5.56 | BA38: 3.46 | BB38: 3.46 | BC38: 3.29 | BD38: 3.29 | BE38: NR | BF38: NR | BG38: NR | BH38: NR | BI38: NR | BJ38: NR

Sheet Lighting
A1: G
A2: G | B2: Lighting
A3: G
A4: G
A5: G | B5: Interior Lighting
A6: G | B6: Instructions: Confirm that the energy model complies with the Interior lighting requirements listed, and provide a narrative explaining any discrepancies. Select the interior lighting categorization procedure, and then complete the corresponding lighting table(s). Please refer to the column header notes for information about Appendix G modeling protocol. For any information not applicable to the project, simply enter "N/A".
A7: G | B7: Interior Lighting Requirements
A8: G | B8: All lighting schedules have been modeled identically in the baseline and proposed and reflect the anticipated operating schedules of each space.
A9: G
A10: G | B10: The proposed lighting power includes all lighting system components shown or provided for on the plans (including lamps and ballasts and task and furniture-mounted fixtures except where specifically exempted).
A11: G
A12: G | B12: Baseline and proposed lighting is modeled using the automatic and manual controls in Section 9.4 including automated shutoff controls, daylighting controls, occupant sensor controls, etc. The energy modeling schedules account for these mandatory control requirements.
A13: G
A14: G | B14: Ocupant sensors or timer switches are included in the proposed, and modeled in the baseline for classrooms, lecture halls, confrence rooms, meeting rooms, training rooms, employee lunch and break rooms, storage and supply rooms between 50 to 1,000 sq ft (15.24 to 304.8 sq m), copying and printing rooms, office spaces up to 250 sq ft (76.2 sq m), restrooms, dresssing rooms, locker rooms, fitting rooms, and parking garages per Section 9.4.1.2b and 9.4.1.3b.
A15: G
A16: G | B16: Mandatory automatic daylighting controls are included in the proposed, and modeled in the baseline for primary sidelighted areas in enclosed spaces greater than 250 sq ft (23 sq m), and top lighted areas greater than 900 sq ft (84 sq m), and parking garages as applicable per Sections 9.4.1.4, 9.4.1.5, and 9.4.1.3 respectively.
A17: G
A18: G | B18: Mandatory step controls are included in the proposed, and modeled in the baseline for all spaces enclosed by ceiling height partitions per Sections 9.4.1.2a.
A19: G
A20: G | B20: For each item entered as “No” above, describe the applicable ASHRAE 90.1 Appendix G exception(s) that apply, or the circumstances preventing the lighting parameters from being modeled as required. If the energy simulation software is not capable of modeling the required parameters, describe the adjustments that were made to provide a similar representation or provide a narrative justifying why the predicted energy performance results will not be influenced.
A21: G
A22: G
A23: G | B23: Categorization Procedure
A24: G | B24: Select the categorization procedure used to determine the lighting power density (LPD) in the proposed and baseline | O24: Building Area Method Space by Space Method | Z24: 2
A25: G
A26: G | B26: Building Area Method
A27: G | B27: Complete the table below in accordance with the Building Area Procedure.
A28: G | B28: General Information | F28: Baseline | H28: Proposed
A29: G | B29: Building ID | C29: Table 9.5.1 Building Area Type | D29: =IF(SI_IP_Units="IP","Total Building Type Area (sq ft)","Total Building Type Area (sq m)") -> Total Building Type Area (sq ft) | F29: =IF(SI_IP_Units="IP","Modeled LPD (W/sq ft)","Modeled LPD (W/sq m)") -> Modeled LPD (W/sq ft) | H29: =IF(SI_IP_Units="IP","Design LPD (W/sq ft)","Design LPD (W/sq m)") -> Design LPD (W/sq ft) | I29: Automatic Lighting Controls and Space Types | J29: Table G3.2 Power Adjustment | K29: =IF(SI_IP_Units="IP","Modelled LPD (W/sq ft)","Modelled LPD (W/sq m)") -> Modelled LPD (W/sq ft) | L29: Daylighting Controls
A30: G | B30: Helpful Notes | C30: • Lighting power should be modeled as designed (or installed) including all lighting system components (lamps and ballasts) • Parking garages are always considered a separate building area type, and if present in the building, must be listed as a separate building area type from the main building area type. | F30: • Values provided for reference. Enter the modeled lighting power density (excluding any process lighting) for this building type in the Baseline case (if different from the Table 9.5.1 value listed) | H30: • Enter the design (or installed) lighting power density (excluding process lighting) for this building type in the Proposed case without Table G3.2 adjustments. | I30: • List any automatic lighting controls included in the design, beyond what is required to be modeled per Section 9.4. | J30: • Enter the weighted average lighting power density (excluding any process lighting) modeled for this building type in the Proposed case, including any Table G3.2 adjustments for automatic controls. | L30: • List any daylighting controls included in the design, the associated spaces, control type, and how credit was modeled in the Proposed case (example: continuous dimming in all exterior offices modeled directly with setpoint of 50 footcandles (540 lux)). • Automatic daylighting controls must either be modeled directly in the simulation, or modeled using schedule adjustments determined by a separate daylighting analysis per Table G3.1#6(f)
A31: G | B31: =B29 -> Building ID | C31: =C29 -> Table 9.5.1 Building Area Type | D31: Total Building Type Area (sq ft) | E31: 0 | F31: Modeled LPD (W/sq ft) | G31: 0 | H31: Design LPD (W/sq ft) | I31: Automatic Lighting Controls and Space Types | J31: Table G3.2 Power Adjustment | K31: Modelled LPD (W/sq ft) | L31: Daylighting Controls
B32: ='Multiple Buildings Details'!B24 -> Project Name | C32: ="Residential Dwelling Units" -> Residential Dwelling Units | F32: =0.9*IF(SI_IP_Units="IP",1,CONVERT(1,"m","ft")^2) -> 0.9
A33: A | B33: =GI_Project_Name -> Project Name | F33: =IFERROR(VLOOKUP(C33,'Lighting Assumptions'!A:C,IF(SI_IP_Units="SI",3,2)),"") -> 
B34: =GI_Project_Name -> Project Name | F34: =IFERROR(VLOOKUP(C34,'Lighting Assumptions'!A:C,IF(SI_IP_Units="SI",3,2)),"") -> 
B35: =GI_Project_Name -> Project Name | F35: =IFERROR(VLOOKUP(C35,'Lighting Assumptions'!A:C,IF(SI_IP_Units="SI",3,2)),"") -> 
B36: Total | D36: =IFERROR(SUM(D32:D35),0) -> 0 | F36: =IFERROR(SUMPRODUCT($D32:$D35,F32:F35)/SUM($D32:$D35),0) -> 0 | H36: =IFERROR(SUMPRODUCT($D32:$D35,H32:H35)/SUM($D32:$D35),0) -> 0 | K36: =IFERROR(SUMPRODUCT($D32:$D35,K32:K35)/SUM($D32:$D35),0) -> 0
A38: G
A39: G
A40: G | B40: Building ID | C40: =CONCATENATE("Total Space Area ",IF(SI_IP_Units="IP","(sq ft)","(sq m)")) -> Total Space Area (sq ft) | G40: Average LPD | L40: Total Power
A41: G | G41: =CONCATENATE("Baseline Maximum Allowance",CHAR(10),IF(SI_IP_Units="IP","(W/sq ft)","(W/sq m)")) -> Baseline Maximum Allowance (W/sq ft) | J41: =CONCATENATE("Design Maximum Allowance",CHAR(10),IF(SI_IP_Units="IP","(W/sq ft)","(W/sq m)")) -> Design Maximum Allowance (W/sq ft) | L41: =CONCATENATE("Baseline Maximum Allowance",CHAR(10),"(kW)") -> Baseline Maximum Allowance (kW) | O41: =CONCATENATE("Design Maximum Allowance",CHAR(10),"(kW)") -> Design Maximum Allowance (kW)
B42: =B40 -> Building ID | C42: =C40 -> Total Space Area (sq ft) | G42: Base_LPD | J42: Design_LPD | L42: Base_Power | O42: Design_Power
A43: G | B43: ='Multiple Buildings Details'!B24 -> Project Name | C43: =IFERROR(SUMIF(L_BAMInput_Index,"="&$B43,$D$31:$D$35),"") -> 0 | G43: =IFERROR(SUMPRODUCT(--($B$31:$B$35=$B43),$D$31:$D$35,$F$31:$F$35)/SUMIF($B$31:$B$35,"="&$B43,$D$31:$D$35),0) -> 0 | J43: =IFERROR(SUMPRODUCT(--($B$31:$B$35=$B43),$D$31:$D$35,$K$31:$K$35)/SUMIF($B$31:$B$35,"="&$B43,$D$31:$D$35),0) -> 0 | L43: =IFERROR(SUMPRODUCT(--($B$31:$B$35=$B43),$D$31:$D$35,$F$31:$F$35)/1000,0) -> 0 | O43: =IFERROR(SUMPRODUCT(--($B$31:$B$35=$B43),$D$31:$D$35,$K$31:$K$35)/1000,0) -> 0
A44: G
A45: G | B45: =IF(L38="Building Area Method","Building Area Method","Space by Space Method") -> Space by Space Method
A46: G | B46: If attempting to take additional credit/adjustments in the baseline for room geometry and/or in the proposed for automatic lighting controls, further work will be required. Taking the additional credit is optional. Note: This method employs Addendum cg to 90.1-2010 due to contradictions in the originally published standard. If the project team does not wish to apply the addendum, provide a substantially similar spreadsheet to verify the inputs for the interior lighting power.
A47: G | B47: Are adjustments being taken for room geometry in the baseline? (Optional)
A48: G
A49: G | B49: Are adjustments being taken for automatic lighting controls beyond what is required by Section 9.4.1 in the proposed? (Optional)
A50: G
A51: G
A52: G | B52: General Information | F52: Baseline | M52: Proposed
A53: G | B53: Building ID | C53: =IF(B45="Space by Space Method","Table 9.6.1 Space Type","Table 9.5.1 Building Area Type") -> Table 9.6.1 Space Type | D53: =IF(SI_IP_Units="IP","Total Space Type Area (sq ft)","Total Space Type Area (sq m)") -> Total Space Type Area (sq ft) | F53: =IF(SI_IP_Units="IP","Maximum Allowance (W/sq ft)","Maximum Allowance (W/sq m)") -> Maximum Allowance (W/sq ft) | G53: Section 9.6.3 Room Geometry Adjustment (Only complete for spaces where credit is taken for room geometry) | L53: =IF(SI_IP_Units="IP","Total Baseline LPD Allowance (W/sq ft)","Total Baseline LPD Allowance (W/sq m)") -> Total Baseline LPD Allowance (W/sq ft) | M53: =IF(SI_IP_Units="IP","Design LPD (W/sq ft)","Design LPD (W/sq m)") -> Design LPD (W/sq ft) | N53: Describe Automatic Lighting Controls | O53: Section 9.6.2(c) Control Factor Adjustment | Q53: =IF(SI_IP_Units="IP","Modeled Design LPD (W/sq ft)","Design LPD (W/sq m)") -> Modeled Design LPD (W/sq ft)
A54: G | G54: =IF(SI_IP_Units="IP","Luminaire Mounting Height (ft)","Luminaire Mounting Height (m)") -> Luminaire Mounting Height (ft) | I54: =IF(SI_IP_Units="IP","Work-plane (ft)", "Work-plane (m)") -> Work-plane (ft) | J54: =IF(SI_IP_Units="IP","Room Perimeter Length (ft)","Room Perimeter Length (m)") -> Room Perimeter Length (ft) | K54: Room Cavity Ratio | O54: Lighting Power Under Control (W) | P54: Table 9.6.2 adjust-ment
A55: G | B55: Helpful Notes | M55: • Lighting power should be modeled as designed (or installed) including all lighting system components (lamps and ballasts) • Enter the design (or installed) lighting power density (excluding any additional lighting lighting power from Section 9.6.2 or any process lighting) for this space type in the Proposed case. This value should not include Table G3.2 adjustments. • Credit for automatic lighting controls should be modeled using the appropriate power adjustment from Table G3.2, applied only to the controlled lighting power and not where required by 9.4.1. per Table G3.1#6(g) • Automatic daylighting controls must either be modeled directly in the simulation, or modeled using schedule adjustments determined by a separate daylighting analysis per Table G3.1#6(f)
A56: G | B56: Building ID | C56: Space_Type | D56: Space_Type_Area | F56: Base_Max_W/SF | G56: Luminare_Height | I56: Work_Plane | J56: Room_Perimeter_Length | K56: RCR | L56: Baseline_LPD | M56: Design_LPD | N56: Lighting_Controls | O56: Power_Under_Control | P56: Adj | Q56: Modeled_Design_LPD
A57: G | B57: ='Multiple Buildings Details'!B24 -> Project Name | C57: ="Residential Dwelling Units" -> Residential Dwelling Units | F57: =0.9*IF(SI_IP_Units="IP",1,CONVERT(1,"m","ft")^2) -> 0.9 | K57: =IFERROR(2.5*(G57-I57)*J57/D57,"") ->  | L57: =IF($P$47="Yes",IFERROR(IF(VLOOKUP(C57,'Lighting Assumptions'!D:G,4,FALSE)="N/A",F57,IF(VLOOKUP(C57,'Lighting Assumptions'!D:G,4,FALSE)="A/A",F57*1.2,IF(K57>VLOOKUP(C57,'Lighting Assumptions'!D:G,4,FALSE),F57*1.2,F57))),""),F57) -> 0.9 | Q57: =IFERROR(IF($M57>0,IFERROR($M57-$O57*$P57/$D57,$M57),""),"") -> 
A58: B | B58: =GI_Project_Name -> Project Name | F58: =IFERROR(IF(SI_IP_Units="IP",VLOOKUP(C58,'Lighting Assumptions'!$D$1:$F$96,2,FALSE),VLOOKUP(C58,'Lighting Assumptions'!$D$1:$F$96,3,FALSE)),"") ->  | L58: =IF($P$47="Yes",IFERROR(IF(VLOOKUP(C58,'Lighting Assumptions'!D:G,4,FALSE)="N/A",F58,IF(VLOOKUP(C58,'Lighting Assumptions'!D:G,4,FALSE)="A/A",F58*1.2,IF(K58>VLOOKUP(C58,'Lighting Assumptions'!D:G,4,FALSE),F58*1.2,F58))),""),F58) ->  | Q58: =IFERROR(IF($M58>0,IFERROR($M58-$O58*$P58/$D58,$M58),""),"") -> 
B59: =GI_Project_Name -> Project Name | F59: =IFERROR(IF(SI_IP_Units="IP",VLOOKUP(C59,'Lighting Assumptions'!$D$1:$F$96,2,FALSE),VLOOKUP(C59,'Lighting Assumptions'!$D$1:$F$96,3,FALSE)),"") ->  | K59: =IFERROR(2.5*(G59-I59)*J59/D59,"") ->  | L59: =IF($P$47="Yes",IFERROR(IF(VLOOKUP(C59,'Lighting Assumptions'!D:G,4,FALSE)="N/A",F59,IF(VLOOKUP(C59,'Lighting Assumptions'!D:G,4,FALSE)="A/A",F59*1.2,IF(K59>VLOOKUP(C59,'Lighting Assumptions'!D:G,4,FALSE),F59*1.2,F59))),""),F59) ->  | Q59: =IFERROR(IF($M59>0,IFERROR($M59-$O59*$P59/$D59,$M59),""),"") -> 
B60: =GI_Project_Name -> Project Name | F60: =IFERROR(IF(SI_IP_Units="IP",VLOOKUP(C60,'Lighting Assumptions'!$D$1:$F$96,2,FALSE),VLOOKUP(C60,'Lighting Assumptions'!$D$1:$F$96,3,FALSE)),"") ->  | K60: =IFERROR(2.5*(G60-I60)*J60/D60,"") ->  | L60: =IF($P$47="Yes",IFERROR(IF(VLOOKUP(C60,'Lighting Assumptions'!D:G,4,FALSE)="N/A",F60,IF(VLOOKUP(C60,'Lighting Assumptions'!D:G,4,FALSE)="A/A",F60*1.2,IF(K60>VLOOKUP(C60,'Lighting Assumptions'!D:G,4,FALSE),F60*1.2,F60))),""),F60) -> 
B61: =GI_Project_Name -> Project Name | F61: =IFERROR(IF(SI_IP_Units="IP",VLOOKUP(C61,'Lighting Assumptions'!$D$1:$F$96,2,FALSE),VLOOKUP(C61,'Lighting Assumptions'!$D$1:$F$96,3,FALSE)),"") ->  | K61: =IFERROR(2.5*(G61-I61)*J61/D61,"") ->  | L61: =IF($P$47="Yes",IFERROR(IF(VLOOKUP(C61,'Lighting Assumptions'!D:G,4,FALSE)="N/A",F61,IF(VLOOKUP(C61,'Lighting Assumptions'!D:G,4,FALSE)="A/A",F61*1.2,IF(K61>VLOOKUP(C61,'Lighting Assumptions'!D:G,4,FALSE),F61*1.2,F61))),""),F61) -> 
B62: =GI_Project_Name -> Project Name | F62: =IFERROR(IF(SI_IP_Units="IP",VLOOKUP(C62,'Lighting Assumptions'!$D$1:$F$96,2,FALSE),VLOOKUP(C62,'Lighting Assumptions'!$D$1:$F$96,3,FALSE)),"") ->  | L62: =IF($P$47="Yes",IFERROR(IF(VLOOKUP(C62,'Lighting Assumptions'!D:G,4,FALSE)="N/A",F62,IF(VLOOKUP(C62,'Lighting Assumptions'!D:G,4,FALSE)="A/A",F62*1.2,IF(K62>VLOOKUP(C62,'Lighting Assumptions'!D:G,4,FALSE),F62*1.2,F62))),""),F62) -> 
A63: G | B63: Total | D63: =SUM(D56:D62) -> 0 | F63: =IFERROR(SUMPRODUCT($D56:$D62,F56:F62)/SUM($D56:$D62),0) -> 0 | L63: =IFERROR(SUMPRODUCT($D56:$D62,$L56:$L62)/SUM($D56:$D62),0) -> 0 | M63: =IFERROR(SUMPRODUCT($D56:$D62,$M56:$M62)/SUM($D56:$D62),0) -> 0 | Q63: =IFERROR(SUMPRODUCT($D56:$D62,$Q56:$Q62)/SUM($D56:$D62),0) -> 0
A64: G
A65: G
B66: Building ID | C66: =CONCATENATE("Total Space Area ",IF(SI_IP_Units="IP","(sq ft)","(sq m)")) -> Total Space Area (sq ft) | G66: Average LPD | L66: Total Power
A67: G | G67: =CONCATENATE("Baseline Maximum Allowance",CHAR(10),IF(SI_IP_Units="IP","(W/sq ft)","(W/sq m)")) -> Baseline Maximum Allowance (W/sq ft) | J67: =CONCATENATE("Design Maximum Allowance",CHAR(10),IF(SI_IP_Units="IP","(W/sq ft)","(W/sq m)")) -> Design Maximum Allowance (W/sq ft) | L67: =CONCATENATE("Baseline Maximum Allowance",CHAR(10),"(kW)") -> Baseline Maximum Allowance (kW) | O67: =CONCATENATE("Design Maximum Allowance",CHAR(10),"(kW)") -> Design Maximum Allowance (kW)
B68: =B66 -> Building ID | C68: =C66 -> Total Space Area (sq ft) | G68: Base_LPD | J68: Design_LPD | L68: Base_Power | O68: Design_Power
A69: G | B69: ='Multiple Buildings Details'!B24 -> Project Name | C69: =SUMIF($B$56:$B$62,"="&B69,$D$56:$D$62) -> 0 | G69: =IFERROR(SUMPRODUCT(--($B$56:$B$62=$B69),$D$56:$D$62,$L$56:$L$62)/$C69,0) -> 0 | J69: =IFERROR(SUMPRODUCT(--($B$56:$B$62=$B69),$D$56:$D$62,$Q$56:$Q$62)/$C69,0) -> 0 | L69: =SUMPRODUCT(--($B$56:$B$62=$B69),$L$56:$L$62,$D$56:$D$62)/1000 -> 0 | O69: =SUMPRODUCT(--($B$56:$B$62=$B69),$D$56:$D$62,$Q$56:$Q$62)/1000 -> 0
A70: G
A71: G | B71: Section 9.6.2 Additional Lighting Power (if applicable)
A72: G | B72: Building ID | C72: Table 9.6.1 Space Type | F72: 9.6.2 (a) or 9.6.2 (b) | I72: Additional Lighting Power Description or Additional Control Method
A73: G | F73: =IF(SI_IP_Units="IP","Floor Area (sq ft)","Floor Area (sq m)") -> Floor Area (sq ft) | G73: Additional Power Allowance (W)
A74: G | B74: Helpful Notes | C74: Select the space type from the above table where additional lighting power is installed | F74: This should only include the area used for the products being sold (e.g. in a retail building, the entire floor area would not be expected to be devoted to sales area)
A75: G | B75: =B72 -> Building ID | C75: =C72 -> Table 9.6.1 Space Type | F75: =F73 -> Floor Area (sq ft) | G75: =G73 -> Additional Power Allowance (W) | I75: =I72 -> Additional Lighting Power Description or Additional Control Method
A76: D | B76: =GI_Project_Name -> Project Name
B77: Project Name
B78: Project Name
B79: Project Name
B80: Project Name
B81: Project Name
A82: G | B82: Total | F82: =SUM(F76:F81) -> 0 | G82: =IFERROR(IF(P83="Yes",(SUMPRODUCT($F76:$F81,G76:G81)/SUM($F76:$F81)+1000),SUMPRODUCT($F76:$F81,G76:G81)/SUM($F76:$F81)),0) -> 0
A83: G | B83: Lighting equipment is installed in sales area for highlighting merchandise
A84: G | B84: The additional lighting schedule has been modeled separately from the general lighting schedule to reflect the differing controls (May be modeled only when installed and automatically controlled, separately from the general lighting, to be turned off during non-business hours.)
A85: G | B85: Additional lighting power has been modeled identically in the baseline and proposed up to the value allowed in Section 9.6.2
A86: G
A87: G
A88: G | B88: Building ID | C88: Total Space Area | G88: =CONCATENATE("Maximum Allowance",CHAR(10),IF(SI_IP_Units="IP","(W/sq ft)","(W/sq m)")) -> Maximum Allowance (W/sq ft) | L88: =CONCATENATE("Design Maximum Allowance",CHAR(10),"(kW)") -> Design Maximum Allowance (kW)
B89: =B88 -> Building ID | C89: =C88 -> Total Space Area | G89: LPD | L89: Power
A90: G | B90: ='Multiple Buildings Details'!B24 -> Project Name | C90: =SUMIF($B$76:$B$81,"="&B90,$F$76:$F$81) -> 0 | G90: =IFERROR(SUMIF($B$76:$B$81,"="&B90,$G$76:$G$81)/$C90,0) -> 0 | L90: =SUMIF($B$76:$B$81,"="&B90,$G$76:$G$81)/1000 -> 0
A91: G
A92: G
A93: G | B93: Summary
B94: ="Total modeled interior lighting power, based on inputs above" -> Total modeled interior lighting power, based on inputs above
A95: G | B95: Building ID | G95: Average LPD | L95: Total Power
A96: G | G96: =CONCATENATE("Baseline Maximum Allowance",CHAR(10),IF(SI_IP_Units="IP","(W/sq ft)","(W/sq m)")) -> Baseline Maximum Allowance (W/sq ft) | J96: =CONCATENATE("Design Maximum Allowance",CHAR(10),IF(SI_IP_Units="IP","(W/sq ft)","(W/sq m)")) -> Design Maximum Allowance (W/sq ft) | L96: =CONCATENATE("Baseline Maximum Allowance",CHAR(10),"(kW)") -> Baseline Maximum Allowance (kW) | O96: =CONCATENATE("Design Maximum Allowance",CHAR(10),"(kW)") -> Design Maximum Allowance (kW)
B97: =B95 -> Building ID | G97: Base_LPD | J97: Design_LPD | L97: Base_Power | O97: Design_Power
A98: G | B98: ='Multiple Buildings Details'!B24 -> Project Name | G98: =IF($Z$24=2, IFERROR(SUM(SUMIF(L_SxS_SumIndex,"="&$B98,OFFSET(L_SxS_SumIndex,0,MATCH($L$68,L_SxS_SumHdr,0)-1)),SUMIF(L_SXSALP_SumIndex,"="&$B98,OFFSET(L_SXSALP_SumIndex,0,MATCH($L$89,L_SxSALP_SumHdr,0)-1)))/SUMIF(L_SxS_SumIndex,"="&$B98,OFFSET(L_SxS_SumIndex,0,MATCH($C$68,L_SxS_SumHdr,0)-1))*1000,0), IFERROR(SUMIF(L_BAM_SumIndex,"="&$B98,OFFSET(L_BAM_SumIndex,0,MATCH($L$42,L_BAM_SumHdr,0)-1))/SUMIF(L_BAM_SumIndex,"="&$B98,OFFSET(L_BAM_SumIndex,0,MATCH($C$42,L_BAM_SumHdr,0)-1))*1000,0)) -> 0 | J98: =IF($Z$24=2, IFERROR(SUM(SUMIF(L_SxS_SumIndex,"="&$B98,OFFSET(L_SxS_SumIndex,0,MATCH($O$68,L_SxS_SumHdr,0)-1)),SUMIF(L_SXSALP_SumIndex,"="&$B98,OFFSET(L_SXSALP_SumIndex,0,MATCH($L$89,L_SxSALP_SumHdr,0)-1)))/SUMIF(L_SxS_SumIndex,"="&$B98,OFFSET(L_SxS_SumIndex,0,MATCH($C$68,L_SxS_SumHdr,0)-1))*1000,0), IFERROR(SUMIF(L_BAM_SumIndex,"="&$B98,OFFSET(L_BAM_SumIndex,0,MATCH($O$42,L_BAM_SumHdr,0)-1))/SUMIF(L_BAM_SumIndex,"="&$B98,OFFSET(L_BAM_SumIndex,0,MATCH($C$42,L_BAM_SumHdr,0)-1))*1000,0)) -> 0 | L98: =IF($Z$24=2, IFERROR(SUM(SUMIF(L_SxS_SumIndex,"="&$B98,OFFSET(L_SxS_SumIndex,0,MATCH($L$68,L_SxS_SumHdr,0)-1)),SUMIF(L_SXSALP_SumIndex,"="&$B98,OFFSET(L_SXSALP_SumIndex,0,MATCH($L$89,L_SxSALP_SumHdr,0)-1))),0), IFERROR(SUMIF(L_BAM_SumIndex,"="&$B98,OFFSET(L_BAM_SumIndex,0,MATCH($L$42,L_BAM_SumHdr,0)-1)),0)) -> 0 | O98: =IF($Z$24=2, IFERROR(SUM(SUMIF(L_SxS_SumIndex,"="&$B98,OFFSET(L_SxS_SumIndex,0,MATCH($O$68,L_SxS_SumHdr,0)-1)),SUMIF(L_SXSALP_SumIndex,"="&$B98,OFFSET(L_SXSALP_SumIndex,0,MATCH($L$89,L_SxSALP_SumHdr,0)-1))),0), IFERROR(SUMIF(L_BAM_SumIndex,"="&$B98,OFFSET(L_BAM_SumIndex,0,MATCH($O$42,L_BAM_SumHdr,0)-1)),0)) -> 0
A99: G
A100: G | B100: Interior Process Lighting (if applicable)
A101: G | B101: Building ID | C101: Description | G101: Section 9.2.2.3 Exemption | L101: Total Process Lighting Power (W) | O101: Modeled Identically In Baseline?
A102: G | B102: Helpful Notes | C102: Describe any process lighting included in the design (example: 4 kW stage lighting and 20 3-Watt exit signs) | G102: Indicate the specific exemption from Section 9.2.2.3 that excludes the lighting from the Section 9.5 or Section 9.6 lighting power density requirements [example: Stage lighting - 9.2.2.3(f); Exit signs - 9.2.2.3(k)] | O102: Any lighting not regulated by ASHRAE 90.1 is considered process and must be modeled identically in the Proposed and Baseline case unless an Exceptional Calculation is submitted.
A103: G | B103: =B101 -> Building ID | C103: =C101 -> Description | G103: =G101 -> Section 9.2.2.3 Exemption | L103: =L101 -> Total Process Lighting Power (W) | O103: =O101 -> Modeled Identically In Baseline?
A104: G | B104: =GI_Project_Name -> Project Name
A105: G | B105: =GI_Project_Name -> Project Name
A106: G | B106: =GI_Project_Name -> Project Name
A107: G
A108: G | B108: Exterior Lighting
A109: G | B109: Instructions: Select the applicable exterior lighting categories and then complete the corresponding lighting table(s). An example of the expected level of detail has been provided for each input. Please refer to the column header notes for information about Appendix G modeling protocol. For any information not applicable to the project, simply enter "N/A".
A110: G | B110: Exterior Lighting Requirements
A111: G | B111: No additional lighting power allowance has been claimed in the baseline for surfaces that are not provided with lighting in the actual design and lighting fixtures have not been double-counted for different exterior surfaces
A112: G
A113: G | B113: Table 9.4.3A Exterior Lighting Zone
A114: G | B114: Lighting Zone | C114: Zone Description | M114: Base Allowance (W)
B115: Inex | C115: Description | M115: Allowance
A116: G | C116: =IFERROR(VLOOKUP($B116,'Lighting Assumptions'!V3:X7,2,FALSE),"") ->  | M116: =IFERROR(VLOOKUP($B116,'Lighting Assumptions'!V3:X7,3,FALSE),"") -> 
A117: G
A118: G | B118: Tradable Surfaces
A119: G | B119: This table is only required to be completed if Tradable Exterior Lighting is selected above.
A120: G | B120: General Information | I120: Baseline | M120: Proposed
A121: G | B121: Table 9.4.5 Tradable Exterior Lighting Application | F121: Required Input (Area or Length) | H121: =IF(SI_IP_Units="IP","Total Area (sq ft) or Length (ft)","Total Area (sq m) or Length (m)") -> Total Area (sq ft) or Length (ft) | I121: Allowed LPD | J121: Lighting Power Allowance (W) | M121: Design Lighting Power (W)
A122: G | B122: Table 9.4.5 Tradable Exterior Lighting Application | F122: Required Input (Area or Length) | H122: =IF(SI_IP_Units="IP","Total Area (sq ft) or Length (ft)","Total Area (sq m) or Length (m)") -> Total Area (sq ft) or Length (ft) | I122: Allowed LPD | J122: Lighting Power Allowance (W) | M122: Design Lighting Power (W)
B123: Helpful Notes | C123: Fixtures cannot be double-counted for multiple exterior surface types | H123: Only enter area or length of illuminated surface in the design | I123: Allowance calculated using the maximum lighting power density from Table 9.4.5 | M123: Lighting power should be modeled as designed (or installed)
A124: C | F124: =IFERROR(VLOOKUP(B124,'Lighting Assumptions'!$I$4:$J$17,2,FALSE),"") ->  | I124: =IFERROR(INDEX(ZoneTable,MATCH(B124,INDEX(ZoneTable,,1),0),MATCH($B$116&" "&SI_IP_Units,INDEX(ZoneTable,3,),0)),"") ->  | J124: =IFERROR(H124*I124,"") -> 
F125: =IFERROR(VLOOKUP(B125,'Lighting Assumptions'!$I$4:$J$17,2,FALSE),"") ->  | I125: =IFERROR(INDEX(ZoneTable,MATCH(B125,INDEX(ZoneTable,,1),0),MATCH($B$116&" "&SI_IP_Units,INDEX(ZoneTable,3,),0)),"") ->  | J125: =IFERROR(H125*I125,"") -> 
F126: =IFERROR(VLOOKUP(B126,'Lighting Assumptions'!$I$4:$J$17,2,FALSE),"") ->  | I126: =IFERROR(INDEX(ZoneTable,MATCH(B126,INDEX(ZoneTable,,1),0),MATCH($B$116&" "&SI_IP_Units,INDEX(ZoneTable,3,),0)),"") ->  | J126: =IFERROR(H126*I126,"") -> 
F127: =IFERROR(VLOOKUP(B127,'Lighting Assumptions'!$I$4:$J$17,2,FALSE),"") ->  | I127: =IFERROR(INDEX(ZoneTable,MATCH(B127,INDEX(ZoneTable,,1),0),MATCH($B$116&" "&SI_IP_Units,INDEX(ZoneTable,3,),0)),"") -> 
A128: G | B128: Total tradable surface lighting allowance | J128: =IFERROR(SUM(J124:J127),"") -> 0 | M128: =IFERROR(SUM(M124:M127),"") -> 0
A129: G
A130: G
A131: G | B131: Nontradable Surfaces
A132: G | B132: This table is only required to be completed if Nontradable Exterior Lighting is selected above.
A133: G | B133: General Information | I133: Baseline | M133: Proposed
A134: G | B134: Table 9.4.5 Nontradable Exterior Lighting Application | F134: Required Input | H134: Quantity of Required Input for Project | I134: Allowed LPD | J134: Lighting Power Allowance (W) | M134: Design Lighting Power (W) | W134: Adjusted Baseline (equal to lesser of proposed or baseline allowance) | X134: Proposed
B135: Helpful Notes | C135: • Only enter area or length of illuminated surface in the design • Fixtures cannot be double-counted for multiple exterior surface types | I135: Total allowance calculated using the lesser of the design lighting power, or the lighting power allowance used, since no credit is permitted for nontradable surfaces. | M135: Lighting power should be modeled as designed (or installed)
B136: Index | F136: =F134 -> Required Input | H136: =H134 -> Quantity of Required Input for Project | I136: =I134 -> Allowed LPD | J136: =J134 -> Lighting Power Allowance (W) | M136: =M134 -> Design Lighting Power (W)
A137: G | B137: Building facades | F137: Area | I137: =IF(SI_IP_Units="IP", IF(ISBLANK(F137),0,IF(OR(B116="Zone 0",B116="Zone 1"),0,IF(B116="Zone 2",IF(F137="Area",0.1,2.5),IF(B116="Zone 3",IF(F137="Area",0.15,3.75),IF(B116="Zone 4",IF(F137="Area",0.2,5),""))))),IF(ISBLANK(F137),0,IF(OR(B116="Zone 0",B116="Zone 1"),0,IF(B116="Zone 2",IF(F137="Area",1.1,6),IF(B116="Zone 3",IF(F137="Area",1.6,12.3),IF(B116="Zone 4",IF(F137="Area",2.2,16.4),""))))) ) ->  | J137: =IFERROR(H137*I137,"") ->  | W137: =IF(ISERROR(1/M137),0,MIN(J137,M137)) -> 0 | X137: =M137 -> 0 | Y137: =IF(M137>J137,TRUE,FALSE) -> FALSE
A138: G | B138: ATMs and night depositories | F138: Number of ATMs | I138: 270 W + 90 W per additional | J138: =IFERROR(IF(H138>0,IF(H138=1,270,(270+(H138-1)*90)),""),"") ->  | W138: 0 | X138: 0 | Y138: FALSE
A139: G | B139: Entrances and gatehouse inspection stations at guarded facilities | F139: Uncovered Area | I139: =IF(SI_IP_Units="IP",0.75,8.1) -> 0.75 | J139: =IFERROR(H139*I139,"") -> 0 | W139: 0 | X139: 0 | Y139: FALSE
A140: G | B140: Loading areas for law enforcement, fire, ambulance, and other emergency service vehicles | F140: Uncovered Area | I140: =IF(SI_IP_Units="IP",0.5,5.4) -> 0.5 | J140: =IFERROR(H140*I140,"") -> 0 | W140: 0 | X140: 0 | Y140: FALSE
A141: G | B141: Drive-through windows at fast food restaurants | F141: Drive-throughs | I141: 400 | J141: =IFERROR(H141*I141,"") -> 0 | W141: 0 | X141: 0 | Y141: FALSE
A142: G | B142: Parking near 24-hour retail entrances | F142: Main Entries | I142: 800 | J142: =IFERROR(H142*I142,"") -> 0 | W142: 0 | X142: 0 | Y142: FALSE
A143: G | B143: Total nontradable surface lighting allowance | J143: =IFERROR(SUM(W137:W142),"") -> 0 | M143: =IFERROR(SUM(M137:M142),"") -> 0 | W143: =SUM(W137:W142)+$M$116 ->  | X143: =SUM(X137:X142) -> 0 | Y143: =IF(X143>W143,TRUE,FALSE) ->  | Z143: value is True if the base allowance plus adjusted baseline is less than proposed
A144: G
A145: G | B145: Summary
A146: G | B146: Input Parameter | J146: Baseline | M146: Proposed
B147: Index | J147: Base | M147: Design
A148: G | B148: Total modeled exterior lighting power, including base allowance, based on inputs above (kW) | J148: =IFERROR(($J$128+$J$143+$M$116)/1000,0) -> 0 | M148: =IFERROR(($M$128+$M$143)/1000,0) -> 0 | Y148: =IF(M148>J148,TRUE,FALSE) -> FALSE
A149: G
A150: G | B150: Additional notes:
A151: G

Sheet Lighting Assumptions (hidden)
A1: Building Area Method Categories | B1: Table 9.5.1 LPD | D1: Space by Space Categories | E1: Table 9.6.1 LPD | G1: Table 9.6.1 RCR Threshold | I1: Tradable Surfaces | J1: Required Input | K1: Zone 0 | L1: Zone 1 | M1: Zone 2 | N1: Zone 3 | O1: Zone 4 | P1: Zone 0 | Q1: Zone 1 | R1: Zone 2 | S1: Zone 3 | T1: Zone 4 | V1: Lighting Zone | W1: Zone Description | X1: Base Allowance (W)
B2: (W/sq ft) | C2: (W/sq m) | E2: (W/sq ft) | F2: (W/sq m) | K2: IP | L2: IP | M2: IP | N2: IP | O2: IP | P2: SI | Q2: SI | R2: SI | S2: SI | T2: SI
A3: Automotive facility | B3: 0.82 | C3: 8.8 | D3: Atrium - first 40 ft (13 m) in height | E3: 0.03 | F3: 1.059 | G3: N/A | K3: =K1&" "&K2 -> Zone 0 IP | L3: Zone 1 IP | M3: Zone 2 IP | N3: Zone 3 IP | O3: Zone 4 IP | P3: Zone 0 SI | Q3: Zone 1 SI | R3: Zone 2 SI | S3: Zone 3 SI | T3: Zone 4 SI | V3: Zone 0 | W3: Undeveloped areas within national parks, state parks, forest land, rural areas, and other undeveloped areas as defined by the authority having jurisdiction | X3: 0
A4: Convention center | B4: 1.08 | C4: 11.6 | D4: Atirum - height above 40 ft (13 m) | E4: 0.02 | F4: 0.706 | G4: N/A | I4: Parking areas and drives | J4: Area | K4: 0 | L4: 0.04 | M4: 0.06 | N4: 0.1 | O4: 0.13 | P4: 0 | Q4: 0.43 | R4: 0.65 | S4: 1.1 | T4: 1.4 | V4: Zone 1 | W4: Developed areas of national parks, state parks, forest land, and rural areas | X4: 500
A5: Courthouse | B5: 1.05 | C5: 11.3 | D5: Audience/seating - auditorium | E5: 0.79 | F5: 8.5 | G5: 6 | I5: Walkways less than 10 ft wide | J5: Length | K5: 0 | L5: 0.7 | M5: 0.7 | N5: 0.8 | O5: 1 | P5: 0 | Q5: 2.3 | R5: 2.3 | S5: 2.6 | T5: 3.3 | V5: Zone 2 | W5: Areas predominantly consisting of residential zoning, neighborhood business districts, light industrial with limited nighttime use and residential mixed use areas | X5: 600
A6: Dining: bar lounge/leisure | B6: 0.99 | C6: 10.7 | D6: Audience/seating - performing arts theater | E6: 2.43 | F6: 26.2 | G6: 8 | I6: Walkways 10 ft wide or greater | J6: Area | K6: 0 | L6: 0.14 | M6: 0.14 | N6: 0.16 | O6: 0.2 | P6: 0 | Q6: 1.5 | R6: 1.5 | S6: 1.7 | T6: 2.2 | V6: Zone 3 | W6: All other areas | X6: 750
A7: Dining: cafeteria/fast food | B7: 0.9 | C7: 9.7 | D7: Audience/seating - motion picture theater | E7: 1.14 | F7: 12.3 | G7: 4 | I7: Plaza areas | J7: Area | K7: 0 | L7: 0.14 | M7: 0.14 | N7: 0.16 | O7: 0.2 | P7: 0 | Q7: 1.5 | R7: 1.5 | S7: 1.7 | T7: 2.2 | V7: Zone 4 | W7: High activity commercial districts in major metropolitan areas as designated by the local jurisdiction | X7: 1300
A8: Dining: family | B8: 0.89 | C8: 9.6 | D8: Classroom/lecture/training | E8: 1.24 | F8: 13.3 | G8: 4 | I8: Special feature areas | J8: Area | K8: 0 | L8: 0.75 | M8: 1 | N8: 1 | O8: 1 | P8: 0 | Q8: 1.5 | R8: 1.5 | S8: 1.7 | T8: 2.2
A9: Dormitory | B9: 0.61 | C9: 6.6 | D9: Conference/meeting/multipurpose | E9: 1.23 | F9: 13.2 | G9: 6 | I9: Pedestrian tunnels | J9: Area | K9: 0 | L9: 0.15 | M9: 0.15 | N9: 0.2 | O9: 0.3 | P9: 0 | Q9: 1.6 | R9: 1.6 | S9: 2.2 | T9: 3.2
A10: Exercise center | B10: 0.88 | C10: 9.5 | D10: Corridor/transition | E10: 0.66 | F10: 7.1 | G10: A/A | I10: Landscaping | J10: Area | K10: 0 | L10: 0.04 | M10: 0.05 | N10: 0.05 | O10: 0.05 | P10: 0 | Q10: 0.43 | R10: 0.54 | S10: 0.54 | T10: 0.54
A11: Fire Station | B11: 0.71 | C11: 7.6 | D11: Dining area - bar lounge/leisure dining | E11: 1.31 | F11: 14.1 | G11: 4 | I11: Stairways | J11: Area | K11: 0 | L11: 0.75 | M11: 1 | N11: 1 | O11: 1 | P11: 0 | Q11: 8.1 | R11: 10.8 | S11: 10.8 | T11: 10.8
A12: Gymnasium | B12: 1 | C12: 10.8 | D12: Dining area - family dining | E12: 0.89 | F12: 9.6 | G12: 4 | I12: Main entries | J12: Length | K12: 0 | L12: 20 | M12: 20 | N12: 30 | O12: 30 | P12: 0 | Q12: 66 | R12: 66 | S12: 98 | T12: 98
A13: Health-care clinic | B13: 0.87 | C13: 9.4 | D13: Dressing/fitting room: performing arts theater | E13: 0.4 | F13: 4.3 | G13: 6 | I13: Other doors | J13: Length | K13: 0 | L13: 20 | M13: 20 | N13: 20 | O13: 20 | P13: 0 | Q13: 66 | R13: 66 | S13: 66 | T13: 66
A14: Hospital | B14: 1.21 | C14: 13 | D14: Electrical/mechanical | E14: 0.95 | F14: 10.2 | G14: 6 | I14: Entry Canopies | J14: Area | K14: 0 | L14: 0.25 | M14: 0.25 | N14: 0.4 | O14: 0.4 | P14: 0 | Q14: 2.7 | R14: 2.7 | S14: 4.3 | T14: 4.3
A15: Hotel | B15: 1 | C15: 10.8 | D15: Food preparation | E15: 0.99 | F15: 10.7 | G15: 6 | I15: Sales Canopies (free standing, attached and overhangs) | J15: Area | K15: 0 | L15: 0.6 | M15: 0.6 | N15: 0.8 | O15: 1 | P15: 0 | Q15: 6.5 | R15: 6.5 | S15: 8.6 | T15: 10.8
A16: Library | B16: 1.18 | C16: 12.7 | D16: Laboratory - classroom | E16: 1.28 | F16: 13.8 | G16: 6 | I16: Outdoor Open sales areas (including vehicle sales lots) | J16: Area | K16: 0 | L16: 0.25 | M16: 0.25 | N16: 0.5 | O16: 0.7 | P16: 0 | Q16: 2.7 | R16: 2.7 | S16: 5.4 | T16: 7.5
A17: Manufacturing facility | B17: 1.11 | C17: 11.9 | D17: Laboratory - medical/industrial/research | E17: 1.81 | F17: 19.5 | G17: 6 | I17: Street frontage for vehicle sales lots | J17: Length | K17: 0 | L17: 0 | M17: 10 | N17: 10 | O17: 30 | P17: 0 | Q17: 0 | R17: 33 | S17: 33 | T17: 98
A18: Motel | B18: 0.88 | C18: 9.5 | D18: Lobby | E18: 0.9 | F18: 9.68 | G18: 4
A19: Motion picture theater | B19: 0.83 | C19: 8.9 | D19: Lobby- elevator | E19: 0.64 | F19: 6.88 | G19: 6
A20: Multifamily | B20: 0.6 | C20: 6.5 | D20: Lobby - performing arts theater | E20: 2 | F20: 21.5 | G20: 6
A21: Museum | B21: 1.06 | C21: 11.4 | D21: Lobby - motion picture theater | E21: 0.52 | F21: 5.6 | G21: 4
A22: Office | B22: 0.9 | C22: 9.7 | D22: Locker room | E22: 0.75 | F22: 8.1 | G22: 6
A23: Parking garage | B23: 0.25 | C23: 2.7 | D23: Lounge/recreation | E23: 0.73 | F23: 7.9 | G23: 4
A24: Penitentiary | B24: 0.97 | C24: 10.4 | D24: Office - enclosed | E24: 1.11 | F24: 11.9 | G24: 8
A25: Performing arts theater | B25: 1.39 | C25: 15 | D25: Office - open plan | E25: 0.98 | F25: 10.5 | G25: 4
A26: Police station | B26: 0.96 | C26: 10.3 | D26: Restrooms | E26: 0.98 | F26: 10.5 | G26: 8
A27: Post office | B27: 0.87 | C27: 9.4 | D27: Sales area | E27: 1.68 | F27: 18.1 | G27: 6
A28: Religious building | B28: 1.05 | C28: 11.3 | D28: Stairway | E28: 0.69 | F28: 7.4 | G28: 10
A29: Retail | B29: 1.4 | C29: 15.1 | D29: Storage | E29: 0.63 | F29: 6.8 | G29: 6
A30: School/university | B30: 0.99 | C30: 10.7 | D30: Workshop | E30: 1.59 | F30: 17.1 | G30: 6
A31: Sports arena | B31: 0.78 | C31: 8.4 | D31: Automotive - service/repair | E31: 0.67 | F31: 7.2 | G31: 4
A32: Town hall | B32: 0.92 | C32: 9.9 | D32: Bank/office - banking activity area | E32: 1.38 | F32: 14.9 | G32: 6
A33: Transportation | B33: 0.77 | C33: 8.3 | D33: Convention center - audience seating | E33: 0.82 | F33: 8.8 | G33: 4
A34: Warehouse | B34: 0.66 | C34: 7.1 | D34: Convention center - exhibit space | E34: 1.45 | F34: 15.6 | G34: 4
A35: Workshop | B35: 1.2 | C35: 12.9 | D35: Court/police/penitentiary - courtroom | E35: 1.72 | F35: 18.5 | G35: 6
D36: Court/police/penitentiary - confinement cells | E36: 1.1 | F36: 11.8 | G36: 6
D37: Court/police/penitentiary - judges' chambers | E37: 1.17 | F37: 12.6 | G37: 8
D38: Penitentiary audience seating | E38: 0.43 | F38: 4.6 | G38: 4
D39: Penitentiary classroom | E39: 1.34 | F39: 14.4 | G39: 4
D40: Penitentiary dining | E40: 1.07 | F40: 11.5 | G40: 6
D41: Dormitory - living quarters | E41: 0.38 | F41: 4.1 | G41: 8
D42: Fire station - engine room | E42: 0.56 | F42: 6 | G42: 4
D43: Fire station - sleeping quarters | E43: 0.25 | F43: 2.7 | G43: 6
D44: Gym/fitness center - fitness area | E44: 0.72 | F44: 7.8 | G44: 4
D45: Gymnasium audience seating | E45: 0.43 | F45: 4.6 | G45: 6
D46: Gymnasium/fitness center - playing area | E46: 1.2 | F46: 12.9 | G46: 4
D47: Hospital - corridor/transition | E47: 0.89 | F47: 9.6 | G47: A/A
D48: Hospital - emergency | E48: 2.26 | F48: 24.3 | G48: 6
D49: Hospital - exam/treatment | E49: 1.66 | F49: 17.9 | G49: 8
D50: Hospital - laundry/washing | E50: 0.6 | F50: 6.5 | G50: 4
D51: Hospital - lounge/recreation | E51: 1.07 | F51: 11.5 | G51: 6
D52: Hospital - medical supply | E52: 1.27 | F52: 13.7 | G52: 6
D53: Hospital - nursery | E53: 0.88 | F53: 9.5 | G53: 6
D54: Hospital - nurses' station | E54: 0.87 | F54: 9.4 | G54: 6
D55: Hospital - operating room | E55: 1.89 | F55: 20.3 | G55: 6
D56: Hospital - patient room | E56: 0.62 | F56: 6.7 | G56: 6
D57: Hospital - pharmacy | E57: 1.14 | F57: 12.3 | G57: 6
D58: Hospital - physical therapy | E58: 0.91 | F58: 9.8 | G58: 6
D59: Hospital - radiology/imaging | E59: 1.32 | F59: 14.2 | G59: 6
D60: Hospital - recovery | E60: 1.15 | F60: 12.4 | G60: 6
D61: Hotel dining | E61: 0.82 | F61: 8.8 | G61: 4
D62: Hotel guest rooms | E62: 1.11 | F62: 11.9 | G62: 6
D63: Hotel lobby | E63: 1.06 | F63: 11.4 | G63: 4
D64: Highway lodging dining | E64: 0.88 | F64: 9.5 | G64: 4
D65: Highway lodging guest rooms | E65: 0.75 | F65: 8.1 | G65: 6
D66: Library - card file and cataloging | E66: 0.72 | F66: 7.8 | G66: 4
D67: Library - reading area | E67: 0.93 | F67: 10 | G67: 4
D68: Library - stacks | E68: 1.71 | F68: 18.4 | G68: 4
D69: Manufacturing - corridor/transition | E69: 0.41 | F69: 4.4 | G69: A/A
D70: Manufacturing - detailed manufacturing | E70: 1.29 | F70: 13.9 | G70: 4
D71: Manufacturing - equipment room | E71: 0.95 | F71: 10.2 | G71: 6
D72: Manufacturing - extra high bay | E72: 1.05 | F72: 11.3 | G72: 4
D73: Manufacturing - high bay | E73: 1.23 | F73: 13.2 | G73: 4
D74: Manufacturing - low bay | E74: 1.19 | F74: 12.8 | G74: 4
D75: Museum - general exhibition | E75: 1.05 | F75: 11.3 | G75: 6
D76: Museum - restoration | E76: 1.02 | F76: 11 | G76: 6
D77: Parking garage - garage area | E77: 0.19 | F77: 2 | G77: 4
D78: Post office - sorting area | E78: 0.94 | F78: 10.1 | G78: 4
D79: Religious buildings - audience seating | E79: 1.53 | F79: 16.5 | G79: 4
D80: Religious buildings - fellowship hall | E80: 0.64 | F80: 6.9 | G80: 4
D81: Religious buildings - worship pulpit, choir | E81: 1.53 | F81: 16.5 | G81: 4
D82: Retail - dressing/fitting room | E82: 0.87 | F82: 9.4 | G82: 8
D83: Retail - mall concourse | E83: 1.1 | F83: 11.8 | G83: 4
D84: Retail - sales area (see 9.6.3(c) for accent ltg) | E84: 1.68 | F84: 18.1 | G84: 6
D85: Sports arena - audience seating | E85: 0.43 | F85: 4.6 | G85: 4
D86: Sports arena - court sports arena—class 4 | E86: 0.72 | F86: 7.8 | G86: 4
D87: Sports arena - court sports arena—class 3 | E87: 1.2 | F87: 12.9 | G87: 4
D88: Sports arena - court sports arena—class 2 | E88: 1.92 | F88: 20.7 | G88: 4
D89: Sports arena - court sports arena—class 1 | E89: 3.01 | F89: 32.4 | G89: 4
D90: Sports arena - ring sports arena | E90: 2.68 | F90: 28.8 | G90: 4
D91: Transportation - air/train/bus—baggage area | E91: 0.76 | F91: 8.2 | G91: 4
D92: Transportation - airport—concourse | E92: 0.36 | F92: 3.9 | G92: 4
D93: Transportation - audience seating | E93: 0.54 | F93: 5.8 | G93: 4
D94: Transportation - terminal—ticket counter | E94: 1.08 | F94: 11.6 | G94: 4
D95: Warehouse - fine material storage | E95: 0.95 | F95: 10.2 | G95: 6
D96: Warehouse - medium/bulky material storage | E96: 0.58 | F96: 6.2 | G96: 4

Sheet Process Loads
A1: G
A2: G | B2: Process Loads
A3: G
A4: G
A5: G | B5: Instructions: Select the method(s) used to model receptacle equipment, and then complete the corresponding receptacle equipment table(s). Non-receptacle process equipment should be reported in the last table. Please refer to the column header notes for information about Appendix G modeling protocol. For any information not applicable to the project, simply enter "N/A".
A6: G
A7: G | B7: Process Load Requirements
A8: G | B8: At least 50% of all 125 volt 15 and 20 Amper receptacles installed in private offices, open offices, and computer classrooms shall be controlled by an automatic device which functions on a scheduled basis, an occupant sensor, or a signal from another control system that indicates the area is unoccupied, in accordance with Section 8.4.2.
A9: G
A10: G | B10: All receptacle equipment and other process equipment designed or anticipated for the building have been accounted for in the energy models.
A11: G
A12: G | B12: If not all the process equipment has been accounted for in the energy model, indicated as "No" above, the project does not likely comply with LEED modeling requirements. It is recommended that the project team pursue a "Credit Interpretation Ruling" to justify the modeling approach. Please also provide any further information below to justify the modeling approach used.
A13: G
A14: G
A15: G | B15: Receptacle Equipment Modeling Method
A16: G | B16: Indicate whether the receptacle equipment was modeled using an average equipment power density for the building, equipment power densities by space type, or by entering the power associated with specific devices in each space. (select all that apply) | G16: Building average equipment power density Space by space equipment power density | M16: FALSE | N16: FALSE
A17: G
A18: G | B18: Building Average Equipment Power Density
A19: G
A20: G | B20: Building ID | C20: Building Type | E20: =IF('General Information'!$I$12="IP","Total Building Type Area (sq ft)","Total Building Type Area (sq m)") -> Total Building Type Area (sq ft) | F20: =IF('General Information'!$I$12="IP","Equipment Power Density (W/sq ft)","Equipment Power Density (W/sq m)") -> Equipment Power Density (W/sq ft) | G20: Equipment Included in Power Density | H20: Baseline Modeled Identically
B22: ='Multiple Buildings Details'!B24 -> Project Name | C22: ="Hotel" -> Hotel
A23: A | B23: =GI_Project_Name -> Project Name | L23: =IF(H23="No","Submit savings using Exceptional Calculation","") -> 
B24: Project Name
B25: Project Name
B26: Project Name
B27: Project Name
B28: Project Name
A29: G | B29: Totals | E29: =SUM($E$22:$E$28) -> 0 | F29: =IFERROR(SUMPRODUCT($E$22:$E$28,$F$22:$F$28)/SUM($E$22:$E$28),0) -> 0
A30: G | B30: Total power modeled using building average method (kW) | I30: =SUMPRODUCT($E$22:$E$28,$F$22:$F$28)/1000 -> 0
A31: G | B31: Note: Any credit for improved receptacle equipment must be submitted using the Exceptional Calculation Method.
B32: =IF(ResDwellingUnitsExist="Yes","Note: The above table is for spaces other than dwelling units. To enter dwelling unit values, use the Multifamily Details tab.","") -> 
A33: G
A34: G
A35: G | B35: Space by Space Equipment Power Densities
A36: G
A37: G | B37: Building ID | C37: Building Type | E37: =IF('General Information'!$I$12="IP","Total Space Type Area (sq ft)","Total Space Type Area (sq m)") -> Total Space Type Area (sq ft) | F37: =IF('General Information'!$I$12="IP","Equipment Power Density (W/sq ft)","Equipment Power Density (W/sq m)") -> Equipment Power Density (W/sq ft) | G37: Equipment Included in Power Density | H37: Baseline Modeled Identically
B39: ='Multiple Buildings Details'!B24 -> Project Name | C39: ="Hotel guest rooms" -> Hotel guest rooms
A40: B | B40: =GI_Project_Name -> Project Name | L40: =IF(H40="No","Submit savings using Exceptional Calculation","") -> 
B41: Project Name
B42: Project Name
B43: Project Name
B44: Project Name
B45: Project Name
B46: Project Name
A47: G | B47: Totals | E47: =SUM($E$39:$E$46) -> 0 | F47: =IFERROR(SUMPRODUCT($E$39:$E$46,$F$39:$F$46)/SUM($E$39:$E$46),0) -> 0
A48: G | B48: Total power modeled using space by space method (kW) | I48: =SUMPRODUCT($E$39:$E$46,$F$39:$F$46)/1000 -> 0
B49: Note: Any credit for improved receptacle equipment must be submitted using the Exceptional Calculation Method.
A50: G | B50: =IF(ResDwellingUnitsExist="Yes","Note: The above table is for spaces other than dwelling units. To enter dwelling unit values, use the Multifamily Details tab.","") -> 
A51: G
A52: G
B53: Residential Equipment Calculator
B55: Load Soure | C55: Energy Star | E55: EFLH
A60: G | B60: Summary
A61: G | B61: Building ID | C61: Input Parameter | I61: kW
B62: ='Multiple Buildings Details'!B24 -> Project Name | C62: ="Total power for receptacle equipment" -> Total power for receptacle equipment | I62: =IF($N$16=TRUE,SUMPRODUCT(--($B$39:$B$46=$B62),$E$39:$E$46,$F$39:$F$46)/1000,0)+IF($M$16=TRUE,SUMPRODUCT(--($B$22:$B$28=$B62),$E$22:$E$28,$F$22:$F$28)/1000,0) -> 0
A63: G
A64: G | B64: Non-Receptacle Process Equipment
A65: G | B65: Building ID | C65: Equipment Type | E65: Energy Source | F65: =IF('General Information'!$I$12="IP","Energy Demand (kW for electricity) (Btuh for non-electricity)"," Energy Demand (kW)") -> Energy Demand (kW for electricity) (Btuh for non-electricity) | G65: Modeling Parameters | H65: Baseline Modeled Identically
B66: Helpful Notes | C66: Modify equipment types as necessary. Note: Complete the Data Center Calculator (found under the "Resources" tab of the Credit Library) in order to claim credit for data center equipment. | G66: Provide a description of the equipment, the operating schedule, and any latent and sensible loads modeled in the associated space (example: 15 kW electric range with hood; operates 2 full load hours/day; 6.3 kBtu/h (1.8 kW) sensible heat gain). | H66: All process loads must be modeled identically between the Proposed and Baseline case and included in the simulations per Table G3.1#12. Exception: When the process or receptacle equipment includes components regulated by minimum efficiency requirements in ASHRAE 90.1, these components may be modeled in the Baseline Case using the minimum ASHRAE 90.1 efficiencies, and in the proposed case using actual proposed case efficiencies (e.g. Baseline may be modeled using furnace efficiencies from Table 6.8.1E, boiler efficiencies from Table 6.8.1G, chiller efficiencies from Table 6.8.1C or Section 6.4.1.2, or motor efficiency from Section 10.4).
A67: C | B67: =GI_Project_Name -> Project Name | L67: =IF(H67="No","Submit savings using Exceptional Calculation","") -> 
B68: Project Name | C68: Refrigeration equipment
B69: Project Name | C69: Kitchen equipment
B70: Project Name | C70: Data center equipment
B71: Project Name | C71: Process exhaust fans
B72: Project Name | C72: Escalators
B73: Project Name
B74: Project Name
A75: G | B75: Note: Any credit for improved process equipment must be submitted using the Exceptional Calculation Method.
A76: G
A77: G
A78: G | B78: Garage Fan Power Calculation
A81: G | B81: Building ID | C81: Total Design Fan Power (kW) | D81: Total Base Fan Power (kW) | E81: =CONCATENATE("Ventilated Parking Area ",IF(SI_IP_Units="IP","(square feet)","(square meter)")) -> Ventilated Parking Area (square feet) | F81: =CONCATENATE("Proposed Airflow ",IF(SI_IP_Units="IP","CFM","M/S")) -> Proposed Airflow CFM | G81: =CONCATENATE("Baseline Airflow ",IF(SI_IP_Units="IP","CFM","M/S")) -> Baseline Airflow CFM | H81: Design EFLH | I81: Base EFLH
A82: D | B82: =GI_Project_Name -> Project Name | D82: Same as Design | G82: Same as Design | I82: Same as Design
B83: =GI_Project_Name -> Project Name | D83: Same as Design | G83: Same as Design | I83: Same as Design
A84: G | B84: ="Note: "&CHAR(10)& "1. The Baseline parking area must meet the requirements of ASHRAE 90.1-2010 Section 6.4.3.4.5 which establish mandatory Demand"&CHAR(10)&" Controlled Ventilation (DCV)."&CHAR(10)& "2. Fan power for the Baseline case is limited to 0.3 W/CFM"&CHAR(10)& "3. Additional requirements are listed in LEED Interpretation #10371 which outlines DCV as an Energy Conservation Measure (ECM) in"&CHAR(10)&" garage areas." -> Note: 1. The Baseline parking area must meet the requirements of ASHRAE 90.1-2010 Section 6.4.3.4.5 which establish mandatory Demand Controlled Ventilation (DCV). 2. Fan power for the Baseline case is limited to 0.3 W/CFM 3. Additional requirements are listed in LEED Interpretation #10371 which outlines DCV as an Energy Conservation Measure (ECM) in garage areas.
A85: G
A86: G
A87: G
A88: G

Sheet Service Water Heating
A1: G
A2: G | B2: Service Water Heating
A3: G
A4: G
A5: G | B5: Instructions: Complete the Service Water Heaters table for each unique type of system in the project. Use the Add System button for more than one type of system. If the project includes service hot water circulation pumps, complete the Service Hot Water Pumps table. Please refer to the column header notes for information about Appendix G modeling protocol. Complete the Service Hot Water Fixtures table if credit is modeled for low-flow fixtures in the proposed. For any information not applicable to the project, simply enter "N/A".
A6: G
A7: G | B7: Service Water Heaters
A8: G | B8: Model Input Parameter | G8: Baseline | K8: Proposed
B9: Helpful Notes: | C9: • Condenser Heat Recovery - Verify that condenser heat recovery has been modeled in the Baseline if required by 6.5.6.2 and describe any condenser heat recovery modeled; otherwise enter "Not required" (example: preheats service hot water to 85°F (29°C)) | G9: • New systems: minimum performance requirements from Table 7.8 per Table G3.1#11(b) • Existing systems: actual system inputs per Table G3.1#11(a) • Model separate service water heating system when design uses combined system with space heating per Table G3.1#11(e) • Condenser heat recovery as required by 6.5.6.2 per Table G3.1#11(f) | K9: • Service water heaters modeled as designed (or installed) per Table G3.1#11(a&b) • Where no service hot water system exists or has been specified but the building will have service hot water loads, a service hot water system should be modeled identical to the Baseline per Table G3.1#11(c) • For buildings with no service hot water loads, no service hot water system should be modeled per Table G3.1#11(d)
B10: Modeled_Input_Param | G10: Baseline | K10: Proposed
A11: G
A12: G | B12: Building ID | G12: Project Name
A13: G | B13: System type and fuel
A14: G | B14: =IF(SI_IP_Units="IP","Input rating (kW, MBH, etc.)","Input rating (kW, kBtu/h, etc.)") -> Input rating (kW, MBH, etc.)
A15: G | B15: Efficiency (EF, SL, %, etc.)
A16: G | B16: =IF(SI_IP_Units="IP","Storage volume (gal)","Storage volume (L)") -> Storage volume (gal)
A17: G | B17: =IF(SI_IP_Units="IP","Storage temperature (°F)","Storage temperature (°C)") -> Storage temperature (°F)
A18: G | B18: =IF(SI_IP_Units="IP","Peak hot water demand (gpm)","Peak hot water demand (L/s)") -> Peak hot water demand (gpm)
A19: G | B19: Condenser heat recovery
A20: G | B20: Number of pumps
A21: G | B21: Total pump power (kW)
A22: G | B22: Type of pump
A23: G
A24: G | B24: Note: Any credit for improved service hot water pumps must be submitted using the Exceptional Calculation Method.
A25: G
A26: G | B26: =CONCATENATE("Service Hot Water Flow",IF(ResDwellingUnitsExist="Yes", " (Except Residential Dwelling Units & Laundry)", "")) -> Service Hot Water Flow
B27: =CONCATENATE(IF(ResDwellingUnitsExist="Yes",CONCATENATE("This section is only required to be completed if credit is modeled in the proposed model for low-flow fixtures serving the non-residential portions of the project."," Complete the Multifamily Details tab to take credit for the fixtures in the dwelling units and laundry rooms serving resdential spaces. ","The project still must include the non-residential DHW flow in the baseline and proposed case for non-residential spaces even if no credit is taken."),CONCATENATE("This section is only required to be completed if credit is modeled in the proposed model for low-flow fixtures. ", "Please note that DHW must be included in the model as designed even if no credit is modeled."))," Note: The DHW Equivalent Full Load Hours of Operation is linked from the Main Building schedules section of the Schedules tab, which must be completed prior to completion of this tab. ","The Modeled DHW Flow rate will not calculate unless a value is entered for the service water heating Equivalent Full Load Hours in the Schedules Tab."," Please ensure that the modeled schedules and flow rates are consistent with the values reported here") -> This section is only required to be completed if credit is modeled in the proposed model for low-flow fixtures. Please note that DHW must be included in the model as designed even if no credit is modeled. Note: The DHW Equivalent Full Load Hours of Operation is linked from the Main Building schedules section of the Schedules tab, which must be completed prior to completion of this tab. The Modeled DHW Flow rate will not calculate unless a value is entered for the service water heating Equivalent Full Load Hours in the Schedules Tab. Please ensure that the modeled schedules and flow rates are consistent with the values reported here
B29: =CONCATENATE("Average Cold Water Temperature ",IF(SI_IP_Units="IP","(deg. F)","(deg. C)")) -> Average Cold Water Temperature (deg. F)
A32: G | B32: General Information | G32: Baseline | K32: Proposed
A33: G | B33: Building ID | C33: Fixture Type | D33: =IF(SI_IP_Units="IP","Fixture Outlet Temperature (°F)","Fixture Outlet Temperature (°C)") -> Fixture Outlet Temperature (°F) | E33: Percent Hot Water (%) | G33: =IF(SI_IP_Units="IP","Flow Rate (gpm or gpc)","Flow Rate (L/s or L/c)") -> Flow Rate (gpm or gpc) | H33: =IF(SI_IP_Units="IP","Annual Total Water Consumption of Fixture (gallons/year)","Annual Total Water Consumption (Liters/year)") -> Annual Total Water Consumption of Fixture (gallons/year) | I33: =IF(SI_IP_Units="IP","Annual Fixture Hot Water Consumption (gallons/year)","Annual Fixture Hot Water Consumption (Liters/year)") -> Annual Fixture Hot Water Consumption (gallons/year) | K33: =IF(SI_IP_Units="IP","Flow Rate (gpm or gpc)","Flow Rate (L/s or L/c)") -> Flow Rate (gpm or gpc) | L33: =IF(SI_IP_Units="IP","Annual Total Water Consumption (gallons/year)","Annual Total Water Consumption (Liters/year)") -> Annual Total Water Consumption (gallons/year) | M33: =IF(SI_IP_Units="IP","Annual Fixture Hot Water Consumption (gallons/year)","Annual Fixture Hot Water Consumption (Liters/year)") -> Annual Fixture Hot Water Consumption (gallons/year)
A34: G | B34: Helpful Notes: | C34: • Describe a type of hot water fixture included in the project (example: Lavatory Faucets) | D34: • Percent hot water is the portion of water usage from the fixture that is hot water versus cold water (e.g. - lavatory cold water usage associated with brushing teeth versus hot water usage associated with washing hands) | G34: • Fixtures included in the WE Prerequisite Indoor Water Use Reduction calculations: values must be consistent with the WE Prerequisite form • Additional fixtures not included in WE Prerequisite Indoor Water Use Reduction: Use Proposed values or provide supporting documentation for Baseline assumption (example: Energy Star documentation of average hot water usage for dishwasher or clothes washer) | K34: • Values should be consistent with the design (or installed) fixtures and WE Prerequisite Indoor Water Use Reduction (if applicable)
A35: G | B35: Building ID | C35: Fixture_Type | D35: Fixture_Temp | E35: Percent_HW | G35: Base_Fixture_Flow | H35: Base_Total_Annual_Fixture_Consumption | I35: Base_Annual_HW_Fixture_Consumption | K35: Design_Fixture_Flow | L35: Design_Total_Annual_Fixture_Consumption | M35: Design_Annual_HW_Fixture_Consumption
A36: A | B36: =GI_Project_Name -> Project Name | I36: =IFERROR(IF(OR($M$29="",$D36=""),"",IF(H36>0,H36*$E36*($D36-$M$29)/(IF(INDEX(SWH_Flow_Table,MATCH($B36,SWH_Flow_Index,0),MATCH($D$43,SWH_Flow_Hdr,0))<$D36,FALSE,INDEX(SWH_Flow_Table,MATCH($B36,SWH_Flow_Index,0),MATCH($D$43,SWH_Flow_Hdr,0))-$M$29)),"")),"") ->  | M36: =IFERROR(IF(OR($M$29="",$D36=""),"",IF(L36>0,L36*$E36*($D36-$M$29)/(IF(INDEX(SWH_Flow_Table,MATCH($B36,SWH_Flow_Index,0),MATCH($D$43,SWH_Flow_Hdr,0))<$D36,FALSE,INDEX(SWH_Flow_Table,MATCH($B36,SWH_Flow_Index,0),MATCH($D$43,SWH_Flow_Hdr,0))-$M$29)),"")),"") -> 
B37: =GI_Project_Name -> Project Name | I37: =IFERROR(IF(H37>0,H37*$E37*($D37-$M$29)/(INDEX(SWH_Flow_Table,MATCH($B37,SWH_Flow_Index,0),MATCH($D$43,SWH_Flow_Hdr,0))-$M$29),""),"") ->  | M37: =IFERROR(IF(L37>0,L37*$E37*($D37-$M$29)/(INDEX(SWH_Flow_Table,MATCH($B37,SWH_Flow_Index,0),MATCH($D$43,SWH_Flow_Hdr,0))-$M$29),""),"") -> 
B38: =GI_Project_Name -> Project Name | I38: =IFERROR(IF(H38>0,H38*$E38*($D38-$M$29)/(INDEX(SWH_Flow_Table,MATCH($B38,SWH_Flow_Index,0),MATCH($D$43,SWH_Flow_Hdr,0))-$M$29),""),"") ->  | M38: =IFERROR(IF(L38>0,L38*$E38*($D38-$M$29)/(INDEX(SWH_Flow_Table,MATCH($B38,SWH_Flow_Index,0),MATCH($D$43,SWH_Flow_Hdr,0))-$M$29),""),"") -> 
B39: =GI_Project_Name -> Project Name | I39: =IFERROR(IF(H39>0,H39*$E39*($D39-$M$29)/(INDEX(SWH_Flow_Table,MATCH($B39,SWH_Flow_Index,0),MATCH($D$43,SWH_Flow_Hdr,0))-$M$29),""),"") ->  | M39: =IFERROR(IF(L39>0,L39*$E39*($D39-$M$29)/(INDEX(SWH_Flow_Table,MATCH($B39,SWH_Flow_Index,0),MATCH($D$43,SWH_Flow_Hdr,0))-$M$29),""),"") -> 
A40: G
A41: G | B41: Summary | G41: Baseline | K41: Proposed
A42: G | B42: Building ID | C42: DHW Equivalent Full Load Hours of Operation | D42: =CONCATENATE("DHW Supply Temperature from Water Heater",IF(SI_IP_Units="IP"," (deg. F)"," (deg. C)")) -> DHW Supply Temperature from Water Heater (deg. F) | G42: =CONCATENATE("Total Annual Hot Water Consumption at Fixtures",IF(SI_IP_Units="IP"," (gallons/year)"," (Liters/year)")) -> Total Annual Hot Water Consumption at Fixtures (gallons/year) | H42: =CONCATENATE("Total Annual DHW Heater Consumption",IF(SI_IP_Units="IP"," (gallons/year)"," (Liters/year)")) -> Total Annual DHW Heater Consumption (gallons/year) | I42: =CONCATENATE("Modeled DHW Flow Rate ",IF(SI_IP_Units="IP","gallons/minute","Liters/second")) -> Modeled DHW Flow Rate gallons/minute | K42: =CONCATENATE("Total Annual Hot Water Consumption at Fixtures",IF(SI_IP_Units="IP"," (gallons/year)"," (Liters/year)")) -> Total Annual Hot Water Consumption at Fixtures (gallons/year) | L42: =CONCATENATE("Total Annual DHW Heater Consumption",IF(SI_IP_Units="IP"," (gallons/year)"," (Liters/year)")) -> Total Annual DHW Heater Consumption (gallons/year) | M42: =CONCATENATE("Modeled DHW Flow Rate ",IF(SI_IP_Units="IP","gallons/minute","Liters/second")) -> Modeled DHW Flow Rate gallons/minute
B43: Building ID | C43: DHW_EFLH | D43: DHW_Supply_Temp | G43: Base_Fixture_HW_Use | H43: Base_DHW_Heater_Use | I43: Base_Modeled_DHW_Flow | K43: Design_Fixture_HW_Use | L43: Design_DHW_Heater_Use | M43: Design_Modeled_DHW_Flow
B44: ='Multiple Buildings Details'!B24 -> Project Name | C44: =Schedules!$E$13 -> 0 | G44: =IFERROR(SUMIF(SWH_Fixture_Index,$B44,(OFFSET(SWH_Fixture_Index,0,MATCH($I$35,SWH_Fixture_Hdr,0)-1,ROWS(SWH_Fixture_Table),1))),"") -> 0 | H44: =IFERROR(SUMPRODUCT(OFFSET(SWH_Fixture_Index,0,MATCH($I$35,SWH_Fixture_Hdr,0)-1,ROWS(SWH_Fixture_Index),1),OFFSET(SWH_Fixture_Index,0,MATCH($Z$35,SWH_Fixture_Hdr,0)-1,ROWS(SWH_Fixture_Index),1),--(SWH_Fixture_Index=$B44))/($D44*$M$29/$D44/$M$29*($D44-$M$29)),"") ->  | I44: =IFERROR(IF(SI_IP_Units="IP",H44/$C44/60,H44/$C44/60/60),"") ->  | K44: =IFERROR(SUMIF(SWH_Fixture_Index,$B44,(OFFSET(SWH_Fixture_Index,0,MATCH($M$35,SWH_Fixture_Hdr,0)-1,ROWS(SWH_Fixture_Table),1))),"") -> 0 | L44: =IFERROR(SUMPRODUCT(OFFSET(SWH_Fixture_Index,0,MATCH($M$35,SWH_Fixture_Hdr,0)-1,ROWS(SWH_Fixture_Index),1),OFFSET(SWH_Fixture_Index,0,MATCH($Z$35,SWH_Fixture_Hdr,0)-1,ROWS(SWH_Fixture_Index),1),--(SWH_Fixture_Index=$B44))/($D44*$M$29/$D44/$M$29*($D44-$M$29)),"") ->  | M44: =IFERROR(IF(SI_IP_Units="IP",L44/$C44/60,L44/$C44/60/60),"") -> 
A45: G
A46: G | B46: Additional notes:
A47: G
A55: G
A57: G
A58: G
A59: G
A67: G
A68: G
A69: G
A70: G
A71: G
A72: G
A73: G

Sheet General HVAC
A1: G
A2: G | B2: General HVAC
A3: G
A4: G
A5: G | B5: Instructions: Confirm that the energy model complies with the General HVAC requirements listed, and provide a narrative explaining any discrepancies. Select the types of water-side systems that are installed on the project site (proposed). Describe each type of HVAC system in the proposed. Select the applicable baseline HVAC system type(s). Confirm that each of the HVAC modeling requirements have been incorporated into the energy models. Please refer to the column header notes for information about Appendix G modeling protocol. For any information not applicable to the project, simply enter "N/A".
A6: G | B6: Enclosed parking garage ventilation systems automatically detect contaminant levels and modulate fan airflows rates to 50% or less of design capacity per Section 6.4.3.4.5
A7: G
A8: G | B8: Spaces larger than 500 square feet (50 square meters), with occupancy of greater than 40 people per 1,000 square feet (100 square meters), and are served by systems that have one of the following: an air-side economizer, automatic modulating control of the outdoor air damper, or a design outdoor airflow of greater than 3,000 cfm (1,400 L/s), have been designed with demand control ventilation per Section 6.4.3.9.
A9: G
A10: G | B10: Air handling and fan coil units with chilled water cooling coils and with supply fans motors greater than or equal to 5 hp (4 kW) have their supply fans controlled by two-speed motors or variable speed drives per Section 6.4.3.10.
A11: G
A12: G | B12: Direct expanstion cooling equipment with an AHRI cooling capacity greater than or equal to 110,000 Btu/h (32 kW) that serve single zones have been designed with supply fans controlled by two-speed motors or variable speed drives per Section 6.4.3.10.
A13: G
A14: G | B14: For each item entered as “No” above, describe the applicable ASHRAE 90.1 Appendix G exception(s) that apply, or the circumstances preventing the lighting parameters from being modeled as required. If the energy simulation software is not capable of modeling the required parameters, describe the adjustments that were made to provide a similar representation or provide a narrative justifying why the predicted energy performance results will not be influenced.
A15: G
A16: G
A17: G | B17: Proposed HVAC System Type(s)
A18: G | B18: Building ID | C18: System Description | F18: Spaces Modeled
B19: Helpful Notes | C19: • Describe each type of HVAC system included in the Proposed building (example: Constant volume single-zone ground source heat pumps with dedicated outdoor air units with energy recovery). | F19: • List the spaces modeled with the primary system type (example: all spaces except kitchen). • The HVAC system type and all related parameters, such as equipment capacities and efficiencies, must be modeled as designed (or installed) per Table G3.1#10(a&b) • Where no heating system exists or has been designed, the classification is assumed to be electric and the heating system is modeled identically to the Baseline case per Table G3.1#10(c) • Where no cooling system exists or has been designed, the cooling system is modeled identically to the Baseline case per Table G3.1#10(d), unless using baseline HVAC system types 9 or 10.
A20: A | B20: =GI_Project_Name -> Project Name
B21: =GI_Project_Name -> Project Name
B22: =GI_Project_Name -> Project Name
A23: G
A24: G
A25: G | B25: Baseline HVAC System Type(s)
A26: G | B26: Building ID | C26: Model Input Parameter | D26: Table G3.1.1A System Type (or Semiconditioned System Description) | E26: G3.1.1 Exception (or Semiconditioned Capacity and Area) | F26: Spaces Modeled
A27: G | B27: Helpful Notes | C27: • Refer to Section G3.1.1 and Table G3.1.1A (including footnotes) for Primary HVAC System selection • A system with any combination of fossil fuel and electric heat is considered fossil/electric hybrid • Systems 1-4: each thermal block shall be modeled with its own system • Systems 5-10: each floor shall be modeled with a separate system • Additional system types for conditioned spaces only permitted using Exceptions to G3.1.1 (min 20,000 sq ft (1860 sq m) required for exception (a)) • Systems serving semiconditioned spaces should be modeled identically to the system in the Proposed case (see definition of space in Section 3.2 of ASHRAE 90.1 • For California Title-24 projects, type in the appropriate system type | E27: • Conditioned: describe the exception from G3.1.1 used to model this additional Baseline system type (example: Exception (b) used since peak loads differ by more than 10 Btu/h-sq ft (0.03 kW/sq m)) • Semiconditioned: list the total system capacity and floor area it serves | F27: • List the spaces modeled with the primary system type (example: all spaces except kitchen)
A28: G | B28: =B26 -> Building ID | C28: =C26 -> Model Input Parameter | D28: =D26 -> Table G3.1.1A System Type (or Semiconditioned System Description) | E28: =E26 -> G3.1.1 Exception (or Semiconditioned Capacity and Area) | F28: =F26 -> Spaces Modeled
A29: B | B29: =GI_Project_Name -> Project Name | J29: =IFERROR(IF(ISNUMBER(SEARCH("California",D29)),"Cali",IF(MID(D29,8,1)="1",IF(MID(D29,9,1)="0",MID(D29,8,2),MID(D29,8,1)),MID(D29,8,1))),"") -> 
B30: =GI_Project_Name -> Project Name | C30: Primary HVAC System | J30: =IFERROR(IF(ISNUMBER(SEARCH("California",D30)),"Cali",IF(MID(D30,8,1)="1",IF(MID(D30,9,1)="0",MID(D30,8,2),MID(D30,8,1)),MID(D30,8,1))),"") -> 
B31: =GI_Project_Name -> Project Name | J31: =IFERROR(IF(ISNUMBER(SEARCH("California",D31)),"Cali",IF(MID(D31,8,1)="1",IF(MID(D31,9,1)="0",MID(D31,8,2),MID(D31,8,1)),MID(D31,8,1))),"") -> 
B32: =GI_Project_Name -> Project Name | J32: =IFERROR(IF(ISNUMBER(SEARCH("California",D32)),"Cali",IF(MID(D32,8,1)="1",IF(MID(D32,9,1)="0",MID(D32,8,2),MID(D32,8,1)),MID(D32,8,1))),"") -> 
A33: G
A34: G
A35: G | B35: HVAC Modeling Requirements
A36: G | B36: All proposed and baseline HVAC system types must be entered above to generate the correct modeling requirements below. Identify each applicable item (indicated in gray) as "Yes" or "No", and provide a further description for any items marked as "No".
A37: G | B37: Proposed HVAC Requirements
A38: G | B38: All proposed HVAC systems and related parameters, such as equipment capacities, efficiencies, airflows, fans, etc. have been modeled as designed and are consistent with supporting documentation. | G38: Required for all systems
A39: G | B39: Each proposed HVAC thermal zone has been modeled as a separate thermal block except as allowed by Table G3.1#7. | G39: Required for all systems
A40: G | B40: All proposed HVAC systems serving conditioned spaces have been modeled with heating and cooling as required by Table G3.1#1(b), with heating and/or cooling added as necessary identically to the baseline per Table G3.1#10(c&d) except where System types (9) or (10) have been modeled. | G40: Required for all systems
A41: G | B41: All proposed HVAC systems and related parameters can be modeled directly in the energy simulation program used. | G41: Required for all systems
A42: G | B42: All proposed fan part-load efficiency curves for variable volume fans have been modeled identically to the baseline curves for variable volume fans (if not, provide a description of the fan curves used in the space at the bottom of this table, and confirm that the proposed curves are representative of the actual building design). | G42: Required for all systems
A43: G
A44: G | B44: Baseline Air-Side HVAC Requirements | I44: conditional final t/f | J44: number search 1 | K44: number search 2
A45: G | B45: All baseline single zone systems have been modeled with a separate HVAC system for each thermal block per G3.1.1. | G45: Required for Systems 1-4 | I45: =IF(J45=TRUE,TRUE,FALSE) -> FALSE | J45: =IF(ISNA(VLOOKUP("1",OFFSET(GenHVACformatref,1,0,ROWS(GenHVACformatref)-1,1),1,FALSE)),IF(ISNA(VLOOKUP("2",OFFSET(GenHVACformatref,1,0,ROWS(GenHVACformatref)-1,1),1,FALSE)),IF(ISNA(VLOOKUP("3",OFFSET(GenHVACformatref,1,0,ROWS(GenHVACformatref)-1,1),1,FALSE)),IF(ISNA(VLOOKUP("4",OFFSET(GenHVACformatref,1,0,ROWS(GenHVACformatref)-1,1),1,FALSE)),FALSE,TRUE),TRUE),TRUE),TRUE) -> FALSE
A46: G | B46: All baseline VAV systems have been modeled with an HVAC system per floor, or one system per group of thermodynamically similar floors per G3.1.1. | G46: Required for Systems 5-8 | I46: =IF(J46=TRUE,TRUE,FALSE) -> FALSE | J46: =IF(ISNA(VLOOKUP("5",OFFSET(GenHVACformatref,1,0,ROWS(GenHVACformatref)-1,1),1,FALSE)),IF(ISNA(VLOOKUP("6",OFFSET(GenHVACformatref,1,0,ROWS(GenHVACformatref)-1,1),1,FALSE)),IF(ISNA(VLOOKUP("7",OFFSET(GenHVACformatref,1,0,ROWS(GenHVACformatref)-1,1),1,FALSE)),IF(ISNA(VLOOKUP("8",OFFSET(GenHVACformatref,1,0,ROWS(GenHVACformatref)-1,1),1,FALSE)),FALSE,TRUE),TRUE),TRUE),TRUE) -> FALSE
A47: G | B47: All baseline heating and ventilation systems have been modeled with an HVAC system per floor or one system per group of thermodynamically similar floors per G3.1.1. | G47: Required for Systems 9 and 10 | I47: =IF(J47=TRUE,TRUE,FALSE) -> FALSE | J47: =IF(ISNA(VLOOKUP("9",OFFSET(GenHVACformatref,1,0,ROWS(GenHVACformatref)-1,1),1,FALSE)),IF(ISNA(VLOOKUP("10",OFFSET(GenHVACformatref,1,0,ROWS(GenHVACformatref)-1,1),1,FALSE)),FALSE,TRUE),TRUE) -> FALSE
A48: G | B48: All applicable baseline exceptions to G3.1.1 have been implemented. Note that these exceptions are required, not optional. | G48: Required for all systems | I48: TRUE
A49: G | B49: Where baseline or proposed efficiency ratings for DX cooling equipment, such as EER and COP, include fan energy, the descriptor is broken down into its components so that supply fan energy can be modeled separately per G3.1.2.1. | G49: Required for Systems 1-6 Required for Systems 1, 3, and 5 if District Heating has been selected on the General Information tab Not required if District Cooling has been slected | I49: =IF(J49=TRUE,TRUE,IF(AND(K49=TRUE,'General Information'!$J$59=TRUE),TRUE,FALSE)) -> FALSE | J49: =IF(ISNA(VLOOKUP("1",OFFSET(GenHVACformatref,1,0,ROWS(GenHVACformatref)-1,1),1,FALSE)),IF(ISNA(VLOOKUP("2",OFFSET(GenHVACformatref,1,0,ROWS(GenHVACformatref)-1,1),1,FALSE)),IF(ISNA(VLOOKUP("3",OFFSET(GenHVACformatref,1,0,ROWS(GenHVACformatref)-1,1),1,FALSE)),IF(ISNA(VLOOKUP("4",OFFSET(GenHVACformatref,1,0,ROWS(GenHVACformatref)-1,1),1,FALSE)),IF(ISNA(VLOOKUP("5",OFFSET(GenHVACformatref,1,0,ROWS(GenHVACformatref)-1,1),1,FALSE)),IF(ISNA(VLOOKUP("6",OFFSET(GenHVACformatref,1,0,ROWS(GenHVACformatref)-1,1),1,FALSE)),FALSE,TRUE),TRUE),TRUE),TRUE),TRUE),TRUE) -> FALSE | K49: =IF(ISNA(VLOOKUP("1",OFFSET(GenHVACformatref,1,0,ROWS(GenHVACformatref)-1,1),1,FALSE)),IF(ISNA(VLOOKUP("3",OFFSET(GenHVACformatref,1,0,ROWS(GenHVACformatref)-1,1),1,FALSE)),IF(ISNA(VLOOKUP("5",OFFSET(GenHVACformatref,1,0,ROWS(GenHVACformatref)-1,1),1,FALSE)),FALSE,TRUE),TRUE),TRUE) -> FALSE
A50: G | B50: All baseline system cooling capacities auto-sized with 15% oversizing per G3.1.2.2 (at the system or plant level, but not both). | G50: Required for all systems | I50: TRUE
A51: G | B51: All baseline system heating capacities auto-sized with 25% oversizing per G3.1.2.2 (at the system or plant level, but not both). | G51: Required for all systems | I51: TRUE
A52: G | B52: If the proposed system has a preheat coil, it has been modeled and controlled in the same manner in the baseline system per G3.1.2.4. | G52: Required for all systems | I52: TRUE
A53: G | B53: All baseline supply and return fans operate continuously when spaces are occupied and cycle when unoccupied per G3.1.2.5. | G53: Required for all systems | I53: TRUE
A54: G | B54: Demand control ventilation is modeled in the baseline case for all spaces larger than 500 sq ft (50 sq m) that have a design occupancy for ventilation of greater than 40 people per 1,000 sq ft (100 sq m) of floor area (except for spaces served by baseline systems that do not have one of the following: an air-side economizer, automatic modulating control of the outdoor air damper, or a design outdoor airflow of greater than 3,000 cfm (1,400 L/s)) per G3.1.2.6 / 6.4.3.9. | G54: Required for Systems 3-8 | I54: =IF(J54=TRUE,TRUE,FALSE) -> FALSE | J54: =IF(ISNA(VLOOKUP("3",OFFSET(GenHVACformatref,1,0,ROWS(GenHVACformatref)-1,1),1,FALSE)),IF(ISNA(VLOOKUP("4",OFFSET(GenHVACformatref,1,0,ROWS(GenHVACformatref)-1,1),1,FALSE)),IF(ISNA(VLOOKUP("5",OFFSET(GenHVACformatref,1,0,ROWS(GenHVACformatref)-1,1),1,FALSE)),IF(ISNA(VLOOKUP("6",OFFSET(GenHVACformatref,1,0,ROWS(GenHVACformatref)-1,1),1,FALSE)),IF(ISNA(VLOOKUP("7",OFFSET(GenHVACformatref,1,0,ROWS(GenHVACformatref)-1,1),1,FALSE)),IF(ISNA(VLOOKUP("8",OFFSET(GenHVACformatref,1,0,ROWS(GenHVACformatref)-1,1),1,FALSE)),FALSE,TRUE),TRUE),TRUE),TRUE),TRUE),TRUE) -> FALSE
A55: G | B55: Per Section G3.1.2.6, the minimum baseline outdoor air ventilation rates are modeled using ASHRAE 62.1 minimum outside air volume or the minimum outside air volume required by local code. The proposed outdoor air ventilation rates are modeled as designed. The baseline outside air volume (equal to the sum of the baseline outside air volume per system) does not exceed the proposed outside air volume (equal to the sum of the outside air volume per system) except using schedule variations for spaces where demand control ventilation has been designed where its use is not required, or when providing Baseline and Proposed ASHRAE 62.1 calculations for systems where the Proposed system Ez > 1.0. Note that the Baseline outside air volume and Proposed outside air volume values must be reported consistently with the information provided in IEQ Prerequisite: Minimum Indoor Air Quality, or supplemental documentation must be provided to support the local OA volume requirements or Baseline calculations for systems with Ez > 1.0. | G55: Required for all systems | I55: TRUE
A56: G | B56: All baseline systems are modeled with zero outside airflow when fans are cycled to meet unoccupied setback temperatures. | G56: Required for all systems | I56: TRUE
A57: G | B57: All baseline supply airflows for Systems 1-8 have been auto-sized based on a 20°F (11.1°C) supply-air-to-room-air cooling temperature difference (or the airflow rate required to comply with applicable codes/standards, whichever is greater) per G3.1.2.9.1. Exception: Laboratory spaces have been modeled with a 17°F (9.4°C) supply-air-to-room air temperature difference or the required ventilation air or makeup air, whichever is greater. | G57: Required for Systems 1-8 | I57: =IF(J57=TRUE,TRUE,FALSE) -> FALSE | J57: =IF(ISNA(VLOOKUP("1",OFFSET(GenHVACformatref,1,0,ROWS(GenHVACformatref)-1,1),1,FALSE)),IF(ISNA(VLOOKUP("2",OFFSET(GenHVACformatref,1,0,ROWS(GenHVACformatref)-1,1),1,FALSE)),IF(ISNA(VLOOKUP("3",OFFSET(GenHVACformatref,1,0,ROWS(GenHVACformatref)-1,1),1,FALSE)),IF(ISNA(VLOOKUP("4",OFFSET(GenHVACformatref,1,0,ROWS(GenHVACformatref)-1,1),1,FALSE)),IF(ISNA(VLOOKUP("5",OFFSET(GenHVACformatref,1,0,ROWS(GenHVACformatref)-1,1),1,FALSE)),IF(ISNA(VLOOKUP("6",OFFSET(GenHVACformatref,1,0,ROWS(GenHVACformatref)-1,1),1,FALSE)),IF(ISNA(VLOOKUP("7",OFFSET(GenHVACformatref,1,0,ROWS(GenHVACformatref)-1,1),1,FALSE)),IF(ISNA(VLOOKUP("8",OFFSET(GenHVACformatref,1,0,ROWS(GenHVACformatref)-1,1),1,FALSE)),FALSE,TRUE),TRUE),TRUE),TRUE),TRUE),TRUE),TRUE),TRUE) -> FALSE
A58: G | B58: All baseline supply airflows for systems 9-10 have been autosized based on the difference between a supply air temperature set point of 105°F (40.6°C) and the design space heating temperature set point (or the airflow rate required to comply with applicable codes/standards, whichever is greater) per G3.1.2.9.2. | G58: Required for Systems 9 and 10 | I58: FALSE | J58: =IF(ISNA(VLOOKUP("9",OFFSET(GenHVACformatref,1,0,ROWS(GenHVACformatref)-1,1),1,FALSE)),IF(ISNA(VLOOKUP("10",OFFSET(GenHVACformatref,1,0,ROWS(GenHVACformatref)-1,1),1,FALSE)),FALSE,TRUE),TRUE) -> FALSE
A59: G | B59: All baseline heat pumps modeled with electric auxiliary heat only energized below 40°F (4°C) and as the last thermostat stage per G3.1.3.1 (compressor still enabled below 40°F (4°C)). The compressor continues to operate in conjunction with the electric auxiliary heat as low as 17°F(-8.3°C), in accordance with the Baseline equipment efficiency ratings from ASHRAE 90.1 Section 6.8. See ASHRAE Interpretation 90.1-2007-09 for more information. | G59: Required for Systems 2 and 4 Not required if District Heating and/or Cooling has been selected on the General Information tab | I59: FALSE | J59: =IF(ISNA(VLOOKUP("2",OFFSET(GenHVACformatref,1,0,ROWS(GenHVACformatref)-1,1),1,FALSE)),IF(ISNA(VLOOKUP("4",OFFSET(GenHVACformatref,1,0,ROWS(GenHVACformatref)-1,1),1,FALSE)),FALSE,TRUE),TRUE) -> FALSE
A60: G | B60: All baseline VAV systems modeled with supply air temperature reset of 5°F (2.3°C) under minimum cooling load conditions per G3.1.3.12. | G60: Required for Systems 5-8 | I60: FALSE | J60: =IF(ISNA(VLOOKUP("5",OFFSET(GenHVACformatref,1,0,ROWS(GenHVACformatref)-1,1),1,FALSE)),IF(ISNA(VLOOKUP("6",OFFSET(GenHVACformatref,1,0,ROWS(GenHVACformatref)-1,1),1,FALSE)),IF(ISNA(VLOOKUP("7",OFFSET(GenHVACformatref,1,0,ROWS(GenHVACformatref)-1,1),1,FALSE)),IF(ISNA(VLOOKUP("8",OFFSET(GenHVACformatref,1,0,ROWS(GenHVACformatref)-1,1),1,FALSE)),FALSE,TRUE),TRUE),TRUE),TRUE) -> FALSE
A61: G | B61: All baseline VAV reheat boxes modeled with a minimum flow setpoint of 30% of peak zone flow (or minimum outdoor airflow rate or code required rate) per G3.1.3.13. | G61: Required for Systems 5 and 7 | I61: FALSE | J61: =IF(ISNA(VLOOKUP("5",OFFSET(GenHVACformatref,1,0,ROWS(GenHVACformatref)-1,1),1,FALSE)),IF(ISNA(VLOOKUP("7",OFFSET(GenHVACformatref,1,0,ROWS(GenHVACformatref)-1,1),1,FALSE)),FALSE,TRUE),TRUE) -> FALSE
A62: G | B62: All baseline fans in parallel VAV fan-powered boxes sized for 50% of peak primary airflow and modeled with 0.35 W/cfm (0.74 W/L/s) fan power and a minimum flow setpoint of 30% of peak (or minimum ventilation rate) per G3.1.3.14. | G62: Required for Systems 6 and 8 | I62: FALSE | J62: =IF(ISNA(VLOOKUP("6",OFFSET(GenHVACformatref,1,0,ROWS(GenHVACformatref)-1,1),1,FALSE)),IF(ISNA(VLOOKUP("8",OFFSET(GenHVACformatref,1,0,ROWS(GenHVACformatref)-1,1),1,FALSE)),FALSE,TRUE),TRUE) -> FALSE
A63: G | B63: All baseline VAV fans (Systems 5-8) are modeled with VAV part-load performance curves consistent with Table G3.1.3.15 Method 1 or Method 2. | G63: Required for Systems 5-8 | I63: FALSE | J63: =IF(ISNA(VLOOKUP("5",OFFSET(GenHVACformatref,1,0,ROWS(GenHVACformatref)-1,1),1,FALSE)),IF(ISNA(VLOOKUP("6",OFFSET(GenHVACformatref,1,0,ROWS(GenHVACformatref)-1,1),1,FALSE)),IF(ISNA(VLOOKUP("7",OFFSET(GenHVACformatref,1,0,ROWS(GenHVACformatref)-1,1),1,FALSE)),IF(ISNA(VLOOKUP("8",OFFSET(GenHVACformatref,1,0,ROWS(GenHVACformatref)-1,1),1,FALSE)),FALSE,TRUE),TRUE),TRUE),TRUE) -> FALSE
A64: G
A65: G | B65: Baseline Water-Side HVAC Requirements
A66: G | B66: The baseline boiler(s) have been modeled as natural draft per G3.1.3.2. | G66: Required for Systems 1, 5, and 7 Required for Systems 1-2 and 5-8 if District Cooling has been selected on the General Information tab Not required if District Heating has been selected | I66: =IF('General Information'!$J$59=TRUE,FALSE,IF(J66=TRUE,TRUE,IF(AND(K66=TRUE,'General Information'!$I$59=TRUE),TRUE,FALSE))) -> FALSE | J66: =IF(ISNA(VLOOKUP("1",OFFSET(GenHVACformatref,1,0,ROWS(GenHVACformatref)-1,1),1,FALSE)),IF(ISNA(VLOOKUP("5",OFFSET(GenHVACformatref,1,0,ROWS(GenHVACformatref)-1,1),1,FALSE)),IF(ISNA(VLOOKUP("7",OFFSET(GenHVACformatref,1,0,ROWS(GenHVACformatref)-1,1),1,FALSE)),FALSE,TRUE),TRUE),TRUE) -> FALSE | K66: =IF(ISNA(VLOOKUP("1",OFFSET(GenHVACformatref,1,0,ROWS(GenHVACformatref)-1,1),1,FALSE)),IF(ISNA(VLOOKUP("2",OFFSET(GenHVACformatref,1,0,ROWS(GenHVACformatref)-1,1),1,FALSE)),IF(ISNA(VLOOKUP("5",OFFSET(GenHVACformatref,1,0,ROWS(GenHVACformatref)-1,1),1,FALSE)),IF(ISNA(VLOOKUP("6",OFFSET(GenHVACformatref,1,0,ROWS(GenHVACformatref)-1,1),1,FALSE)),IF(ISNA(VLOOKUP("7",OFFSET(GenHVACformatref,1,0,ROWS(GenHVACformatref)-1,1),1,FALSE)),IF(ISNA(VLOOKUP("8",OFFSET(GenHVACformatref,1,0,ROWS(GenHVACformatref)-1,1),1,FALSE)),FALSE,TRUE),TRUE),TRUE),TRUE),TRUE),TRUE) -> FALSE
